ORGANISATION NAME,EFEFCTIVE DATE,DIRECTORATE,SUPPLIER NAME,DATE PAID,AMOUNT (�),PURPOSE,TRANSACTION No.
ROCHDALE BOROUGH COUNCIL,04/06/2020,BETTER CARE FUND POOLED BUDGET,PENNINE CARE NHS,04/06/2020,8385.67 ,CONTRACTS,V001470641
ROCHDALE BOROUGH COUNCIL,02/06/2020,EARLY HELP AND SCHOOLS,PENNINE CARE NHS,02/06/2020,2481.48 ,PROJECTS,V001476216
ROCHDALE BOROUGH COUNCIL,08/06/2020,NEIGHBOURHOODS AND ENVIRONMENT,THE PENNINE ACUTE HOSPITALS NHS TRUST,08/06/2020,175.00 ,MORTUARY CHARGES,V001516587
ROCHDALE BOROUGH COUNCIL,26/06/2020,NEIGHBOURHOODS AND ENVIRONMENT,PHS GROUP PLC,26/06/2020,2865.00 ,CHRISTMAS DECORATIONS,V001520911
ROCHDALE BOROUGH COUNCIL,18/06/2020,CHILDREN�S SOCIAL CARE,MILLENNIUM TRANSLATIONS LTD,18/06/2020,41.00 ,TRANSLATION & INTERPRETATION,V001530494
ROCHDALE BOROUGH COUNCIL,18/06/2020,CHILDREN�S SOCIAL CARE,MILLENNIUM TRANSLATIONS LTD,18/06/2020,71.80 ,TRANSLATION & INTERPRETATION,V001534686
ROCHDALE BOROUGH COUNCIL,02/06/2020,CHILDREN�S SOCIAL CARE,MILLENNIUM TRANSLATIONS LTD,02/06/2020,51.50 ,TRANSLATION & INTERPRETATION,V001534694
ROCHDALE BOROUGH COUNCIL,08/06/2020,PROPERTY AND HIGHWAYS,ATG ACCESS LTD,08/06/2020,1974.96 ,MINOR BUILDING WORKS,V001535167
ROCHDALE BOROUGH COUNCIL,08/06/2020,PROPERTY AND HIGHWAYS,ATG ACCESS LTD,08/06/2020,485.00 ,MINOR BUILDING WORKS,V001535187
ROCHDALE BOROUGH COUNCIL,22/06/2020,CHILDREN�S SOCIAL CARE,MILLENNIUM TRANSLATIONS LTD,22/06/2020,45.70 ,TRANSLATION & INTERPRETATION,V001535237
ROCHDALE BOROUGH COUNCIL,02/06/2020,PROPERTY AND HIGHWAYS,KINETIC SYSTEMS SUPPORT UK LTD,02/06/2020,7993.10 ,MINOR BUILDING WORKS,V001539439
ROCHDALE BOROUGH COUNCIL,04/06/2020,PROPERTY AND HIGHWAYS,KINETIC SYSTEMS SUPPORT UK LTD,04/06/2020,6046.30 ,MINOR BUILDING WORKS,V001539441
ROCHDALE BOROUGH COUNCIL,22/06/2020,CHILDREN�S SOCIAL CARE,MILLENNIUM TRANSLATIONS LTD,22/06/2020,27.20 ,TRANSLATION & INTERPRETATION,V001539796
ROCHDALE BOROUGH COUNCIL,22/06/2020,CHILDREN�S SOCIAL CARE,MILLENNIUM TRANSLATIONS LTD,22/06/2020,16.80 ,TRANSLATION & INTERPRETATION,V001539797
ROCHDALE BOROUGH COUNCIL,22/06/2020,CHILDREN�S SOCIAL CARE,MILLENNIUM TRANSLATIONS LTD,22/06/2020,16.00 ,TRANSLATION & INTERPRETATION,V001539798
ROCHDALE BOROUGH COUNCIL,22/06/2020,CHILDREN�S SOCIAL CARE,MILLENNIUM TRANSLATIONS LTD,22/06/2020,55.20 ,TRANSLATION & INTERPRETATION,V001539799
ROCHDALE BOROUGH COUNCIL,22/06/2020,CHILDREN�S SOCIAL CARE,MILLENNIUM TRANSLATIONS LTD,22/06/2020,33.60 ,TRANSLATION & INTERPRETATION,V001539800
ROCHDALE BOROUGH COUNCIL,22/06/2020,CHILDREN�S SOCIAL CARE,MILLENNIUM TRANSLATIONS LTD,22/06/2020,7.20 ,TRANSLATION & INTERPRETATION,V001539801
ROCHDALE BOROUGH COUNCIL,18/06/2020,CHILDREN�S SOCIAL CARE,MILLENNIUM TRANSLATIONS LTD,18/06/2020,52.80 ,TRANSLATION & INTERPRETATION,V001539804
ROCHDALE BOROUGH COUNCIL,08/06/2020,PROPERTY AND HIGHWAYS,ATG ACCESS LTD,08/06/2020,-2835.00 ,MINOR BUILDING WORKS,V001540463
ROCHDALE BOROUGH COUNCIL,18/06/2020,CHILDREN�S SOCIAL CARE,MILLENNIUM TRANSLATIONS LTD,18/06/2020,55.10 ,TRANSLATION & INTERPRETATION,V001540681
ROCHDALE BOROUGH COUNCIL,22/06/2020,CHILDREN�S SOCIAL CARE,MILLENNIUM TRANSLATIONS LTD,22/06/2020,87.80 ,TRANSLATION & INTERPRETATION,V001540682
ROCHDALE BOROUGH COUNCIL,22/06/2020,CHILDREN�S SOCIAL CARE,MILLENNIUM TRANSLATIONS LTD,22/06/2020,35.00 ,TRANSLATION & INTERPRETATION,V001540683
ROCHDALE BOROUGH COUNCIL,15/06/2020,EARLY HELP AND SCHOOLS,MILLENNIUM TRANSLATIONS LTD,15/06/2020,77.30 ,TRANSLATION & INTERPRETATION,V001540686
ROCHDALE BOROUGH COUNCIL,22/06/2020,CHILDREN�S SOCIAL CARE,MILLENNIUM TRANSLATIONS LTD,22/06/2020,54.20 ,TRANSLATION & INTERPRETATION,V001540687
ROCHDALE BOROUGH COUNCIL,18/06/2020,CHILDREN�S SOCIAL CARE,MILLENNIUM TRANSLATIONS LTD,18/06/2020,57.80 ,TRANSLATION & INTERPRETATION,V001540691
ROCHDALE BOROUGH COUNCIL,22/06/2020,CHILDREN�S SOCIAL CARE,MILLENNIUM TRANSLATIONS LTD,22/06/2020,54.20 ,TRANSLATION & INTERPRETATION,V001540692
ROCHDALE BOROUGH COUNCIL,18/06/2020,CHILDREN�S SOCIAL CARE,MILLENNIUM TRANSLATIONS LTD,18/06/2020,73.60 ,TRANSLATION & INTERPRETATION,V001540693
ROCHDALE BOROUGH COUNCIL,22/06/2020,CHILDREN�S SOCIAL CARE,MILLENNIUM TRANSLATIONS LTD,22/06/2020,53.30 ,TRANSLATION & INTERPRETATION,V001540694
ROCHDALE BOROUGH COUNCIL,22/06/2020,CHILDREN�S SOCIAL CARE,MILLENNIUM TRANSLATIONS LTD,22/06/2020,58.30 ,TRANSLATION & INTERPRETATION,V001540695
ROCHDALE BOROUGH COUNCIL,22/06/2020,CHILDREN�S SOCIAL CARE,MILLENNIUM TRANSLATIONS LTD,22/06/2020,42.80 ,TRANSLATION & INTERPRETATION,V001540696
ROCHDALE BOROUGH COUNCIL,18/06/2020,CHILDREN�S SOCIAL CARE,MILLENNIUM TRANSLATIONS LTD,18/06/2020,42.80 ,TRANSLATION & INTERPRETATION,V001540700
ROCHDALE BOROUGH COUNCIL,15/06/2020,CHILDREN�S SOCIAL CARE,POSTURITE UK LTD,15/06/2020,31.45 ,EQUIPMENT - GENERAL,V001542063
ROCHDALE BOROUGH COUNCIL,15/06/2020,CHILDREN�S SOCIAL CARE,POSTURITE UK LTD,15/06/2020,33.96 ,EQUIPMENT - GENERAL,V001542063
ROCHDALE BOROUGH COUNCIL,15/06/2020,CHILDREN�S SOCIAL CARE,POSTURITE UK LTD,15/06/2020,32.95 ,EQUIPMENT - GENERAL,V001542063
ROCHDALE BOROUGH COUNCIL,15/06/2020,CHILDREN�S SOCIAL CARE,POSTURITE UK LTD,15/06/2020,9.95 ,EQUIPMENT - GENERAL,V001542063
ROCHDALE BOROUGH COUNCIL,03/06/2020,NEIGHBOURHOODS AND ENVIRONMENT,DENEHURST PARK ROCHDALE LIMITED,03/06/2020,832.80 ,EXPENSES - GENERAL,V001542115
ROCHDALE BOROUGH COUNCIL,11/06/2020,NEIGHBOURHOODS AND ENVIRONMENT,PATTERSONS BRISTOL LTD,11/06/2020,4.35 ,CLEANING MATERIALS,V001542170
ROCHDALE BOROUGH COUNCIL,11/06/2020,NEIGHBOURHOODS AND ENVIRONMENT,PATTERSONS BRISTOL LTD,11/06/2020,1.09 ,CLEANING EQUIPMENT,V001542170
ROCHDALE BOROUGH COUNCIL,11/06/2020,NEIGHBOURHOODS AND ENVIRONMENT,PATTERSONS BRISTOL LTD,11/06/2020,6.54 ,CLEANING EQUIPMENT,V001542170
ROCHDALE BOROUGH COUNCIL,11/06/2020,NEIGHBOURHOODS AND ENVIRONMENT,PATTERSONS BRISTOL LTD,11/06/2020,6.74 ,CLEANING MATERIALS,V001542170
ROCHDALE BOROUGH COUNCIL,11/06/2020,NEIGHBOURHOODS AND ENVIRONMENT,PATTERSONS BRISTOL LTD,11/06/2020,8.62 ,CLEANING MATERIALS,V001542170
ROCHDALE BOROUGH COUNCIL,11/06/2020,NEIGHBOURHOODS AND ENVIRONMENT,PATTERSONS BRISTOL LTD,11/06/2020,2.52 ,CLEANING MATERIALS,V001542170
ROCHDALE BOROUGH COUNCIL,11/06/2020,NEIGHBOURHOODS AND ENVIRONMENT,PATTERSONS BRISTOL LTD,11/06/2020,7.28 ,CLEANING MATERIALS,V001542170
ROCHDALE BOROUGH COUNCIL,11/06/2020,NEIGHBOURHOODS AND ENVIRONMENT,PATTERSONS BRISTOL LTD,11/06/2020,24.20 ,CLEANING EQUIPMENT,V001542170
ROCHDALE BOROUGH COUNCIL,11/06/2020,NEIGHBOURHOODS AND ENVIRONMENT,PATTERSONS BRISTOL LTD,11/06/2020,9.84 ,CONSUMABLES,V001542170
ROCHDALE BOROUGH COUNCIL,04/06/2020,EARLY HELP AND SCHOOLS,F S MOULT AND SON,04/06/2020,1800.00 ,REPAIRS & ALTS OF BUILDINGS,V001542746
ROCHDALE BOROUGH COUNCIL,04/06/2020,EARLY HELP AND SCHOOLS,F S MOULT AND SON,04/06/2020,675.00 ,REPAIRS & ALTS OF BUILDINGS,V001542746
ROCHDALE BOROUGH COUNCIL,25/06/2020,EARLY HELP AND SCHOOLS,F S MOULT AND SON,25/06/2020,2000.00 ,REPAIRS & ALTS OF BUILDINGS,V001542747
ROCHDALE BOROUGH COUNCIL,25/06/2020,EARLY HELP AND SCHOOLS,F S MOULT AND SON,25/06/2020,560.00 ,REPAIRS & ALTS OF BUILDINGS,V001542747
ROCHDALE BOROUGH COUNCIL,22/06/2020,CHILDREN�S SOCIAL CARE,MILLENNIUM TRANSLATIONS LTD,22/06/2020,53.30 ,TRANSLATION & INTERPRETATION,V001542924
ROCHDALE BOROUGH COUNCIL,22/06/2020,CHILDREN�S SOCIAL CARE,MILLENNIUM TRANSLATIONS LTD,22/06/2020,41.00 ,TRANSLATION & INTERPRETATION,V001542927
ROCHDALE BOROUGH COUNCIL,18/06/2020,CHILDREN�S SOCIAL CARE,MILLENNIUM TRANSLATIONS LTD,18/06/2020,42.80 ,TRANSLATION & INTERPRETATION,V001542928
ROCHDALE BOROUGH COUNCIL,22/06/2020,CHILDREN�S SOCIAL CARE,MILLENNIUM TRANSLATIONS LTD,22/06/2020,42.80 ,TRANSLATION & INTERPRETATION,V001542932
ROCHDALE BOROUGH COUNCIL,18/06/2020,CHILDREN�S SOCIAL CARE,MILLENNIUM TRANSLATIONS LTD,18/06/2020,55.10 ,TRANSLATION & INTERPRETATION,V001542933
ROCHDALE BOROUGH COUNCIL,22/06/2020,CHILDREN�S SOCIAL CARE,MILLENNIUM TRANSLATIONS LTD,22/06/2020,42.80 ,TRANSLATION & INTERPRETATION,V001542937
ROCHDALE BOROUGH COUNCIL,22/06/2020,CHILDREN�S SOCIAL CARE,MILLENNIUM TRANSLATIONS LTD,22/06/2020,42.80 ,TRANSLATION & INTERPRETATION,V001542938
ROCHDALE BOROUGH COUNCIL,22/06/2020,CHILDREN�S SOCIAL CARE,MILLENNIUM TRANSLATIONS LTD,22/06/2020,42.80 ,TRANSLATION & INTERPRETATION,V001542939
ROCHDALE BOROUGH COUNCIL,05/06/2020,NEIGHBOURHOODS AND ENVIRONMENT,ACS BUSINESS SUPPLIES,05/06/2020,278.47 ,PRINTING & STATIONERY,V001544861
ROCHDALE BOROUGH COUNCIL,05/06/2020,NEIGHBOURHOODS AND ENVIRONMENT,ACS BUSINESS SUPPLIES,05/06/2020,14.04 ,PRINTING & STATIONERY,V001544861
ROCHDALE BOROUGH COUNCIL,25/06/2020,EARLY HELP AND SCHOOLS,F BRIERLEY & SON LIMITED,25/06/2020,640.00 ,REPAIRS & ALTS OF BUILDINGS,V001546412
ROCHDALE BOROUGH COUNCIL,05/06/2020,EARLY HELP AND SCHOOLS,GROUNDWORK LANDSCAPES LIMITED,05/06/2020,980.00 ,REPAIRS & ALTS OF BUILDINGS,V001546468
ROCHDALE BOROUGH COUNCIL,05/06/2020,EARLY HELP AND SCHOOLS,F S MOULT AND SON,05/06/2020,200.00 ,REPAIRS & ALTS OF BUILDINGS,V001547088
ROCHDALE BOROUGH COUNCIL,05/06/2020,EARLY HELP AND SCHOOLS,F S MOULT AND SON,05/06/2020,70.00 ,REPAIRS & ALTS OF BUILDINGS,V001547088
ROCHDALE BOROUGH COUNCIL,26/06/2020,EARLY HELP AND SCHOOLS,F S MOULT AND SON,26/06/2020,900.00 ,REPAIRS & ALTS OF BUILDINGS,V001547090
ROCHDALE BOROUGH COUNCIL,26/06/2020,EARLY HELP AND SCHOOLS,F S MOULT AND SON,26/06/2020,190.00 ,REPAIRS & ALTS OF BUILDINGS,V001547090
ROCHDALE BOROUGH COUNCIL,01/06/2020,NEIGHBOURHOODS AND ENVIRONMENT,PATTERSONS BRISTOL LTD,01/06/2020,32.71 ,CLEANING MATERIALS,V001547454
ROCHDALE BOROUGH COUNCIL,11/06/2020,NEIGHBOURHOODS AND ENVIRONMENT,PATTERSONS BRISTOL LTD,11/06/2020,-8.95 ,CLEANING MATERIALS,V001547457
ROCHDALE BOROUGH COUNCIL,16/06/2020,ADULT CARE LCO FUNCTIONS,HEALTHCARE MANAGEMENT SOLUTIONS,16/06/2020,982.00 ,RESIDENTIAL LONG TERM,V001549540
ROCHDALE BOROUGH COUNCIL,16/06/2020,ADULT CARE LCO FUNCTIONS,HEALTHCARE MANAGEMENT SOLUTIONS,16/06/2020,982.00 ,RESIDENTIAL LONG TERM,V001549604
ROCHDALE BOROUGH COUNCIL,16/06/2020,ADULT CARE LCO FUNCTIONS,HEALTHCARE MANAGEMENT SOLUTIONS,16/06/2020,1015.70 ,RESIDENTIAL LONG TERM,V001549778
ROCHDALE BOROUGH COUNCIL,16/06/2020,ADULT CARE LCO FUNCTIONS,HEALTHCARE MANAGEMENT SOLUTIONS,16/06/2020,982.00 ,RESIDENTIAL LONG TERM,V001549814
ROCHDALE BOROUGH COUNCIL,16/06/2020,ADULT CARE LCO FUNCTIONS,FOUR SEASONS HEALTHCARE,16/06/2020,982.00 ,NURSING LONG TERM,V001549866
ROCHDALE BOROUGH COUNCIL,16/06/2020,ADULT CARE LCO FUNCTIONS,HEALTHCARE MANAGEMENT SOLUTIONS,16/06/2020,982.00 ,NURSING LONG TERM,V001549938
ROCHDALE BOROUGH COUNCIL,16/06/2020,ADULT CARE LCO FUNCTIONS,HEALTHCARE MANAGEMENT SOLUTIONS,16/06/2020,982.00 ,RESIDENTIAL LONG TERM,V001549961
ROCHDALE BOROUGH COUNCIL,16/06/2020,ADULT CARE LCO FUNCTIONS,HEALTHCARE MANAGEMENT SOLUTIONS,16/06/2020,982.00 ,NURSING LONG TERM,V001550118
ROCHDALE BOROUGH COUNCIL,16/06/2020,ADULT CARE LCO FUNCTIONS,HEALTHCARE MANAGEMENT SOLUTIONS,16/06/2020,982.00 ,RESIDENTIAL LONG TERM,V001550188
ROCHDALE BOROUGH COUNCIL,16/06/2020,ADULT CARE LCO FUNCTIONS,HEALTHCARE MANAGEMENT SOLUTIONS,16/06/2020,982.00 ,RESIDENTIAL LONG TERM,V001550226
ROCHDALE BOROUGH COUNCIL,16/06/2020,ADULT CARE LCO FUNCTIONS,HEALTHCARE MANAGEMENT SOLUTIONS,16/06/2020,982.00 ,NURSING LONG TERM,V001550316
ROCHDALE BOROUGH COUNCIL,16/06/2020,ADULT CARE LCO FUNCTIONS,HEALTHCARE MANAGEMENT SOLUTIONS,16/06/2020,982.00 ,SELF - FUNDING DEFERRED PAYMENTS,V001550348
ROCHDALE BOROUGH COUNCIL,16/06/2020,ADULT CARE LCO FUNCTIONS,HEALTHCARE MANAGEMENT SOLUTIONS,16/06/2020,982.00 ,RESIDENTIAL LONG TERM,V001550491
ROCHDALE BOROUGH COUNCIL,16/06/2020,ADULT CARE LCO FUNCTIONS,HEALTHCARE MANAGEMENT SOLUTIONS,16/06/2020,982.00 ,NURSING LONG TERM,V001550543
ROCHDALE BOROUGH COUNCIL,16/06/2020,ADULT CARE LCO FUNCTIONS,HEALTHCARE MANAGEMENT SOLUTIONS,16/06/2020,210.43 ,RESIDENTIAL LONG TERM,V001551637
ROCHDALE BOROUGH COUNCIL,16/06/2020,ADULT CARE LCO FUNCTIONS,HEALTHCARE MANAGEMENT SOLUTIONS,16/06/2020,982.00 ,RESIDENTIAL LONG TERM,V001551638
ROCHDALE BOROUGH COUNCIL,16/06/2020,ADULT CARE LCO FUNCTIONS,HEALTHCARE MANAGEMENT SOLUTIONS,16/06/2020,982.00 ,RESIDENTIAL LONG TERM,V001551639
ROCHDALE BOROUGH COUNCIL,18/06/2020,CHILDREN�S SOCIAL CARE,MILLENNIUM TRANSLATIONS LTD,18/06/2020,55.10 ,TRANSLATION & INTERPRETATION,V001551802
ROCHDALE BOROUGH COUNCIL,02/06/2020,CHILDREN�S SOCIAL CARE,MILLENNIUM TRANSLATIONS LTD,02/06/2020,55.10 ,TRANSLATION & INTERPRETATION,V001551812
ROCHDALE BOROUGH COUNCIL,29/06/2020,NEIGHBOURHOODS AND ENVIRONMENT,SOFTCAT LTD,29/06/2020,271.30 ,EQUIPMENT - GENERAL,V001551849
ROCHDALE BOROUGH COUNCIL,08/06/2020,NEIGHBOURHOODS AND ENVIRONMENT,MANTRA LEARNING LTD,08/06/2020,120.00 ,TRAINING-NON QUALIFICATION,V001551868
ROCHDALE BOROUGH COUNCIL,08/06/2020,NEIGHBOURHOODS AND ENVIRONMENT,MANTRA LEARNING LTD,08/06/2020,46.00 ,TRAINING-NON QUALIFICATION,V001551869
ROCHDALE BOROUGH COUNCIL,12/06/2020,NEIGHBOURHOODS AND ENVIRONMENT,MANTRA LEARNING LTD,12/06/2020,138.00 ,TRAINING-NON QUALIFICATION,V001551870
ROCHDALE BOROUGH COUNCIL,12/06/2020,NEIGHBOURHOODS AND ENVIRONMENT,MANTRA LEARNING LTD,12/06/2020,74.00 ,TRAINING-NON QUALIFICATION,V001551871
ROCHDALE BOROUGH COUNCIL,12/06/2020,NEIGHBOURHOODS AND ENVIRONMENT,MANTRA LEARNING LTD,12/06/2020,222.00 ,TRAINING-NON QUALIFICATION,V001551872
ROCHDALE BOROUGH COUNCIL,12/06/2020,NEIGHBOURHOODS AND ENVIRONMENT,MANTRA LEARNING LTD,12/06/2020,50.00 ,TRAINING-NON QUALIFICATION,V001551873
ROCHDALE BOROUGH COUNCIL,12/06/2020,NEIGHBOURHOODS AND ENVIRONMENT,MANTRA LEARNING LTD,12/06/2020,150.00 ,TRAINING-NON QUALIFICATION,V001551874
ROCHDALE BOROUGH COUNCIL,12/06/2020,NEIGHBOURHOODS AND ENVIRONMENT,MANTRA LEARNING LTD,12/06/2020,230.00 ,TRAINING-NON QUALIFICATION,V001551875
ROCHDALE BOROUGH COUNCIL,12/06/2020,NEIGHBOURHOODS AND ENVIRONMENT,MANTRA LEARNING LTD,12/06/2020,690.00 ,TRAINING-NON QUALIFICATION,V001551876
ROCHDALE BOROUGH COUNCIL,12/06/2020,NEIGHBOURHOODS AND ENVIRONMENT,MANTRA LEARNING LTD,12/06/2020,3360.00 ,TRAINING-NON QUALIFICATION,V001551877
ROCHDALE BOROUGH COUNCIL,11/06/2020,NEIGHBOURHOODS AND ENVIRONMENT,MANTRA LEARNING LTD,11/06/2020,411.67 ,TRAINING-NON QUALIFICATION,V001551878
ROCHDALE BOROUGH COUNCIL,11/06/2020,NEIGHBOURHOODS AND ENVIRONMENT,MANTRA LEARNING LTD,11/06/2020,82.33 ,TRAINING-NON QUALIFICATION,V001551878
ROCHDALE BOROUGH COUNCIL,05/06/2020,NEIGHBOURHOODS AND ENVIRONMENT,MANTRA LEARNING LTD,05/06/2020,7560.00 ,TRAINING-NON QUALIFICATION,V001551879
ROCHDALE BOROUGH COUNCIL,05/06/2020,NEIGHBOURHOODS AND ENVIRONMENT,MANTRA LEARNING LTD,05/06/2020,2520.00 ,TRAINING-NON QUALIFICATION,V001551879
ROCHDALE BOROUGH COUNCIL,05/06/2020,NEIGHBOURHOODS AND ENVIRONMENT,MANTRA LEARNING LTD,05/06/2020,1482.00 ,TRAINING-NON QUALIFICATION,V001551880
ROCHDALE BOROUGH COUNCIL,05/06/2020,NEIGHBOURHOODS AND ENVIRONMENT,MANTRA LEARNING LTD,05/06/2020,120.00 ,TRAINING-NON QUALIFICATION,V001551881
ROCHDALE BOROUGH COUNCIL,05/06/2020,NEIGHBOURHOODS AND ENVIRONMENT,MANTRA LEARNING LTD,05/06/2020,360.00 ,TRAINING-NON QUALIFICATION,V001551882
ROCHDALE BOROUGH COUNCIL,05/06/2020,NEIGHBOURHOODS AND ENVIRONMENT,MANTRA LEARNING LTD,05/06/2020,60.00 ,TRAINING-NON QUALIFICATION,V001551884
ROCHDALE BOROUGH COUNCIL,02/06/2020,PROPERTY AND HIGHWAYS,KINETIC SYSTEMS SUPPORT UK LTD,02/06/2020,10527.90 ,MINOR BUILDING WORKS,V001551917
ROCHDALE BOROUGH COUNCIL,18/06/2020,NEIGHBOURHOODS AND ENVIRONMENT,FORENSICS LTD,18/06/2020,4239.43 ,TOXICOLOGY PAYMENTS,V001551927
ROCHDALE BOROUGH COUNCIL,18/06/2020,CHILDREN�S SOCIAL CARE,MILLENNIUM TRANSLATIONS LTD,18/06/2020,55.10 ,TRANSLATION & INTERPRETATION,V001551940
ROCHDALE BOROUGH COUNCIL,22/06/2020,CHILDREN�S SOCIAL CARE,MILLENNIUM TRANSLATIONS LTD,22/06/2020,35.00 ,TRANSLATION & INTERPRETATION,V001551941
ROCHDALE BOROUGH COUNCIL,18/06/2020,CHILDREN�S SOCIAL CARE,MILLENNIUM TRANSLATIONS LTD,18/06/2020,55.10 ,TRANSLATION & INTERPRETATION,V001551943
ROCHDALE BOROUGH COUNCIL,18/06/2020,CHILDREN�S SOCIAL CARE,MILLENNIUM TRANSLATIONS LTD,18/06/2020,55.10 ,TRANSLATION & INTERPRETATION,V001551944
ROCHDALE BOROUGH COUNCIL,18/06/2020,CHILDREN�S SOCIAL CARE,MILLENNIUM TRANSLATIONS LTD,18/06/2020,35.00 ,TRANSLATION & INTERPRETATION,V001551949
ROCHDALE BOROUGH COUNCIL,18/06/2020,CHILDREN�S SOCIAL CARE,MILLENNIUM TRANSLATIONS LTD,18/06/2020,65.80 ,TRANSLATION & INTERPRETATION,V001551953
ROCHDALE BOROUGH COUNCIL,18/06/2020,CHILDREN�S SOCIAL CARE,MILLENNIUM TRANSLATIONS LTD,18/06/2020,62.80 ,TRANSLATION & INTERPRETATION,V001551954
ROCHDALE BOROUGH COUNCIL,29/06/2020,NEIGHBOURHOODS AND ENVIRONMENT,REACH PUBLISHING SERVICES LTD,29/06/2020,1620.00 ,ADVERTISING,V001551982
ROCHDALE BOROUGH COUNCIL,22/06/2020,CHILDREN�S SOCIAL CARE,MILLENNIUM TRANSLATIONS LTD,22/06/2020,64.80 ,TRANSLATION & INTERPRETATION,V001552036
ROCHDALE BOROUGH COUNCIL,22/06/2020,CHILDREN�S SOCIAL CARE,MILLENNIUM TRANSLATIONS LTD,22/06/2020,47.80 ,TRANSLATION & INTERPRETATION,V001552910
ROCHDALE BOROUGH COUNCIL,22/06/2020,CHILDREN�S SOCIAL CARE,MILLENNIUM TRANSLATIONS LTD,22/06/2020,42.80 ,TRANSLATION & INTERPRETATION,V001552911
ROCHDALE BOROUGH COUNCIL,18/06/2020,CHILDREN�S SOCIAL CARE,MILLENNIUM TRANSLATIONS LTD,18/06/2020,35.00 ,TRANSLATION & INTERPRETATION,V001552913
ROCHDALE BOROUGH COUNCIL,18/06/2020,CHILDREN�S SOCIAL CARE,MILLENNIUM TRANSLATIONS LTD,18/06/2020,42.80 ,TRANSLATION & INTERPRETATION,V001552916
ROCHDALE BOROUGH COUNCIL,18/06/2020,CHILDREN�S SOCIAL CARE,MILLENNIUM TRANSLATIONS LTD,18/06/2020,28.00 ,TRANSLATION & INTERPRETATION,V001553464
ROCHDALE BOROUGH COUNCIL,05/06/2020,NEIGHBOURHOODS AND ENVIRONMENT,MANTRA LEARNING LTD,05/06/2020,-400.00 ,TRAINING-QUALIFICATION,V001553539
ROCHDALE BOROUGH COUNCIL,05/06/2020,NEIGHBOURHOODS AND ENVIRONMENT,MANTRA LEARNING LTD,05/06/2020,360.00 ,TRAINING-NON QUALIFICATION,V001553641
ROCHDALE BOROUGH COUNCIL,15/06/2020,EARLY HELP AND SCHOOLS,HBL ASSOCIATES LTD,15/06/2020,1495.00 ,CONSULTANTS FEES,V001554053
ROCHDALE BOROUGH COUNCIL,16/06/2020,ADULT CARE LCO FUNCTIONS,HEALTHCARE MANAGEMENT SOLUTIONS,16/06/2020,1032.00 ,RESIDENTIAL LONG TERM,V001554335
ROCHDALE BOROUGH COUNCIL,16/06/2020,ADULT CARE LCO FUNCTIONS,HEALTHCARE MANAGEMENT SOLUTIONS,16/06/2020,1032.00 ,RESIDENTIAL LONG TERM,V001554397
ROCHDALE BOROUGH COUNCIL,16/06/2020,ADULT CARE LCO FUNCTIONS,HEALTHCARE MANAGEMENT SOLUTIONS,16/06/2020,1015.70 ,RESIDENTIAL LONG TERM,V001554553
ROCHDALE BOROUGH COUNCIL,16/06/2020,ADULT CARE LCO FUNCTIONS,HEALTHCARE MANAGEMENT SOLUTIONS,16/06/2020,1032.00 ,RESIDENTIAL LONG TERM,V001554585
ROCHDALE BOROUGH COUNCIL,16/06/2020,ADULT CARE LCO FUNCTIONS,FOUR SEASONS HEALTHCARE,16/06/2020,663.43 ,NURSING LONG TERM,V001554651
ROCHDALE BOROUGH COUNCIL,16/06/2020,ADULT CARE LCO FUNCTIONS,HEALTHCARE MANAGEMENT SOLUTIONS,16/06/2020,1032.00 ,NURSING LONG TERM,V001554766
ROCHDALE BOROUGH COUNCIL,16/06/2020,ADULT CARE LCO FUNCTIONS,HEALTHCARE MANAGEMENT SOLUTIONS,16/06/2020,1032.00 ,RESIDENTIAL LONG TERM,V001554790
ROCHDALE BOROUGH COUNCIL,16/06/2020,ADULT CARE LCO FUNCTIONS,HEALTHCARE MANAGEMENT SOLUTIONS,16/06/2020,1032.00 ,NURSING LONG TERM,V001554955
ROCHDALE BOROUGH COUNCIL,16/06/2020,ADULT CARE LCO FUNCTIONS,HEALTHCARE MANAGEMENT SOLUTIONS,16/06/2020,1032.00 ,RESIDENTIAL LONG TERM,V001555044
ROCHDALE BOROUGH COUNCIL,16/06/2020,ADULT CARE LCO FUNCTIONS,HEALTHCARE MANAGEMENT SOLUTIONS,16/06/2020,1032.00 ,RESIDENTIAL LONG TERM,V001555087
ROCHDALE BOROUGH COUNCIL,16/06/2020,ADULT CARE LCO FUNCTIONS,HEALTHCARE MANAGEMENT SOLUTIONS,16/06/2020,1032.00 ,NURSING LONG TERM,V001555192
ROCHDALE BOROUGH COUNCIL,16/06/2020,ADULT CARE LCO FUNCTIONS,HEALTHCARE MANAGEMENT SOLUTIONS,16/06/2020,1032.00 ,SELF - FUNDING DEFERRED PAYMENTS,V001555225
ROCHDALE BOROUGH COUNCIL,16/06/2020,ADULT CARE LCO FUNCTIONS,HEALTHCARE MANAGEMENT SOLUTIONS,16/06/2020,1032.00 ,RESIDENTIAL LONG TERM,V001555369
ROCHDALE BOROUGH COUNCIL,16/06/2020,ADULT CARE LCO FUNCTIONS,HEALTHCARE MANAGEMENT SOLUTIONS,16/06/2020,1032.00 ,RESIDENTIAL LONG TERM,V001555387
ROCHDALE BOROUGH COUNCIL,16/06/2020,ADULT CARE LCO FUNCTIONS,HEALTHCARE MANAGEMENT SOLUTIONS,16/06/2020,1032.00 ,NURSING LONG TERM,V001555424
ROCHDALE BOROUGH COUNCIL,09/06/2020,NEIGHBOURHOODS AND ENVIRONMENT,ALLIANCE DISPOSABLES LIMITED,09/06/2020,525.00 ,CONSUMABLES,V001555837
ROCHDALE BOROUGH COUNCIL,15/06/2020,NEIGHBOURHOODS AND ENVIRONMENT,SOFTCAT LTD,15/06/2020,-271.30 ,EQUIPMENT - GENERAL,V001555839
ROCHDALE BOROUGH COUNCIL,17/06/2020,CHILDREN�S SOCIAL CARE,MILLENNIUM TRANSLATIONS LTD,17/06/2020,35.00 ,TRANSLATION & INTERPRETATION,V001555907
ROCHDALE BOROUGH COUNCIL,03/06/2020,ECONOMY DIRECTORATE,BABBLE CLOUD LTD,03/06/2020,12.35 ,TELEPHONE EXPENDITURE,V001555952
ROCHDALE BOROUGH COUNCIL,03/06/2020,ECONOMY DIRECTORATE,BABBLE CLOUD LTD,03/06/2020,12.35 ,TELEPHONE EXPENDITURE,V001555953
ROCHDALE BOROUGH COUNCIL,26/06/2020,ADULT CARE LCO FUNCTIONS,PENDLETON CARE LTD,26/06/2020,7949.60 ,PERSONAL BUDGETS - MANAGED,V001556259
ROCHDALE BOROUGH COUNCIL,26/06/2020,ADULT CARE LCO FUNCTIONS,PENDLETON CARE LTD,26/06/2020,1507.84 ,PERSONAL BUDGETS - MANAGED,V001556278
ROCHDALE BOROUGH COUNCIL,26/06/2020,ADULT CARE LCO FUNCTIONS,PENDLETON CARE LTD,26/06/2020,-1605.27 ,PERSONAL BUDGETS - MANAGED,V001556792
ROCHDALE BOROUGH COUNCIL,26/06/2020,ADULT CARE LCO FUNCTIONS,PENDLETON CARE LTD,26/06/2020,-4494.75 ,PERSONAL BUDGETS - MANAGED,V001556793
ROCHDALE BOROUGH COUNCIL,26/06/2020,ADULT CARE LCO FUNCTIONS,PENDLETON CARE LTD,26/06/2020,-4494.75 ,PERSONAL BUDGETS - MANAGED,V001556794
ROCHDALE BOROUGH COUNCIL,26/06/2020,ADULT CARE LCO FUNCTIONS,PENDLETON CARE LTD,26/06/2020,-4494.75 ,PERSONAL BUDGETS - MANAGED,V001556795
ROCHDALE BOROUGH COUNCIL,26/06/2020,ADULT CARE LCO FUNCTIONS,PENDLETON CARE LTD,26/06/2020,-4494.75 ,PERSONAL BUDGETS - MANAGED,V001556796
ROCHDALE BOROUGH COUNCIL,26/06/2020,ADULT CARE LCO FUNCTIONS,PENDLETON CARE LTD,26/06/2020,-4494.75 ,PERSONAL BUDGETS - MANAGED,V001556797
ROCHDALE BOROUGH COUNCIL,26/06/2020,ADULT CARE LCO FUNCTIONS,PENDLETON CARE LTD,26/06/2020,-4609.75 ,PERSONAL BUDGETS - MANAGED,V001556798
ROCHDALE BOROUGH COUNCIL,02/06/2020,PROPERTY AND HIGHWAYS,CALEDONIAN LIFTS MANCHESTER LTD,02/06/2020,-90.00 ,PROPERTY - WORKS ELEMENT,V001557242
ROCHDALE BOROUGH COUNCIL,22/06/2020,CHILDREN�S SOCIAL CARE,MILLENNIUM TRANSLATIONS LTD,22/06/2020,28.00 ,TRANSLATION & INTERPRETATION,V001557247
ROCHDALE BOROUGH COUNCIL,15/06/2020,RESOURCES,JACOBS,15/06/2020,1056.74 ,BAILIFFS,V001557592
ROCHDALE BOROUGH COUNCIL,15/06/2020,RESOURCES,JACOBS,15/06/2020,0.00 ,INPUT VAT -  ADJUSTMENTS,V001557592
ROCHDALE BOROUGH COUNCIL,01/06/2020,NEIGHBOURHOODS AND ENVIRONMENT,EVERYTHING EVERYWHERE LIMITED,01/06/2020,6484.47 ,TRANSACTIONS-EXPENDITURE,V001557609
ROCHDALE BOROUGH COUNCIL,01/06/2020,NEIGHBOURHOODS AND ENVIRONMENT,EVERYTHING EVERYWHERE LIMITED,01/06/2020,135.33 ,TRANSACTIONS-EXPENDITURE,V001557609
ROCHDALE BOROUGH COUNCIL,22/06/2020,CHILDREN�S SOCIAL CARE,MILLENNIUM TRANSLATIONS LTD,22/06/2020,24.00 ,TRANSLATION & INTERPRETATION,V001557637
ROCHDALE BOROUGH COUNCIL,22/06/2020,CHILDREN�S SOCIAL CARE,MILLENNIUM TRANSLATIONS LTD,22/06/2020,26.40 ,TRANSLATION & INTERPRETATION,V001557640
ROCHDALE BOROUGH COUNCIL,02/06/2020,BETTER CARE FUND POOLED BUDGET,PENNINE CARE NHS,02/06/2020,-8385.67 ,CONTRACTS,V001557672
ROCHDALE BOROUGH COUNCIL,04/06/2020,NEIGHBOURHOODS AND ENVIRONMENT,GTM ELECTRICAL SERVICES LIMITED,04/06/2020,70.00 ,REPAIRS & ALTS OF BUILDINGS,V001557745
ROCHDALE BOROUGH COUNCIL,05/06/2020,CHILDREN�S SOCIAL CARE,CHANGES SUPPORT LTD,05/06/2020,3580.00 ,YOUNG PEOPLES RENTS,V001557758
ROCHDALE BOROUGH COUNCIL,05/06/2020,CHILDREN�S SOCIAL CARE,CHANGES SUPPORT LTD,05/06/2020,232.60 ,YOUNGE PERSONS ALLOWANCE,V001557758
ROCHDALE BOROUGH COUNCIL,02/06/2020,NEIGHBOURHOODS AND ENVIRONMENT,TELESHORE UK LTD,02/06/2020,148.00 ,MATERIAL - GENERAL,V001557853
ROCHDALE BOROUGH COUNCIL,02/06/2020,CHILDREN�S SOCIAL CARE,STEP AHEAD,02/06/2020,1200.00 ,YOUNG PEOPLES RENTS,V001557877
ROCHDALE BOROUGH COUNCIL,19/06/2020,CHILDREN�S SOCIAL CARE,STEP AHEAD,19/06/2020,1200.00 ,YOUNG PEOPLES RENTS,V001557901
ROCHDALE BOROUGH COUNCIL,23/06/2020,CHILDREN�S SOCIAL CARE,STEP AHEAD,23/06/2020,1200.00 ,YOUNG PEOPLES RENTS,V001557902
ROCHDALE BOROUGH COUNCIL,02/06/2020,CHILDREN�S SOCIAL CARE,STEP AHEAD,02/06/2020,57.90 ,YOUNGE PERSONS ALLOWANCE,V001558066
ROCHDALE BOROUGH COUNCIL,02/06/2020,CHILDREN�S SOCIAL CARE,STEP AHEAD,02/06/2020,57.90 ,YOUNGE PERSONS ALLOWANCE,V001558067
ROCHDALE BOROUGH COUNCIL,02/06/2020,CHILDREN�S SOCIAL CARE,STEP AHEAD,02/06/2020,57.90 ,YOUNGE PERSONS ALLOWANCE,V001558068
ROCHDALE BOROUGH COUNCIL,02/06/2020,CHILDREN�S SOCIAL CARE,STEP AHEAD,02/06/2020,57.90 ,YOUNGE PERSONS ALLOWANCE,V001558069
ROCHDALE BOROUGH COUNCIL,22/06/2020,CHILDREN�S SOCIAL CARE,STEP AHEAD,22/06/2020,57.90 ,YOUNGE PERSONS ALLOWANCE,V001558070
ROCHDALE BOROUGH COUNCIL,09/06/2020,PROPERTY AND HIGHWAYS,A A ARNOLD LIMITED,09/06/2020,254.00 ,MINOR BUILDING WORKS,V001558102
ROCHDALE BOROUGH COUNCIL,26/06/2020,ADULT CARE LCO FUNCTIONS,PENDLETON CARE LTD,26/06/2020,467.36 ,HOME CARE - ADULT SERVICES,V001558146
ROCHDALE BOROUGH COUNCIL,26/06/2020,ADULT CARE LCO FUNCTIONS,PENDLETON CARE LTD,26/06/2020,1635.76 ,HOME CARE - ADULT SERVICES,V001558379
ROCHDALE BOROUGH COUNCIL,26/06/2020,ADULT CARE LCO FUNCTIONS,PENDLETON CARE LTD,26/06/2020,776.68 ,RESIDENTIAL LONG TERM,V001559109
ROCHDALE BOROUGH COUNCIL,16/06/2020,ADULT CARE LCO FUNCTIONS,MARTON CARE HOMES,16/06/2020,1054.00 ,RESIDENTIAL LONG TERM,V001559119
ROCHDALE BOROUGH COUNCIL,16/06/2020,ADULT CARE LCO FUNCTIONS,MARTON CARE HOMES,16/06/2020,30.00 ,RESIDENTIAL & NURSING TOP UP EXPENDITURE,V001559120
ROCHDALE BOROUGH COUNCIL,16/06/2020,ADULT CARE LCO FUNCTIONS,MARTON CARE HOMES,16/06/2020,1054.00 ,RESIDENTIAL LONG TERM,V001559142
ROCHDALE BOROUGH COUNCIL,16/06/2020,ADULT CARE LCO FUNCTIONS,HEALTHCARE MANAGEMENT SOLUTIONS,16/06/2020,1032.00 ,RESIDENTIAL LONG TERM,V001559166
ROCHDALE BOROUGH COUNCIL,16/06/2020,ADULT CARE LCO FUNCTIONS,MARTON CARE HOMES,16/06/2020,1054.00 ,RESIDENTIAL LONG TERM,V001559212
ROCHDALE BOROUGH COUNCIL,16/06/2020,ADULT CARE LCO FUNCTIONS,MARTON CARE HOMES,16/06/2020,1054.00 ,RESIDENTIAL LONG TERM,V001559220
ROCHDALE BOROUGH COUNCIL,16/06/2020,ADULT CARE LCO FUNCTIONS,HEALTHCARE MANAGEMENT SOLUTIONS,16/06/2020,1032.00 ,RESIDENTIAL LONG TERM,V001559225
ROCHDALE BOROUGH COUNCIL,16/06/2020,ADULT CARE LCO FUNCTIONS,MARTON CARE HOMES,16/06/2020,1054.00 ,RESIDENTIAL LONG TERM,V001559244
ROCHDALE BOROUGH COUNCIL,16/06/2020,ADULT CARE LCO FUNCTIONS,MARTON CARE HOMES,16/06/2020,1054.00 ,RESIDENTIAL LONG TERM,V001559255
ROCHDALE BOROUGH COUNCIL,16/06/2020,ADULT CARE LCO FUNCTIONS,MARTON CARE HOMES,16/06/2020,1054.00 ,RESIDENTIAL LONG TERM,V001559278
ROCHDALE BOROUGH COUNCIL,16/06/2020,ADULT CARE LCO FUNCTIONS,MARTON CARE HOMES,16/06/2020,1054.00 ,RESIDENTIAL LONG TERM,V001559312
ROCHDALE BOROUGH COUNCIL,16/06/2020,ADULT CARE LCO FUNCTIONS,MARTON CARE HOMES,16/06/2020,30.00 ,RESIDENTIAL & NURSING TOP UP EXPENDITURE,V001559313
ROCHDALE BOROUGH COUNCIL,16/06/2020,ADULT CARE LCO FUNCTIONS,HEALTHCARE MANAGEMENT SOLUTIONS,16/06/2020,1015.70 ,RESIDENTIAL LONG TERM,V001559375
ROCHDALE BOROUGH COUNCIL,16/06/2020,ADULT CARE LCO FUNCTIONS,HEALTHCARE MANAGEMENT SOLUTIONS,16/06/2020,1032.00 ,RESIDENTIAL LONG TERM,V001559405
ROCHDALE BOROUGH COUNCIL,16/06/2020,ADULT CARE LCO FUNCTIONS,MARTON CARE HOMES,16/06/2020,1054.00 ,RESIDENTIAL LONG TERM,V001559455
ROCHDALE BOROUGH COUNCIL,16/06/2020,ADULT CARE LCO FUNCTIONS,MARTON CARE HOMES,16/06/2020,1054.00 ,RESIDENTIAL LONG TERM,V001559476
ROCHDALE BOROUGH COUNCIL,16/06/2020,ADULT CARE LCO FUNCTIONS,HEALTHCARE MANAGEMENT SOLUTIONS,16/06/2020,1032.00 ,NURSING LONG TERM,V001559534
ROCHDALE BOROUGH COUNCIL,16/06/2020,ADULT CARE LCO FUNCTIONS,HEALTHCARE MANAGEMENT SOLUTIONS,16/06/2020,1032.00 ,RESIDENTIAL LONG TERM,V001559558
ROCHDALE BOROUGH COUNCIL,16/06/2020,ADULT CARE LCO FUNCTIONS,MARTON CARE HOMES,16/06/2020,20.00 ,RESIDENTIAL & NURSING TOP UP EXPENDITURE,V001559633
ROCHDALE BOROUGH COUNCIL,16/06/2020,ADULT CARE LCO FUNCTIONS,MARTON CARE HOMES,16/06/2020,1054.00 ,RESIDENTIAL LONG TERM,V001559634
ROCHDALE BOROUGH COUNCIL,16/06/2020,ADULT CARE LCO FUNCTIONS,MARTON CARE HOMES,16/06/2020,1054.00 ,RESIDENTIAL LONG TERM,V001559655
ROCHDALE BOROUGH COUNCIL,16/06/2020,ADULT CARE LCO FUNCTIONS,MARTON CARE HOMES,16/06/2020,1054.00 ,RESIDENTIAL LONG TERM,V001559685
ROCHDALE BOROUGH COUNCIL,16/06/2020,ADULT CARE LCO FUNCTIONS,MARTON CARE HOMES,16/06/2020,1054.00 ,RESIDENTIAL LONG TERM,V001559698
ROCHDALE BOROUGH COUNCIL,16/06/2020,ADULT CARE LCO FUNCTIONS,HEALTHCARE MANAGEMENT SOLUTIONS,16/06/2020,1032.00 ,NURSING LONG TERM,V001559713
ROCHDALE BOROUGH COUNCIL,16/06/2020,ADULT CARE LCO FUNCTIONS,HEALTHCARE MANAGEMENT SOLUTIONS,16/06/2020,1032.00 ,RESIDENTIAL LONG TERM,V001559781
ROCHDALE BOROUGH COUNCIL,16/06/2020,ADULT CARE LCO FUNCTIONS,FOUR SEASONS HEALTHCARE,16/06/2020,663.43 ,RESIDENTIAL LONG TERM,V001559796
ROCHDALE BOROUGH COUNCIL,16/06/2020,ADULT CARE LCO FUNCTIONS,HEALTHCARE MANAGEMENT SOLUTIONS,16/06/2020,1032.00 ,RESIDENTIAL LONG TERM,V001559818
ROCHDALE BOROUGH COUNCIL,16/06/2020,ADULT CARE LCO FUNCTIONS,MARTON CARE HOMES,16/06/2020,1032.00 ,RESIDENTIAL LONG TERM,V001559819
ROCHDALE BOROUGH COUNCIL,16/06/2020,ADULT CARE LCO FUNCTIONS,HEALTHCARE MANAGEMENT SOLUTIONS,16/06/2020,1032.00 ,NURSING LONG TERM,V001559914
ROCHDALE BOROUGH COUNCIL,16/06/2020,ADULT CARE LCO FUNCTIONS,MARTON CARE HOMES,16/06/2020,1054.00 ,RESIDENTIAL LONG TERM,V001559916
ROCHDALE BOROUGH COUNCIL,16/06/2020,ADULT CARE LCO FUNCTIONS,MARTON CARE HOMES,16/06/2020,20.00 ,RESIDENTIAL & NURSING TOP UP EXPENDITURE,V001559917
ROCHDALE BOROUGH COUNCIL,16/06/2020,ADULT CARE LCO FUNCTIONS,HEALTHCARE MANAGEMENT SOLUTIONS,16/06/2020,1032.00 ,SELF - FUNDING DEFERRED PAYMENTS,V001559944
ROCHDALE BOROUGH COUNCIL,16/06/2020,ADULT CARE LCO FUNCTIONS,MARTON CARE HOMES,16/06/2020,1054.00 ,RESIDENTIAL LONG TERM,V001559989
ROCHDALE BOROUGH COUNCIL,16/06/2020,ADULT CARE LCO FUNCTIONS,MARTON CARE HOMES,16/06/2020,1054.00 ,RESIDENTIAL LONG TERM,V001560000
ROCHDALE BOROUGH COUNCIL,16/06/2020,ADULT CARE LCO FUNCTIONS,MARTON CARE HOMES,16/06/2020,1054.00 ,RESIDENTIAL LONG TERM,V001560014
ROCHDALE BOROUGH COUNCIL,16/06/2020,ADULT CARE LCO FUNCTIONS,HEALTHCARE MANAGEMENT SOLUTIONS,16/06/2020,1032.00 ,RESIDENTIAL LONG TERM,V001560090
ROCHDALE BOROUGH COUNCIL,16/06/2020,ADULT CARE LCO FUNCTIONS,MARTON CARE HOMES,16/06/2020,1054.00 ,RESIDENTIAL LONG TERM,V001560103
ROCHDALE BOROUGH COUNCIL,16/06/2020,ADULT CARE LCO FUNCTIONS,HEALTHCARE MANAGEMENT SOLUTIONS,16/06/2020,1032.00 ,RESIDENTIAL LONG TERM,V001560107
ROCHDALE BOROUGH COUNCIL,16/06/2020,ADULT CARE LCO FUNCTIONS,MARTON CARE HOMES,16/06/2020,1054.00 ,RESIDENTIAL LONG TERM,V001560121
ROCHDALE BOROUGH COUNCIL,16/06/2020,ADULT CARE LCO FUNCTIONS,HEALTHCARE MANAGEMENT SOLUTIONS,16/06/2020,1032.00 ,NURSING LONG TERM,V001560146
ROCHDALE BOROUGH COUNCIL,16/06/2020,ADULT CARE LCO FUNCTIONS,MARTON CARE HOMES,16/06/2020,1032.00 ,RESIDENTIAL LONG TERM,V001560152
ROCHDALE BOROUGH COUNCIL,16/06/2020,ADULT CARE LCO FUNCTIONS,MARTON CARE HOMES,16/06/2020,40.00 ,RESIDENTIAL & NURSING TOP UP EXPENDITURE,V001560153
ROCHDALE BOROUGH COUNCIL,16/06/2020,ADULT CARE LCO FUNCTIONS,MARTON CARE HOMES,16/06/2020,350.71 ,SHORT TERM CARE - RESIDENTIAL,V001560159
ROCHDALE BOROUGH COUNCIL,16/06/2020,ADULT CARE LCO FUNCTIONS,MARTON CARE HOMES,16/06/2020,982.00 ,SHORT TERM CARE - RESIDENTIAL,V001560160
ROCHDALE BOROUGH COUNCIL,16/06/2020,ADULT CARE LCO FUNCTIONS,MARTON CARE HOMES,16/06/2020,982.00 ,SHORT TERM CARE - RESIDENTIAL,V001560161
ROCHDALE BOROUGH COUNCIL,16/06/2020,ADULT CARE LCO FUNCTIONS,MARTON CARE HOMES,16/06/2020,1032.00 ,SHORT TERM CARE - RESIDENTIAL,V001560162
ROCHDALE BOROUGH COUNCIL,16/06/2020,ADULT CARE LCO FUNCTIONS,MARTON CARE HOMES,16/06/2020,1032.00 ,SHORT TERM CARE - RESIDENTIAL,V001560163
ROCHDALE BOROUGH COUNCIL,16/06/2020,ADULT CARE LCO FUNCTIONS,MARTON CARE HOMES,16/06/2020,1054.00 ,RESIDENTIAL LONG TERM,V001560192
ROCHDALE BOROUGH COUNCIL,16/06/2020,ADULT CARE LCO FUNCTIONS,FOUR SEASONS HEALTHCARE,16/06/2020,1032.00 ,ASSESSMENT CARE,V001560268
ROCHDALE BOROUGH COUNCIL,16/06/2020,ADULT CARE LCO FUNCTIONS,FOUR SEASONS HEALTHCARE,16/06/2020,1032.00 ,ASSESSMENT CARE,V001560270
ROCHDALE BOROUGH COUNCIL,05/06/2020,ADULT CARE LCO FUNCTIONS,REDACTED - PERSONAL DATA,05/06/2020,677.68 ,DIRECT PAYMENTS,V001560601
ROCHDALE BOROUGH COUNCIL,05/06/2020,ADULT CARE LCO FUNCTIONS,REDACTED - PERSONAL DATA,05/06/2020,-34.05 ,CLIENTS CONTRIBUTIONS COMMUNITY CARE,V001560602
ROCHDALE BOROUGH COUNCIL,05/06/2020,ADULT CARE LCO FUNCTIONS,REDACTED - PERSONAL DATA,05/06/2020,-136.20 ,CLIENTS CONTRIBUTIONS COMMUNITY CARE,V001560603
ROCHDALE BOROUGH COUNCIL,05/06/2020,ADULT CARE LCO FUNCTIONS,REDACTED - PERSONAL DATA,05/06/2020,-540.80 ,CLIENTS CONTRIBUTIONS COMMUNITY CARE,V001560604
ROCHDALE BOROUGH COUNCIL,04/06/2020,ADULT CARE LCO FUNCTIONS,B AND M WASTE SERVICES,04/06/2020,36.15 ,CONTRACTED SERVICES,V001561625
ROCHDALE BOROUGH COUNCIL,04/06/2020,ADULT CARE LCO FUNCTIONS,B AND M WASTE SERVICES,04/06/2020,5.82 ,REFUSE DISPOSAL,V001561625
ROCHDALE BOROUGH COUNCIL,01/06/2020,CHILDREN�S SOCIAL CARE,THREE CIRCLES FOSTERING,01/06/2020,2736.00 ,FOSTER PARENTS BASIC ALLOWANCE,V001561637
ROCHDALE BOROUGH COUNCIL,01/06/2020,CHILDREN�S SOCIAL CARE,THREE CIRCLES FOSTERING,01/06/2020,684.00 ,FOSTER PARENTS BASIC ALLOWANCE,V001561637
ROCHDALE BOROUGH COUNCIL,01/06/2020,CHILDREN�S SOCIAL CARE,THREE CIRCLES FOSTERING,01/06/2020,672.86 ,FOSTER PARENTS BASIC ALLOWANCE,V001561638
ROCHDALE BOROUGH COUNCIL,01/06/2020,CHILDREN�S SOCIAL CARE,THREE CIRCLES FOSTERING,01/06/2020,2691.43 ,FOSTER PARENTS BASIC ALLOWANCE,V001561638
ROCHDALE BOROUGH COUNCIL,17/06/2020,ECONOMY DIRECTORATE,BROADWAY MALYAN LTD,17/06/2020,2800.00 ,SITE INVESTIGATION,V001561646
ROCHDALE BOROUGH COUNCIL,23/06/2020,CHILDREN�S SOCIAL CARE,COURTYARD CARE LIMITED,23/06/2020,16363.66 ,EBD (EMOT & BEHAV DIFF) PLACEMENTS,V001561672
ROCHDALE BOROUGH COUNCIL,16/06/2020,ADULT CARE LCO FUNCTIONS,FOUR SEASONS HEALTHCARE,16/06/2020,442.29 ,SHORT TERM CARE - RESIDENTIAL,V001561723
ROCHDALE BOROUGH COUNCIL,16/06/2020,ADULT CARE LCO FUNCTIONS,FOUR SEASONS HEALTHCARE,16/06/2020,1032.00 ,SHORT TERM CARE - RESIDENTIAL,V001561724
ROCHDALE BOROUGH COUNCIL,25/06/2020,NEIGHBOURHOODS AND ENVIRONMENT,CIVICA UK LIMITED,25/06/2020,132.92 ,SUBSCRIPTIONS,V001561990
ROCHDALE BOROUGH COUNCIL,25/06/2020,NEIGHBOURHOODS AND ENVIRONMENT,CIVICA UK LIMITED,25/06/2020,1575.51 ,SUBSCRIPTIONS,V001561990
ROCHDALE BOROUGH COUNCIL,03/06/2020,CHILDREN�S SOCIAL CARE,BALTIMORE CONSULTING LTD,03/06/2020,5250.00 ,AGENCY STAFF,V001562043
ROCHDALE BOROUGH COUNCIL,18/06/2020,RESOURCES,DATA SPACE LTD,18/06/2020,0.93 ,DATA COLLECTION,V001562063
ROCHDALE BOROUGH COUNCIL,15/06/2020,CHILDREN�S SOCIAL CARE,FLYING COLOURS,15/06/2020,4185.00 ,FOSTER PARENTS BASIC ALLOWANCE,V001562146
ROCHDALE BOROUGH COUNCIL,25/06/2020,CHILDREN�S SOCIAL CARE,EXCEL FOSTERING,25/06/2020,5535.67 ,FOSTER PARENTS BASIC ALLOWANCE,V001562158
ROCHDALE BOROUGH COUNCIL,12/06/2020,CHILDREN�S SOCIAL CARE,COMPASS CHILDRENS HOMES LTD,12/06/2020,23117.01 ,EBD (EMOT & BEHAV DIFF) PLACEMENTS,V001562159
ROCHDALE BOROUGH COUNCIL,16/06/2020,PROPERTY AND HIGHWAYS,ABBEY ARCHITECTURAL IRONMONGERY CO LTD,16/06/2020,-26.05 ,PROPERTY - WORKS ELEMENT,V001562184
ROCHDALE BOROUGH COUNCIL,18/06/2020,CHILDREN�S SOCIAL CARE,MILLENNIUM TRANSLATIONS LTD,18/06/2020,15.20 ,TRANSLATION & INTERPRETATION,V001562299
ROCHDALE BOROUGH COUNCIL,05/06/2020,RESOURCES,PHOENIX COMMERCIAL COLLECTIONS LIMITED,05/06/2020,0.00 ,INPUT VAT -  ADJUSTMENTS,V001562402
ROCHDALE BOROUGH COUNCIL,05/06/2020,RESOURCES,PHOENIX COMMERCIAL COLLECTIONS LIMITED,05/06/2020,0.00 ,INPUT VAT -  ADJUSTMENTS,V001562402
ROCHDALE BOROUGH COUNCIL,10/06/2020,ECONOMY DIRECTORATE,BABBLE CLOUD LTD,10/06/2020,12.35 ,COMMUNICATION AND COMPUTING - GENERAL,V001562407
ROCHDALE BOROUGH COUNCIL,17/06/2020,ECONOMY DIRECTORATE,BLOOM PROCUREMENT SERVICES LTD,17/06/2020,16130.63 ,CONSULTANTS FEES,V001562422
ROCHDALE BOROUGH COUNCIL,22/06/2020,CHILDREN�S SOCIAL CARE,MILLENNIUM TRANSLATIONS LTD,22/06/2020,24.80 ,TRANSLATION & INTERPRETATION,V001562459
ROCHDALE BOROUGH COUNCIL,02/06/2020,CHILDREN�S SOCIAL CARE,STEP AHEAD,02/06/2020,1200.00 ,YOUNG PEOPLES RENTS,V001562718
ROCHDALE BOROUGH COUNCIL,15/06/2020,CHILDREN�S SOCIAL CARE,CHANGES SUPPORT LTD,15/06/2020,3580.00 ,YOUNG PEOPLES RENTS,V001562741
ROCHDALE BOROUGH COUNCIL,15/06/2020,CHILDREN�S SOCIAL CARE,CHANGES SUPPORT LTD,15/06/2020,660.00 ,YOUNGE PERSONS ALLOWANCE,V001562741
ROCHDALE BOROUGH COUNCIL,15/06/2020,CHILDREN�S SOCIAL CARE,CHANGES SUPPORT LTD,15/06/2020,174.70 ,YOUNG PEOPLES RENTS,V001562741
ROCHDALE BOROUGH COUNCIL,15/06/2020,CHILDREN�S SOCIAL CARE,CHANGES SUPPORT LTD,15/06/2020,3580.00 ,YOUNG PEOPLES RENTS,V001562742
ROCHDALE BOROUGH COUNCIL,15/06/2020,CHILDREN�S SOCIAL CARE,CHANGES SUPPORT LTD,15/06/2020,1056.00 ,YOUNGE PERSONS ALLOWANCE,V001562742
ROCHDALE BOROUGH COUNCIL,15/06/2020,CHILDREN�S SOCIAL CARE,CHANGES SUPPORT LTD,15/06/2020,235.60 ,YOUNG PEOPLES RENTS,V001562742
ROCHDALE BOROUGH COUNCIL,18/06/2020,NEIGHBOURHOODS AND ENVIRONMENT,FRANCOTYP POSTALIA LTD - POSTAGE,18/06/2020,-10.52 ,HIRE OF EQUIPMENT,V001562768
ROCHDALE BOROUGH COUNCIL,09/06/2020,CHILDREN�S SOCIAL CARE,BALTIMORE CONSULTING LTD,09/06/2020,3281.25 ,AGENCY STAFF,V001562773
ROCHDALE BOROUGH COUNCIL,02/06/2020,CHILDREN�S SOCIAL CARE,MILLENNIUM TRANSLATIONS LTD,02/06/2020,27.20 ,TRANSLATION & INTERPRETATION,V001563484
ROCHDALE BOROUGH COUNCIL,18/06/2020,CHILDREN�S SOCIAL CARE,MILLENNIUM TRANSLATIONS LTD,18/06/2020,72.00 ,TRANSLATION & INTERPRETATION,V001563485
ROCHDALE BOROUGH COUNCIL,22/06/2020,CHILDREN�S SOCIAL CARE,MILLENNIUM TRANSLATIONS LTD,22/06/2020,9.60 ,TRANSLATION & INTERPRETATION,V001563495
ROCHDALE BOROUGH COUNCIL,22/06/2020,CHILDREN�S SOCIAL CARE,MILLENNIUM TRANSLATIONS LTD,22/06/2020,77.60 ,TRANSLATION & INTERPRETATION,V001563503
ROCHDALE BOROUGH COUNCIL,18/06/2020,CHILDREN�S SOCIAL CARE,MILLENNIUM TRANSLATIONS LTD,18/06/2020,16.80 ,TRANSLATION & INTERPRETATION,V001563508
ROCHDALE BOROUGH COUNCIL,02/06/2020,CHILDREN�S SOCIAL CARE,MILLENNIUM TRANSLATIONS LTD,02/06/2020,55.20 ,TRANSLATION & INTERPRETATION,V001563509
ROCHDALE BOROUGH COUNCIL,05/06/2020,CHILDREN�S SOCIAL CARE,BARNARDOS,05/06/2020,3365.71 ,FOSTER PARENTS BASIC ALLOWANCE,V001563584
ROCHDALE BOROUGH COUNCIL,04/06/2020,EARLY HELP AND SCHOOLS,BYRCHALL HIGH SCHOOL,04/06/2020,700.00 ,INDEPENDENT UNITS,V001563753
ROCHDALE BOROUGH COUNCIL,16/06/2020,EARLY HELP AND SCHOOLS,BLOOM PROCUREMENT SERVICES LTD,16/06/2020,2640.00 ,MINOR BUILDING WORKS,V001563764
ROCHDALE BOROUGH COUNCIL,12/06/2020,CHILDREN�S SOCIAL CARE,INTACT PROJECTS LTD,12/06/2020,231.60 ,YOUNGE PERSONS ALLOWANCE,V001563765
ROCHDALE BOROUGH COUNCIL,12/06/2020,CHILDREN�S SOCIAL CARE,INTACT PROJECTS LTD,12/06/2020,231.60 ,YOUNG PEOPLES RENTS,V001563766
ROCHDALE BOROUGH COUNCIL,01/06/2020,NEIGHBOURHOODS AND ENVIRONMENT,COACH OPTIONS LIMITED,01/06/2020,-891.24 ,TAXI HIRE,V001563774
ROCHDALE BOROUGH COUNCIL,08/06/2020,ECONOMY DIRECTORATE,IRWELL STREET METALS,08/06/2020,16.26 ,REFUSE DISPOSAL,V001563775
ROCHDALE BOROUGH COUNCIL,02/06/2020,CHILDREN�S SOCIAL CARE,MILLENNIUM TRANSLATIONS LTD,02/06/2020,72.00 ,TRANSLATION & INTERPRETATION,V001563874
ROCHDALE BOROUGH COUNCIL,02/06/2020,CHILDREN�S SOCIAL CARE,MILLENNIUM TRANSLATIONS LTD,02/06/2020,48.00 ,TRANSLATION & INTERPRETATION,V001563875
ROCHDALE BOROUGH COUNCIL,29/06/2020,ECONOMY DIRECTORATE,REACH PUBLISHING SERVICES LTD,29/06/2020,50.67 ,PUBLIC NOTICES,V001563895
ROCHDALE BOROUGH COUNCIL,05/06/2020,RESOURCES,SPECIALIST COMPUTER CENTRES PLC,05/06/2020,82.76 ,IT EQUIPMENT,V001563920
ROCHDALE BOROUGH COUNCIL,23/06/2020,NEIGHBOURHOODS AND ENVIRONMENT,DAISY COMMUNICATIONS LTD,23/06/2020,5323.96 ,MOBILE PHONE,V001563923
ROCHDALE BOROUGH COUNCIL,29/06/2020,EARLY HELP AND SCHOOLS,P N S LANDSCAPES,29/06/2020,61.25 ,GROUNDS MAINTENANCE GENERAL,V001563960
ROCHDALE BOROUGH COUNCIL,15/06/2020,EARLY HELP AND SCHOOLS,SOFTCAT LTD,15/06/2020,27.96 ,SOFTWARE,V001563990
ROCHDALE BOROUGH COUNCIL,15/06/2020,EARLY HELP AND SCHOOLS,SOFTCAT LTD,15/06/2020,7.06 ,SOFTWARE,V001563990
ROCHDALE BOROUGH COUNCIL,01/06/2020,NEIGHBOURHOODS AND ENVIRONMENT,WILKES VENDING SERVICES LIMITED,01/06/2020,4.06 ,VENDING MACHINES,V001563994
ROCHDALE BOROUGH COUNCIL,01/06/2020,NEIGHBOURHOODS AND ENVIRONMENT,WILKES VENDING SERVICES LIMITED,01/06/2020,4.06 ,VENDING MACHINES,V001563994
ROCHDALE BOROUGH COUNCIL,01/06/2020,NEIGHBOURHOODS AND ENVIRONMENT,WILKES VENDING SERVICES LIMITED,01/06/2020,167.94 ,VENDING MACHINES,V001563994
ROCHDALE BOROUGH COUNCIL,01/06/2020,NEIGHBOURHOODS AND ENVIRONMENT,WILKES VENDING SERVICES LIMITED,01/06/2020,167.94 ,VENDING MACHINES,V001563994
ROCHDALE BOROUGH COUNCIL,02/06/2020,PROPERTY AND HIGHWAYS,PTSG ELECTRICAL SERVICES LTD,02/06/2020,522.00 ,ELECTRICAL,V001564004
ROCHDALE BOROUGH COUNCIL,05/06/2020,NEIGHBOURHOODS AND ENVIRONMENT,ACS BUSINESS SUPPLIES,05/06/2020,-4.54 ,PRINTING & STATIONERY,V001564031
ROCHDALE BOROUGH COUNCIL,05/06/2020,NEIGHBOURHOODS AND ENVIRONMENT,MANTRA LEARNING LTD,05/06/2020,-90.00 ,TRAINING-NON QUALIFICATION,V001564039
ROCHDALE BOROUGH COUNCIL,05/06/2020,NEIGHBOURHOODS AND ENVIRONMENT,MANTRA LEARNING LTD,05/06/2020,-30.00 ,TRAINING-NON QUALIFICATION,V001564040
ROCHDALE BOROUGH COUNCIL,05/06/2020,NEIGHBOURHOODS AND ENVIRONMENT,MANTRA LEARNING LTD,05/06/2020,-247.00 ,TRAINING-NON QUALIFICATION,V001564041
ROCHDALE BOROUGH COUNCIL,05/06/2020,NEIGHBOURHOODS AND ENVIRONMENT,MANTRA LEARNING LTD,05/06/2020,-2520.00 ,TRAINING-NON QUALIFICATION,V001564042
ROCHDALE BOROUGH COUNCIL,11/06/2020,NEIGHBOURHOODS AND ENVIRONMENT,MANTRA LEARNING LTD,11/06/2020,-82.33 ,TRAINING-NON QUALIFICATION,V001564043
ROCHDALE BOROUGH COUNCIL,12/06/2020,NEIGHBOURHOODS AND ENVIRONMENT,MANTRA LEARNING LTD,12/06/2020,-840.00 ,TRAINING-NON QUALIFICATION,V001564044
ROCHDALE BOROUGH COUNCIL,05/06/2020,EARLY HELP AND SCHOOLS,FINDEL EDUCATION LIMITED,05/06/2020,6.49 ,EQUIPMENT - GENERAL,V001564059
ROCHDALE BOROUGH COUNCIL,03/06/2020,NEIGHBOURHOODS AND ENVIRONMENT,WHISTL UK LTD,03/06/2020,56.54 ,TRANSACTIONS-EXPENDITURE,V001564062
ROCHDALE BOROUGH COUNCIL,15/06/2020,NEIGHBOURHOODS AND ENVIRONMENT,UPDATA INFRASTRUCTURE UK LTD,15/06/2020,12750.00 ,COMMUNICATION AND COMPUTING - GENERAL,V001564078
ROCHDALE BOROUGH COUNCIL,16/06/2020,EARLY HELP AND SCHOOLS,P N S LANDSCAPES,16/06/2020,122.50 ,GROUNDS MAINTENANCE GENERAL,V001564080
ROCHDALE BOROUGH COUNCIL,25/06/2020,NEIGHBOURHOODS AND ENVIRONMENT,GTM ELECTRICAL SERVICES LIMITED,25/06/2020,3505.87 ,REPAIRS & ALTS OF BUILDINGS,V001564086
ROCHDALE BOROUGH COUNCIL,18/06/2020,EARLY HELP AND SCHOOLS,DATA SPACE LTD,18/06/2020,0.60 ,DATA COLLECTION,V001564093
ROCHDALE BOROUGH COUNCIL,18/06/2020,RESOURCES,DATA SPACE LTD,18/06/2020,39.29 ,DATA COLLECTION,V001564094
ROCHDALE BOROUGH COUNCIL,12/06/2020,RESOURCES,DATA SPACE LTD,12/06/2020,6.20 ,DATA COLLECTION,V001564097
ROCHDALE BOROUGH COUNCIL,12/06/2020,NEIGHBOURHOODS AND ENVIRONMENT,AQUACOOL LTD,12/06/2020,25.50 ,EQUIPMENT - GENERAL,V001564101
ROCHDALE BOROUGH COUNCIL,16/06/2020,ADULT CARE LCO FUNCTIONS,MARTON CARE HOMES,16/06/2020,1054.00 ,RESIDENTIAL LONG TERM,V001564251
ROCHDALE BOROUGH COUNCIL,16/06/2020,ADULT CARE LCO FUNCTIONS,MARTON CARE HOMES,16/06/2020,30.00 ,RESIDENTIAL & NURSING TOP UP EXPENDITURE,V001564252
ROCHDALE BOROUGH COUNCIL,16/06/2020,ADULT CARE LCO FUNCTIONS,MARTON CARE HOMES,16/06/2020,1054.00 ,RESIDENTIAL LONG TERM,V001564270
ROCHDALE BOROUGH COUNCIL,16/06/2020,ADULT CARE LCO FUNCTIONS,HEALTHCARE MANAGEMENT SOLUTIONS,16/06/2020,1032.00 ,RESIDENTIAL LONG TERM,V001564289
ROCHDALE BOROUGH COUNCIL,15/06/2020,ADULT CARE LCO FUNCTIONS,ROCHCARE UK LTD,15/06/2020,297.14 ,RESIDENTIAL LONG TERM,V001564292
ROCHDALE BOROUGH COUNCIL,15/06/2020,ADULT CARE LCO FUNCTIONS,ROCHCARE UK LTD,15/06/2020,1040.00 ,RESIDENTIAL LONG TERM,V001564293
ROCHDALE BOROUGH COUNCIL,15/06/2020,ADULT CARE LCO FUNCTIONS,ROCHCARE UK LTD,15/06/2020,1040.00 ,RESIDENTIAL LONG TERM,V001564294
ROCHDALE BOROUGH COUNCIL,15/06/2020,ADULT CARE LCO FUNCTIONS,ROCHCARE UK LTD,15/06/2020,1040.00 ,RESIDENTIAL LONG TERM,V001564295
ROCHDALE BOROUGH COUNCIL,15/06/2020,ADULT CARE LCO FUNCTIONS,ROCHCARE UK LTD,15/06/2020,1040.00 ,RESIDENTIAL LONG TERM,V001564296
ROCHDALE BOROUGH COUNCIL,15/06/2020,ADULT CARE LCO FUNCTIONS,ROCHCARE UK LTD,15/06/2020,-210.03 ,CLIENT CONTRIBUTIONS - RESIDENTIAL CARE,V001564297
ROCHDALE BOROUGH COUNCIL,15/06/2020,ADULT CARE LCO FUNCTIONS,ROCHCARE UK LTD,15/06/2020,-735.10 ,CLIENT CONTRIBUTIONS - RESIDENTIAL CARE,V001564298
ROCHDALE BOROUGH COUNCIL,15/06/2020,ADULT CARE LCO FUNCTIONS,ROCHCARE UK LTD,15/06/2020,-685.01 ,CLIENT CONTRIBUTIONS - RESIDENTIAL CARE,V001564299
ROCHDALE BOROUGH COUNCIL,15/06/2020,ADULT CARE LCO FUNCTIONS,ROCHCARE UK LTD,15/06/2020,-571.14 ,CLIENT CONTRIBUTIONS - RESIDENTIAL CARE,V001564300
ROCHDALE BOROUGH COUNCIL,15/06/2020,ADULT CARE LCO FUNCTIONS,ROCHCARE UK LTD,15/06/2020,-571.14 ,CLIENT CONTRIBUTIONS - RESIDENTIAL CARE,V001564301
ROCHDALE BOROUGH COUNCIL,16/06/2020,ADULT CARE LCO FUNCTIONS,MARTON CARE HOMES,16/06/2020,1054.00 ,RESIDENTIAL LONG TERM,V001564341
ROCHDALE BOROUGH COUNCIL,16/06/2020,ADULT CARE LCO FUNCTIONS,HEALTHCARE MANAGEMENT SOLUTIONS,16/06/2020,958.29 ,NURSING LONG TERM,V001564347
ROCHDALE BOROUGH COUNCIL,16/06/2020,ADULT CARE LCO FUNCTIONS,MARTON CARE HOMES,16/06/2020,1054.00 ,RESIDENTIAL LONG TERM,V001564350
ROCHDALE BOROUGH COUNCIL,16/06/2020,ADULT CARE LCO FUNCTIONS,HEALTHCARE MANAGEMENT SOLUTIONS,16/06/2020,1032.00 ,RESIDENTIAL LONG TERM,V001564355
ROCHDALE BOROUGH COUNCIL,16/06/2020,ADULT CARE LCO FUNCTIONS,MARTON CARE HOMES,16/06/2020,1054.00 ,RESIDENTIAL LONG TERM,V001564377
ROCHDALE BOROUGH COUNCIL,16/06/2020,ADULT CARE LCO FUNCTIONS,MARTON CARE HOMES,16/06/2020,1054.00 ,RESIDENTIAL LONG TERM,V001564388
ROCHDALE BOROUGH COUNCIL,16/06/2020,ADULT CARE LCO FUNCTIONS,MARTON CARE HOMES,16/06/2020,1054.00 ,RESIDENTIAL LONG TERM,V001564413
ROCHDALE BOROUGH COUNCIL,16/06/2020,ADULT CARE LCO FUNCTIONS,MARTON CARE HOMES,16/06/2020,1054.00 ,RESIDENTIAL LONG TERM,V001564444
ROCHDALE BOROUGH COUNCIL,16/06/2020,ADULT CARE LCO FUNCTIONS,MARTON CARE HOMES,16/06/2020,30.00 ,RESIDENTIAL & NURSING TOP UP EXPENDITURE,V001564445
ROCHDALE BOROUGH COUNCIL,16/06/2020,ADULT CARE LCO FUNCTIONS,FOUR SEASONS HEALTHCARE,16/06/2020,221.14 ,ASSESSMENT CARE,V001564493
ROCHDALE BOROUGH COUNCIL,16/06/2020,ADULT CARE LCO FUNCTIONS,FOUR SEASONS HEALTHCARE,16/06/2020,810.86 ,ASSESSMENT CARE,V001564494
ROCHDALE BOROUGH COUNCIL,16/06/2020,ADULT CARE LCO FUNCTIONS,HEALTHCARE MANAGEMENT SOLUTIONS,16/06/2020,1015.70 ,RESIDENTIAL LONG TERM,V001564502
ROCHDALE BOROUGH COUNCIL,16/06/2020,ADULT CARE LCO FUNCTIONS,HEALTHCARE MANAGEMENT SOLUTIONS,16/06/2020,1032.00 ,RESIDENTIAL LONG TERM,V001564528
ROCHDALE BOROUGH COUNCIL,16/06/2020,ADULT CARE LCO FUNCTIONS,MARTON CARE HOMES,16/06/2020,1054.00 ,RESIDENTIAL LONG TERM,V001564572
ROCHDALE BOROUGH COUNCIL,16/06/2020,ADULT CARE LCO FUNCTIONS,MARTON CARE HOMES,16/06/2020,1054.00 ,RESIDENTIAL LONG TERM,V001564591
ROCHDALE BOROUGH COUNCIL,16/06/2020,ADULT CARE LCO FUNCTIONS,HEALTHCARE MANAGEMENT SOLUTIONS,16/06/2020,1032.00 ,NURSING LONG TERM,V001564656
ROCHDALE BOROUGH COUNCIL,16/06/2020,ADULT CARE LCO FUNCTIONS,HEALTHCARE MANAGEMENT SOLUTIONS,16/06/2020,1032.00 ,RESIDENTIAL LONG TERM,V001564681
ROCHDALE BOROUGH COUNCIL,16/06/2020,ADULT CARE LCO FUNCTIONS,MARTON CARE HOMES,16/06/2020,20.00 ,RESIDENTIAL & NURSING TOP UP EXPENDITURE,V001564750
ROCHDALE BOROUGH COUNCIL,16/06/2020,ADULT CARE LCO FUNCTIONS,MARTON CARE HOMES,16/06/2020,1054.00 ,RESIDENTIAL LONG TERM,V001564751
ROCHDALE BOROUGH COUNCIL,16/06/2020,ADULT CARE LCO FUNCTIONS,MARTON CARE HOMES,16/06/2020,1054.00 ,RESIDENTIAL LONG TERM,V001564768
ROCHDALE BOROUGH COUNCIL,16/06/2020,ADULT CARE LCO FUNCTIONS,MARTON CARE HOMES,16/06/2020,1054.00 ,RESIDENTIAL LONG TERM,V001564818
ROCHDALE BOROUGH COUNCIL,16/06/2020,ADULT CARE LCO FUNCTIONS,MARTON CARE HOMES,16/06/2020,1054.00 ,RESIDENTIAL LONG TERM,V001564829
ROCHDALE BOROUGH COUNCIL,16/06/2020,ADULT CARE LCO FUNCTIONS,HEALTHCARE MANAGEMENT SOLUTIONS,16/06/2020,1032.00 ,NURSING LONG TERM,V001564841
ROCHDALE BOROUGH COUNCIL,16/06/2020,ADULT CARE LCO FUNCTIONS,HEALTHCARE MANAGEMENT SOLUTIONS,16/06/2020,1032.00 ,RESIDENTIAL LONG TERM,V001564909
ROCHDALE BOROUGH COUNCIL,16/06/2020,ADULT CARE LCO FUNCTIONS,FOUR SEASONS HEALTHCARE,16/06/2020,442.29 ,SHORT TERM CARE - RESIDENTIAL,V001564932
ROCHDALE BOROUGH COUNCIL,16/06/2020,ADULT CARE LCO FUNCTIONS,HEALTHCARE MANAGEMENT SOLUTIONS,16/06/2020,1032.00 ,RESIDENTIAL LONG TERM,V001564963
ROCHDALE BOROUGH COUNCIL,16/06/2020,ADULT CARE LCO FUNCTIONS,MARTON CARE HOMES,16/06/2020,1032.00 ,RESIDENTIAL LONG TERM,V001564964
ROCHDALE BOROUGH COUNCIL,16/06/2020,ADULT CARE LCO FUNCTIONS,HEALTHCARE MANAGEMENT SOLUTIONS,16/06/2020,1032.00 ,NURSING LONG TERM,V001565067
ROCHDALE BOROUGH COUNCIL,16/06/2020,ADULT CARE LCO FUNCTIONS,MARTON CARE HOMES,16/06/2020,1054.00 ,RESIDENTIAL LONG TERM,V001565069
ROCHDALE BOROUGH COUNCIL,16/06/2020,ADULT CARE LCO FUNCTIONS,MARTON CARE HOMES,16/06/2020,20.00 ,RESIDENTIAL & NURSING TOP UP EXPENDITURE,V001565070
ROCHDALE BOROUGH COUNCIL,16/06/2020,ADULT CARE LCO FUNCTIONS,HEALTHCARE MANAGEMENT SOLUTIONS,16/06/2020,1032.00 ,SELF - FUNDING DEFERRED PAYMENTS,V001565096
ROCHDALE BOROUGH COUNCIL,16/06/2020,ADULT CARE LCO FUNCTIONS,MARTON CARE HOMES,16/06/2020,1054.00 ,RESIDENTIAL LONG TERM,V001565146
ROCHDALE BOROUGH COUNCIL,16/06/2020,ADULT CARE LCO FUNCTIONS,MARTON CARE HOMES,16/06/2020,1054.00 ,RESIDENTIAL LONG TERM,V001565156
ROCHDALE BOROUGH COUNCIL,16/06/2020,ADULT CARE LCO FUNCTIONS,MARTON CARE HOMES,16/06/2020,1054.00 ,RESIDENTIAL LONG TERM,V001565168
ROCHDALE BOROUGH COUNCIL,16/06/2020,ADULT CARE LCO FUNCTIONS,HEALTHCARE MANAGEMENT SOLUTIONS,16/06/2020,1032.00 ,RESIDENTIAL LONG TERM,V001565226
ROCHDALE BOROUGH COUNCIL,16/06/2020,ADULT CARE LCO FUNCTIONS,MARTON CARE HOMES,16/06/2020,1054.00 ,RESIDENTIAL LONG TERM,V001565239
ROCHDALE BOROUGH COUNCIL,16/06/2020,ADULT CARE LCO FUNCTIONS,HEALTHCARE MANAGEMENT SOLUTIONS,16/06/2020,1032.00 ,RESIDENTIAL LONG TERM,V001565243
ROCHDALE BOROUGH COUNCIL,16/06/2020,ADULT CARE LCO FUNCTIONS,MARTON CARE HOMES,16/06/2020,1054.00 ,RESIDENTIAL LONG TERM,V001565256
ROCHDALE BOROUGH COUNCIL,16/06/2020,ADULT CARE LCO FUNCTIONS,HEALTHCARE MANAGEMENT SOLUTIONS,16/06/2020,1032.00 ,NURSING LONG TERM,V001565281
ROCHDALE BOROUGH COUNCIL,16/06/2020,ADULT CARE LCO FUNCTIONS,MARTON CARE HOMES,16/06/2020,1032.00 ,RESIDENTIAL LONG TERM,V001565288
ROCHDALE BOROUGH COUNCIL,16/06/2020,ADULT CARE LCO FUNCTIONS,MARTON CARE HOMES,16/06/2020,40.00 ,RESIDENTIAL & NURSING TOP UP EXPENDITURE,V001565289
ROCHDALE BOROUGH COUNCIL,16/06/2020,ADULT CARE LCO FUNCTIONS,MARTON CARE HOMES,16/06/2020,1032.00 ,SHORT TERM CARE - RESIDENTIAL,V001565295
ROCHDALE BOROUGH COUNCIL,16/06/2020,ADULT CARE LCO FUNCTIONS,MARTON CARE HOMES,16/06/2020,1054.00 ,RESIDENTIAL LONG TERM,V001565319
ROCHDALE BOROUGH COUNCIL,16/06/2020,ADULT CARE LCO FUNCTIONS,MARTON CARE HOMES,16/06/2020,442.29 ,SHORT TERM CARE - RESIDENTIAL,V001565375
ROCHDALE BOROUGH COUNCIL,16/06/2020,ADULT CARE LCO FUNCTIONS,MARTON CARE HOMES,16/06/2020,589.71 ,RESIDENTIAL LONG TERM,V001565428
ROCHDALE BOROUGH COUNCIL,16/06/2020,ADULT CARE LCO FUNCTIONS,MARTON CARE HOMES,16/06/2020,1032.00 ,RESIDENTIAL LONG TERM,V001565429
ROCHDALE BOROUGH COUNCIL,16/06/2020,ADULT CARE LCO FUNCTIONS,FOUR SEASONS HEALTHCARE,16/06/2020,1032.00 ,ASSESSMENT CARE,V001565430
ROCHDALE BOROUGH COUNCIL,16/06/2020,ADULT CARE LCO FUNCTIONS,MARTON CARE HOMES,16/06/2020,221.14 ,SHORT TERM CARE - RESIDENTIAL,V001565432
ROCHDALE BOROUGH COUNCIL,16/06/2020,ADULT CARE LCO FUNCTIONS,MARTON CARE HOMES,16/06/2020,1032.00 ,SHORT TERM CARE - RESIDENTIAL,V001565433
ROCHDALE BOROUGH COUNCIL,16/06/2020,ADULT CARE LCO FUNCTIONS,FOUR SEASONS HEALTHCARE,16/06/2020,-221.14 ,ASSESSMENT CARE,V001565434
ROCHDALE BOROUGH COUNCIL,15/06/2020,ADULT CARE LCO FUNCTIONS,MANCHESTER CITY COUNCIL,15/06/2020,6500.00 ,SERVICE LEVEL AGREEMENTS,V001565452
ROCHDALE BOROUGH COUNCIL,02/06/2020,PROPERTY AND HIGHWAYS,FRANK KEY TOOL HIRE LTD,02/06/2020,5.31 ,PROPERTY - WORKS ELEMENT,V001565461
ROCHDALE BOROUGH COUNCIL,16/06/2020,ADULT CARE LCO FUNCTIONS,FOUR SEASONS HEALTHCARE,16/06/2020,-758.31 ,RESIDENTIAL LONG TERM,V001565465
ROCHDALE BOROUGH COUNCIL,16/06/2020,ADULT CARE LCO FUNCTIONS,FOUR SEASONS HEALTHCARE,16/06/2020,-884.70 ,RESIDENTIAL LONG TERM,V001565466
ROCHDALE BOROUGH COUNCIL,16/06/2020,ADULT CARE LCO FUNCTIONS,FOUR SEASONS HEALTHCARE,16/06/2020,-884.70 ,RESIDENTIAL LONG TERM,V001565467
ROCHDALE BOROUGH COUNCIL,16/06/2020,ADULT CARE LCO FUNCTIONS,FOUR SEASONS HEALTHCARE,16/06/2020,-884.70 ,RESIDENTIAL LONG TERM,V001565468
ROCHDALE BOROUGH COUNCIL,16/06/2020,ADULT CARE LCO FUNCTIONS,FOUR SEASONS HEALTHCARE,16/06/2020,-63.19 ,RESIDENTIAL LONG TERM,V001565469
ROCHDALE BOROUGH COUNCIL,23/06/2020,CHILDREN�S SOCIAL CARE,REDACTED - PERSONAL DATA,23/06/2020,145.00 ,MEDICAL FEES,V001565511
ROCHDALE BOROUGH COUNCIL,05/06/2020,EARLY HELP AND SCHOOLS,FINDEL EDUCATION LIMITED,05/06/2020,13.99 ,EQUIPMENT - GENERAL,V001565513
ROCHDALE BOROUGH COUNCIL,05/06/2020,EARLY HELP AND SCHOOLS,FINDEL EDUCATION LIMITED,05/06/2020,17.99 ,EQUIPMENT - GENERAL,V001565513
ROCHDALE BOROUGH COUNCIL,05/06/2020,EARLY HELP AND SCHOOLS,FINDEL EDUCATION LIMITED,05/06/2020,51.96 ,EQUIPMENT - GENERAL,V001565513
ROCHDALE BOROUGH COUNCIL,23/06/2020,NEIGHBOURHOODS AND ENVIRONMENT,GO PLANT FLEET SERVICES LTD,23/06/2020,-1207.18 ,TRANSACTIONS-INCOME,V001565518
ROCHDALE BOROUGH COUNCIL,11/06/2020,RESOURCES,WIDER PLAN LTD,11/06/2020,850.00 ,COMMUNICATION AND COMPUTING - GENERAL,V001565525
ROCHDALE BOROUGH COUNCIL,08/06/2020,CHILDREN�S SOCIAL CARE,CAPSTONE FOSTER CARE,08/06/2020,3288.13 ,FOSTER PARENTS BASIC ALLOWANCE,V001565527
ROCHDALE BOROUGH COUNCIL,23/06/2020,CHILDREN�S SOCIAL CARE,CAPSTONE FOSTER CARE,23/06/2020,3262.03 ,FOSTER PARENTS BASIC ALLOWANCE,V001565528
ROCHDALE BOROUGH COUNCIL,08/06/2020,CHILDREN�S SOCIAL CARE,CAPSTONE FOSTER CARE,08/06/2020,3105.58 ,FOSTER PARENTS BASIC ALLOWANCE,V001565529
ROCHDALE BOROUGH COUNCIL,08/06/2020,CHILDREN�S SOCIAL CARE,CAPSTONE FOSTER CARE,08/06/2020,3727.83 ,FOSTER PARENTS BASIC ALLOWANCE,V001565530
ROCHDALE BOROUGH COUNCIL,08/06/2020,CHILDREN�S SOCIAL CARE,CAPSTONE FOSTER CARE,08/06/2020,3365.84 ,FOSTER PARENTS BASIC ALLOWANCE,V001565531
ROCHDALE BOROUGH COUNCIL,23/06/2020,CHILDREN�S SOCIAL CARE,CAPSTONE FOSTER CARE,23/06/2020,3765.48 ,FOSTER PARENTS BASIC ALLOWANCE,V001565532
ROCHDALE BOROUGH COUNCIL,23/06/2020,CHILDREN�S SOCIAL CARE,CAPSTONE FOSTER CARE,23/06/2020,3365.55 ,FOSTER PARENTS BASIC ALLOWANCE,V001565533
ROCHDALE BOROUGH COUNCIL,08/06/2020,CHILDREN�S SOCIAL CARE,CAPSTONE FOSTER CARE,08/06/2020,3963.66 ,FOSTER PARENTS BASIC ALLOWANCE,V001565534
ROCHDALE BOROUGH COUNCIL,08/06/2020,CHILDREN�S SOCIAL CARE,CAPSTONE FOSTER CARE,08/06/2020,3727.82 ,FOSTER PARENTS BASIC ALLOWANCE,V001565535
ROCHDALE BOROUGH COUNCIL,23/06/2020,CHILDREN�S SOCIAL CARE,CAPSTONE FOSTER CARE,23/06/2020,3727.82 ,FOSTER PARENTS BASIC ALLOWANCE,V001565536
ROCHDALE BOROUGH COUNCIL,23/06/2020,CHILDREN�S SOCIAL CARE,CAPSTONE FOSTER CARE,23/06/2020,3765.48 ,FOSTER PARENTS BASIC ALLOWANCE,V001565537
ROCHDALE BOROUGH COUNCIL,08/06/2020,CHILDREN�S SOCIAL CARE,CAPSTONE FOSTER CARE,08/06/2020,3155.27 ,FOSTER PARENTS BASIC ALLOWANCE,V001565538
ROCHDALE BOROUGH COUNCIL,08/06/2020,CHILDREN�S SOCIAL CARE,CAPSTONE FOSTER CARE,08/06/2020,3577.21 ,FOSTER PARENTS BASIC ALLOWANCE,V001565539
ROCHDALE BOROUGH COUNCIL,23/06/2020,CHILDREN�S SOCIAL CARE,CAPSTONE FOSTER CARE,23/06/2020,4288.23 ,FOSTER PARENTS BASIC ALLOWANCE,V001565540
ROCHDALE BOROUGH COUNCIL,23/06/2020,CHILDREN�S SOCIAL CARE,CAPSTONE FOSTER CARE,23/06/2020,6598.66 ,FOSTER PARENTS BASIC ALLOWANCE,V001565541
ROCHDALE BOROUGH COUNCIL,05/06/2020,CHILDREN�S SOCIAL CARE,HALLIWELL HOMES LTD,05/06/2020,21235.00 ,EBD (EMOT & BEHAV DIFF) PLACEMENTS,V001565547
ROCHDALE BOROUGH COUNCIL,05/06/2020,CHILDREN�S SOCIAL CARE,FOSTER CARE ASSOCIATES LIMITED,05/06/2020,5799.30 ,FOSTER PARENTS BASIC ALLOWANCE,V001565548
ROCHDALE BOROUGH COUNCIL,05/06/2020,CHILDREN�S SOCIAL CARE,FOSTER CARE ASSOCIATES LIMITED,05/06/2020,5799.30 ,FOSTER PARENTS BASIC ALLOWANCE,V001565548
ROCHDALE BOROUGH COUNCIL,16/06/2020,PROPERTY AND HIGHWAYS,ABBEY ARCHITECTURAL IRONMONGERY CO LTD,16/06/2020,5.99 ,PROPERTY - WORKS ELEMENT,V001565565
ROCHDALE BOROUGH COUNCIL,05/06/2020,CHILDREN�S SOCIAL CARE,SANDCASTLE CARE LTD,05/06/2020,15057.14 ,EBD (EMOT & BEHAV DIFF) PLACEMENTS,V001565743
ROCHDALE BOROUGH COUNCIL,05/06/2020,CHILDREN�S SOCIAL CARE,SANDCASTLE CARE LTD,05/06/2020,26350.00 ,EBD (EMOT & BEHAV DIFF) PLACEMENTS,V001565744
ROCHDALE BOROUGH COUNCIL,05/06/2020,CHILDREN�S SOCIAL CARE,SANDCASTLE CARE LTD,05/06/2020,5828.57 ,EBD (EMOT & BEHAV DIFF) PLACEMENTS,V001565745
ROCHDALE BOROUGH COUNCIL,05/06/2020,CHILDREN�S SOCIAL CARE,SANDCASTLE CARE LTD,05/06/2020,18821.43 ,EBD (EMOT & BEHAV DIFF) PLACEMENTS,V001565746
ROCHDALE BOROUGH COUNCIL,05/06/2020,CHILDREN�S SOCIAL CARE,SANDCASTLE CARE LTD,05/06/2020,15942.86 ,EBD (EMOT & BEHAV DIFF) PLACEMENTS,V001565747
ROCHDALE BOROUGH COUNCIL,05/06/2020,CHILDREN�S SOCIAL CARE,SANDCASTLE CARE LTD,05/06/2020,15942.86 ,EBD (EMOT & BEHAV DIFF) PLACEMENTS,V001565748
ROCHDALE BOROUGH COUNCIL,05/06/2020,CHILDREN�S SOCIAL CARE,SANDCASTLE CARE LTD,05/06/2020,14392.86 ,EBD (EMOT & BEHAV DIFF) PLACEMENTS,V001565749
ROCHDALE BOROUGH COUNCIL,11/06/2020,NEIGHBOURHOODS AND ENVIRONMENT,WHISTL UK LTD,11/06/2020,460.61 ,TRANSACTIONS-EXPENDITURE,V001565750
ROCHDALE BOROUGH COUNCIL,03/06/2020,NEIGHBOURHOODS AND ENVIRONMENT,MASSEY AND HARRIS ENGINEERING LTD,03/06/2020,220.00 ,MAINTENANCE,V001565762
ROCHDALE BOROUGH COUNCIL,02/06/2020,CHILDREN�S SOCIAL CARE,ACORN HOUSE FOSTERING SERVICES LIMITED,02/06/2020,3706.36 ,FOSTER PARENTS BASIC ALLOWANCE,V001565775
ROCHDALE BOROUGH COUNCIL,02/06/2020,CHILDREN�S SOCIAL CARE,ACORN HOUSE FOSTERING SERVICES LIMITED,02/06/2020,3672.88 ,FOSTER PARENTS BASIC ALLOWANCE,V001565776
ROCHDALE BOROUGH COUNCIL,04/06/2020,EARLY HELP AND SCHOOLS,DATA SPACE LTD,04/06/2020,67.62 ,DATA COLLECTION,V001565781
ROCHDALE BOROUGH COUNCIL,15/06/2020,NEIGHBOURHOODS AND ENVIRONMENT,FORENSICS LTD,15/06/2020,902.51 ,TOXICOLOGY PAYMENTS,V001565838
ROCHDALE BOROUGH COUNCIL,12/06/2020,CHILDREN�S SOCIAL CARE,MEADOWS CARE LIMITED,12/06/2020,17271.43 ,EBD (EMOT & BEHAV DIFF) PLACEMENTS,V001565844
ROCHDALE BOROUGH COUNCIL,01/06/2020,ECONOMY DIRECTORATE,OMI ARCHITECTS,01/06/2020,4087.50 ,PROFESSIONAL FEES,V001565985
ROCHDALE BOROUGH COUNCIL,30/06/2020,ECONOMY DIRECTORATE,BLOOM PROCUREMENT SERVICES LTD,30/06/2020,5733.00 ,CONSULTANTS FEES,V001565986
ROCHDALE BOROUGH COUNCIL,05/06/2020,EARLY HELP AND SCHOOLS,AQUACOOL LTD,05/06/2020,72.93 ,REFRESHMENTS,V001565991
ROCHDALE BOROUGH COUNCIL,01/06/2020,PROPERTY AND HIGHWAYS,PTSG ELECTRICAL SERVICES LTD,01/06/2020,186.00 ,ELECTRICAL,V001565992
ROCHDALE BOROUGH COUNCIL,01/06/2020,PROPERTY AND HIGHWAYS,PTSG ELECTRICAL SERVICES LTD,01/06/2020,177.00 ,ELECTRICAL,V001565993
ROCHDALE BOROUGH COUNCIL,12/06/2020,CHILDREN�S SOCIAL CARE,DATA SPACE LTD,12/06/2020,1.55 ,DATA COLLECTION,V001565994
ROCHDALE BOROUGH COUNCIL,11/06/2020,RESOURCES,DATA SPACE LTD,11/06/2020,81.90 ,DATA COLLECTION,V001565995
ROCHDALE BOROUGH COUNCIL,24/06/2020,ECONOMY DIRECTORATE,DATA SPACE LTD,24/06/2020,38.33 ,DATA COLLECTION,V001565996
ROCHDALE BOROUGH COUNCIL,05/06/2020,RESOURCES,DATA SPACE LTD,05/06/2020,0.31 ,DATA COLLECTION,V001565997
ROCHDALE BOROUGH COUNCIL,03/06/2020,EARLY HELP AND SCHOOLS,DATA SPACE LTD,03/06/2020,19.62 ,DATA COLLECTION,V001565998
ROCHDALE BOROUGH COUNCIL,18/06/2020,EARLY HELP AND SCHOOLS,DATA SPACE LTD,18/06/2020,0.31 ,DATA COLLECTION,V001565999
ROCHDALE BOROUGH COUNCIL,18/06/2020,PROPERTY AND HIGHWAYS,DATA SPACE LTD,18/06/2020,18.47 ,DATA COLLECTION,V001566000
ROCHDALE BOROUGH COUNCIL,18/06/2020,ADULT CARE LCO FUNCTIONS,DATA SPACE LTD,18/06/2020,1.35 ,DATA COLLECTION,V001566001
ROCHDALE BOROUGH COUNCIL,18/06/2020,RESOURCES,DATA SPACE LTD,18/06/2020,6.00 ,DATA COLLECTION,V001566002
ROCHDALE BOROUGH COUNCIL,18/06/2020,RESOURCES,DATA SPACE LTD,18/06/2020,231.75 ,DATA COLLECTION,V001566003
ROCHDALE BOROUGH COUNCIL,18/06/2020,NEIGHBOURHOODS AND ENVIRONMENT,DATA SPACE LTD,18/06/2020,11.40 ,DATA COLLECTION,V001566004
ROCHDALE BOROUGH COUNCIL,18/06/2020,ECONOMY DIRECTORATE,DATA SPACE LTD,18/06/2020,41.20 ,DATA COLLECTION,V001566005
ROCHDALE BOROUGH COUNCIL,18/06/2020,ADULT CARE LCO FUNCTIONS,DATA SPACE LTD,18/06/2020,6.30 ,DATA COLLECTION,V001566006
ROCHDALE BOROUGH COUNCIL,02/06/2020,BETTER CARE FUND POOLED BUDGET,PENNINE CARE NHS,02/06/2020,26534.73 ,INDEPENDENT UNITS,V001566007
ROCHDALE BOROUGH COUNCIL,02/06/2020,BETTER CARE FUND POOLED BUDGET,PENNINE CARE NHS,02/06/2020,12316.35 ,INDEPENDENT UNITS,V001566008
ROCHDALE BOROUGH COUNCIL,08/06/2020,ECONOMY DIRECTORATE,AQUACOOL LTD,08/06/2020,105.00 ,SUPPLIES AND SERVICES PROVISION,V001566009
ROCHDALE BOROUGH COUNCIL,08/06/2020,CHILDREN�S SOCIAL CARE,PEOPLE WHO FOSTER,08/06/2020,4123.00 ,FOSTER PARENTS BASIC ALLOWANCE,V001566010
ROCHDALE BOROUGH COUNCIL,24/06/2020,CHILDREN�S SOCIAL CARE,JMHA,24/06/2020,430.00 ,ALLOWANCES,V001566011
ROCHDALE BOROUGH COUNCIL,08/06/2020,CHILDREN�S SOCIAL CARE,PEOPLE WHO FOSTER,08/06/2020,3487.50 ,FOSTER PARENTS BASIC ALLOWANCE,V001566012
ROCHDALE BOROUGH COUNCIL,02/06/2020,CHILDREN�S SOCIAL CARE,MILLENNIUM TRANSLATIONS LTD,02/06/2020,42.80 ,TRANSLATION & INTERPRETATION,V001566015
ROCHDALE BOROUGH COUNCIL,01/06/2020,PROPERTY AND HIGHWAYS,REACH PUBLISHING SERVICES LTD,01/06/2020,60.80 ,ADVERTISING,V001566026
ROCHDALE BOROUGH COUNCIL,02/06/2020,PROPERTY AND HIGHWAYS,FRANK KEY TOOL HIRE LTD,02/06/2020,21.00 ,PROPERTY - WORKS ELEMENT,V001566033
ROCHDALE BOROUGH COUNCIL,01/06/2020,ECONOMY DIRECTORATE,IRWELL STREET METALS,01/06/2020,10.84 ,REFUSE DISPOSAL,V001566039
ROCHDALE BOROUGH COUNCIL,03/06/2020,NEIGHBOURHOODS AND ENVIRONMENT,ORION SAFETY BELTS,03/06/2020,35.00 ,VEHICLE MAINTENANCE,V001566062
ROCHDALE BOROUGH COUNCIL,03/06/2020,NEIGHBOURHOODS AND ENVIRONMENT,ORION SAFETY BELTS,03/06/2020,8.50 ,VEHICLE MAINTENANCE,V001566062
ROCHDALE BOROUGH COUNCIL,03/06/2020,NEIGHBOURHOODS AND ENVIRONMENT,ORION SAFETY BELTS,03/06/2020,35.00 ,VEHICLE MAINTENANCE,V001566063
ROCHDALE BOROUGH COUNCIL,03/06/2020,NEIGHBOURHOODS AND ENVIRONMENT,ORION SAFETY BELTS,03/06/2020,12.50 ,VEHICLE MAINTENANCE,V001566063
ROCHDALE BOROUGH COUNCIL,03/06/2020,NEIGHBOURHOODS AND ENVIRONMENT,ORION SAFETY BELTS,03/06/2020,10.00 ,VEHICLE MAINTENANCE,V001566063
ROCHDALE BOROUGH COUNCIL,03/06/2020,NEIGHBOURHOODS AND ENVIRONMENT,THE PENNINE ACUTE HOSPITALS NHS TRUST,03/06/2020,33075.00 ,AGENCY STAFF,V001566421
ROCHDALE BOROUGH COUNCIL,08/06/2020,CHILDREN�S SOCIAL CARE,ORACLE CARE LTD,08/06/2020,21257.14 ,EBD (EMOT & BEHAV DIFF) PLACEMENTS,V001566423
ROCHDALE BOROUGH COUNCIL,03/06/2020,NEIGHBOURHOODS AND ENVIRONMENT,BEECHWOOD TREE SERVICES NORTHWEST LTD,03/06/2020,1000.00 ,CONTRACTS,V001566424
ROCHDALE BOROUGH COUNCIL,01/06/2020,PROPERTY AND HIGHWAYS,AECOM LIMITED,01/06/2020,5489.00 ,MINOR BUILDING WORKS,V001566425
ROCHDALE BOROUGH COUNCIL,03/06/2020,NEIGHBOURHOODS AND ENVIRONMENT,ALLIANCE DISPOSABLES LIMITED,03/06/2020,1439.20 ,CONSUMABLES,V001566426
ROCHDALE BOROUGH COUNCIL,08/06/2020,ECONOMY DIRECTORATE,ALLIANCE DISPOSABLES LIMITED,08/06/2020,642.45 ,CLEANING AND DOMESTIC SUPPLIES,V001566427
ROCHDALE BOROUGH COUNCIL,08/06/2020,ECONOMY DIRECTORATE,ALLIANCE DISPOSABLES LIMITED,08/06/2020,566.24 ,CLEANING AND DOMESTIC SUPPLIES,V001566427
ROCHDALE BOROUGH COUNCIL,08/06/2020,ECONOMY DIRECTORATE,ALLIANCE DISPOSABLES LIMITED,08/06/2020,1174.81 ,CLEANING AND DOMESTIC SUPPLIES,V001566427
ROCHDALE BOROUGH COUNCIL,08/06/2020,CHILDREN�S SOCIAL CARE,MEADOWS CARE LIMITED,08/06/2020,18157.14 ,EBD (EMOT & BEHAV DIFF) PLACEMENTS,V001566428
ROCHDALE BOROUGH COUNCIL,08/06/2020,CHILDREN�S SOCIAL CARE,MEADOWS CARE LIMITED,08/06/2020,18157.14 ,EBD (EMOT & BEHAV DIFF) PLACEMENTS,V001566429
ROCHDALE BOROUGH COUNCIL,01/06/2020,PROPERTY AND HIGHWAYS,REACH PUBLISHING SERVICES LTD,01/06/2020,60.80 ,ADVERTISING,V001566469
ROCHDALE BOROUGH COUNCIL,02/06/2020,PROPERTY AND HIGHWAYS,FRANK KEY TOOL HIRE LTD,02/06/2020,7.50 ,PROPERTY - WORKS ELEMENT,V001566470
ROCHDALE BOROUGH COUNCIL,26/06/2020,ADULT CARE LCO FUNCTIONS,PENDLETON CARE LTD,26/06/2020,7949.60 ,PERSONAL BUDGETS - MANAGED,V001566545
ROCHDALE BOROUGH COUNCIL,26/06/2020,ADULT CARE LCO FUNCTIONS,PENDLETON CARE LTD,26/06/2020,1507.84 ,PERSONAL BUDGETS - MANAGED,V001566561
ROCHDALE BOROUGH COUNCIL,15/06/2020,NEIGHBOURHOODS AND ENVIRONMENT,UPDATA INFRASTRUCTURE UK LTD,15/06/2020,-12750.00 ,COMMUNICATION AND COMPUTING - GENERAL,V001567240
ROCHDALE BOROUGH COUNCIL,01/06/2020,NEIGHBOURHOODS AND ENVIRONMENT,TREE HEROES LTD,01/06/2020,870.00 ,CONTRACTS,V001567241
ROCHDALE BOROUGH COUNCIL,17/06/2020,CHILDREN�S SOCIAL CARE,STEPPING STONE PROJECTS,17/06/2020,671.50 ,YOUNG PEOPLES RENTS,V001567242
ROCHDALE BOROUGH COUNCIL,17/06/2020,CHILDREN�S SOCIAL CARE,STEPPING STONE PROJECTS,17/06/2020,1702.44 ,YOUNG PEOPLES RENTS,V001567243
ROCHDALE BOROUGH COUNCIL,17/06/2020,CHILDREN�S SOCIAL CARE,STEPPING STONE PROJECTS,17/06/2020,1524.68 ,YOUNG PEOPLES RENTS,V001567244
ROCHDALE BOROUGH COUNCIL,17/06/2020,CHILDREN�S SOCIAL CARE,STEPPING STONE PROJECTS,17/06/2020,-2087.23 ,YOUNG PEOPLES RENTS,V001567245
ROCHDALE BOROUGH COUNCIL,01/06/2020,ADULT CARE LCO FUNCTIONS,HOIST AND SHOWER CHAIR CO LTD,01/06/2020,2168.00 ,TRANSACTIONS-EXPENDITURE,V001567246
ROCHDALE BOROUGH COUNCIL,02/06/2020,ECONOMY DIRECTORATE,WATER PLUS,02/06/2020,6.88 ,MINOR BUILDING WORKS,V001567247
ROCHDALE BOROUGH COUNCIL,12/06/2020,ECONOMY DIRECTORATE,LITTERBOSS LTD,12/06/2020,104.00 ,SPECIFIED MAINTENANCE,V001567248
ROCHDALE BOROUGH COUNCIL,08/06/2020,ECONOMY DIRECTORATE,J C MILLS & SON LIMITED,08/06/2020,2288.70 ,ELECTRICAL,V001567249
ROCHDALE BOROUGH COUNCIL,08/06/2020,EARLY HELP AND SCHOOLS,TTS GROUP LIMITED,08/06/2020,394.90 ,REPAIRS & ALTS OF BUILDINGS,V001567251
ROCHDALE BOROUGH COUNCIL,05/06/2020,EARLY HELP AND SCHOOLS,TTS GROUP LIMITED,05/06/2020,60.95 ,REPAIRS & ALTS OF BUILDINGS,V001567252
ROCHDALE BOROUGH COUNCIL,08/06/2020,EARLY HELP AND SCHOOLS,TTS GROUP LIMITED,08/06/2020,239.90 ,REPAIRS & ALTS OF BUILDINGS,V001567253
ROCHDALE BOROUGH COUNCIL,08/06/2020,EARLY HELP AND SCHOOLS,TTS GROUP LIMITED,08/06/2020,59.90 ,REPAIRS & ALTS OF BUILDINGS,V001567254
ROCHDALE BOROUGH COUNCIL,17/06/2020,CHILDREN�S SOCIAL CARE,STEPPING STONE PROJECTS,17/06/2020,-2529.80 ,YOUNG PEOPLES RENTS,V001567266
ROCHDALE BOROUGH COUNCIL,17/06/2020,CHILDREN�S SOCIAL CARE,STEPPING STONE PROJECTS,17/06/2020,-2198.63 ,YOUNG PEOPLES RENTS,V001567269
ROCHDALE BOROUGH COUNCIL,04/06/2020,NEIGHBOURHOODS AND ENVIRONMENT,ARCO GROUP LIMITED,04/06/2020,-14.56 ,TRANSACTIONS-EXPENDITURE,V001567270
ROCHDALE BOROUGH COUNCIL,04/06/2020,NEIGHBOURHOODS AND ENVIRONMENT,ARCO GROUP LIMITED,04/06/2020,-14.56 ,TRANSACTIONS-EXPENDITURE,V001567270
ROCHDALE BOROUGH COUNCIL,04/06/2020,NEIGHBOURHOODS AND ENVIRONMENT,ARCO GROUP LIMITED,04/06/2020,-14.56 ,TRANSACTIONS-EXPENDITURE,V001567270
ROCHDALE BOROUGH COUNCIL,01/06/2020,ECONOMY DIRECTORATE,G2 RECRUITMENT SOLUTIONS LTD,01/06/2020,1435.00 ,AGENCY STAFF,V001567272
ROCHDALE BOROUGH COUNCIL,08/06/2020,CHILDREN�S SOCIAL CARE,PEBBLES CARE LTD,08/06/2020,12196.26 ,EBD (EMOT & BEHAV DIFF) PLACEMENTS,V001567273
ROCHDALE BOROUGH COUNCIL,04/06/2020,PROPERTY AND HIGHWAYS,ELECTRIC CENTER,04/06/2020,63.00 ,MAINTENANCE,V001567274
ROCHDALE BOROUGH COUNCIL,08/06/2020,ECONOMY DIRECTORATE,BANNER GROUP LIMITED,08/06/2020,15.69 ,PRINTING & STATIONERY,V001567275
ROCHDALE BOROUGH COUNCIL,12/06/2020,CHILDREN�S SOCIAL CARE,SWIIS FOSTER CARE LIMITED,12/06/2020,837.97 ,FOSTER PARENTS BASIC ALLOWANCE,V001567276
ROCHDALE BOROUGH COUNCIL,17/06/2020,PROPERTY AND HIGHWAYS,AECOM LIMITED,17/06/2020,598.59 ,ROADWORKS,V001567277
ROCHDALE BOROUGH COUNCIL,17/06/2020,PROPERTY AND HIGHWAYS,AECOM LIMITED,17/06/2020,19623.06 ,ROADWORKS,V001567277
ROCHDALE BOROUGH COUNCIL,17/06/2020,PROPERTY AND HIGHWAYS,AECOM LIMITED,17/06/2020,4441.00 ,MINOR BUILDING WORKS,V001567277
ROCHDALE BOROUGH COUNCIL,01/06/2020,EARLY HELP AND SCHOOLS,YORKSHIRE PURCHASING ORGANISATION,01/06/2020,318.20 ,EQUIPMENT - GENERAL,V001567287
ROCHDALE BOROUGH COUNCIL,01/06/2020,NEIGHBOURHOODS AND ENVIRONMENT,FORENSICS LTD,01/06/2020,491.63 ,TOXICOLOGY PAYMENTS,V001567292
ROCHDALE BOROUGH COUNCIL,18/06/2020,NEIGHBOURHOODS AND ENVIRONMENT,SHORROCK TRICHEM LTD,18/06/2020,-6.72 ,EQUIPMENT - GENERAL,V001567296
ROCHDALE BOROUGH COUNCIL,01/06/2020,ECONOMY DIRECTORATE,G2 RECRUITMENT SOLUTIONS LTD,01/06/2020,1457.39 ,AGENCY STAFF,V001567297
ROCHDALE BOROUGH COUNCIL,18/06/2020,CHILDREN�S SOCIAL CARE,MILLENNIUM TRANSLATIONS LTD,18/06/2020,72.00 ,TRANSLATION & INTERPRETATION,V001567301
ROCHDALE BOROUGH COUNCIL,02/06/2020,CHILDREN�S SOCIAL CARE,ACORN HOUSE FOSTERING SERVICES LIMITED,02/06/2020,-956.48 ,FOSTER PARENTS BASIC ALLOWANCE,V001567302
ROCHDALE BOROUGH COUNCIL,02/06/2020,CHILDREN�S SOCIAL CARE,ACORN HOUSE FOSTERING SERVICES LIMITED,02/06/2020,-947.84 ,FOSTER PARENTS BASIC ALLOWANCE,V001567303
ROCHDALE BOROUGH COUNCIL,02/06/2020,PROPERTY AND HIGHWAYS,CALEDONIAN LIFTS MANCHESTER LTD,02/06/2020,202.50 ,PROPERTY - WORKS ELEMENT,V001567315
ROCHDALE BOROUGH COUNCIL,15/06/2020,CHILDREN�S SOCIAL CARE,STEP AHEAD,15/06/2020,1200.00 ,YOUNG PEOPLES RENTS,V001567317
ROCHDALE BOROUGH COUNCIL,04/06/2020,PROPERTY AND HIGHWAYS,REACH PUBLISHING SERVICES LTD,04/06/2020,70.94 ,ADVERTISING,V001567318
ROCHDALE BOROUGH COUNCIL,04/06/2020,PROPERTY AND HIGHWAYS,REACH PUBLISHING SERVICES LTD,04/06/2020,60.80 ,ADVERTISING,V001567320
ROCHDALE BOROUGH COUNCIL,04/06/2020,PROPERTY AND HIGHWAYS,REACH PUBLISHING SERVICES LTD,04/06/2020,60.80 ,ADVERTISING,V001567321
ROCHDALE BOROUGH COUNCIL,01/06/2020,PROPERTY AND HIGHWAYS,REACH PUBLISHING SERVICES LTD,01/06/2020,70.94 ,ADVERTISING,V001567322
ROCHDALE BOROUGH COUNCIL,01/06/2020,PROPERTY AND HIGHWAYS,REACH PUBLISHING SERVICES LTD,01/06/2020,70.94 ,ADVERTISING,V001567323
ROCHDALE BOROUGH COUNCIL,01/06/2020,PROPERTY AND HIGHWAYS,REACH PUBLISHING SERVICES LTD,01/06/2020,81.07 ,ADVERTISING,V001567324
ROCHDALE BOROUGH COUNCIL,03/06/2020,PROPERTY AND HIGHWAYS,REACH PUBLISHING SERVICES LTD,03/06/2020,70.56 ,ADVERTISING,V001567325
ROCHDALE BOROUGH COUNCIL,01/06/2020,PROPERTY AND HIGHWAYS,REACH PUBLISHING SERVICES LTD,01/06/2020,60.80 ,ADVERTISING,V001567326
ROCHDALE BOROUGH COUNCIL,01/06/2020,PROPERTY AND HIGHWAYS,REACH PUBLISHING SERVICES LTD,01/06/2020,91.21 ,ADVERTISING,V001567327
ROCHDALE BOROUGH COUNCIL,01/06/2020,PROPERTY AND HIGHWAYS,REACH PUBLISHING SERVICES LTD,01/06/2020,70.94 ,ADVERTISING,V001567328
ROCHDALE BOROUGH COUNCIL,03/06/2020,PROPERTY AND HIGHWAYS,REACH PUBLISHING SERVICES LTD,03/06/2020,60.80 ,ADVERTISING,V001567330
ROCHDALE BOROUGH COUNCIL,01/06/2020,PROPERTY AND HIGHWAYS,REACH PUBLISHING SERVICES LTD,01/06/2020,60.80 ,ADVERTISING,V001567332
ROCHDALE BOROUGH COUNCIL,01/06/2020,PROPERTY AND HIGHWAYS,REACH PUBLISHING SERVICES LTD,01/06/2020,60.80 ,ADVERTISING,V001567334
ROCHDALE BOROUGH COUNCIL,03/06/2020,PROPERTY AND HIGHWAYS,REACH PUBLISHING SERVICES LTD,03/06/2020,60.80 ,ADVERTISING,V001567336
ROCHDALE BOROUGH COUNCIL,01/06/2020,PROPERTY AND HIGHWAYS,REACH PUBLISHING SERVICES LTD,01/06/2020,52.92 ,ADVERTISING,V001567338
ROCHDALE BOROUGH COUNCIL,01/06/2020,PROPERTY AND HIGHWAYS,REACH PUBLISHING SERVICES LTD,01/06/2020,79.38 ,ADVERTISING,V001567339
ROCHDALE BOROUGH COUNCIL,02/06/2020,ECONOMY DIRECTORATE,WATER PLUS,02/06/2020,204.00 ,MINOR BUILDING WORKS,V001567343
ROCHDALE BOROUGH COUNCIL,02/06/2020,PROPERTY AND HIGHWAYS,TRANSPORT FOR GREATER MANCHESTER,02/06/2020,598.49 ,MINOR BUILDING WORKS,V001567344
ROCHDALE BOROUGH COUNCIL,01/06/2020,PROPERTY AND HIGHWAYS,TRANSPORT FOR GREATER MANCHESTER,01/06/2020,285.00 ,MINOR BUILDING WORKS,V001567345
ROCHDALE BOROUGH COUNCIL,01/06/2020,PROPERTY AND HIGHWAYS,TRANSPORT FOR GREATER MANCHESTER,01/06/2020,285.00 ,MINOR BUILDING WORKS,V001567346
ROCHDALE BOROUGH COUNCIL,01/06/2020,PROPERTY AND HIGHWAYS,TRANSPORT FOR GREATER MANCHESTER,01/06/2020,570.00 ,MINOR BUILDING WORKS,V001567347
ROCHDALE BOROUGH COUNCIL,15/06/2020,NEIGHBOURHOODS AND ENVIRONMENT,HSS HIRE SERVICE GROUP LIMITED,15/06/2020,279.00 ,EQUIPMENT - GENERAL,V001567348
ROCHDALE BOROUGH COUNCIL,09/06/2020,ADULT CARE LCO FUNCTIONS,POLLOCK LIFTS,09/06/2020,10947.05 ,MINOR BUILDING WORKS,V001567349
ROCHDALE BOROUGH COUNCIL,01/06/2020,ECONOMY DIRECTORATE,TRANSPORT FOR GREATER MANCHESTER,01/06/2020,1012.50 ,MINOR BUILDING WORKS,V001567373
ROCHDALE BOROUGH COUNCIL,02/06/2020,PROPERTY AND HIGHWAYS,WHEELDON BROTHERS WASTE LIMITED,02/06/2020,120.06 ,TIPPING CHARGES,V001567376
ROCHDALE BOROUGH COUNCIL,02/06/2020,PROPERTY AND HIGHWAYS,WHEELDON BROTHERS WASTE LIMITED,02/06/2020,120.06 ,TIPPING CHARGES,V001567376
ROCHDALE BOROUGH COUNCIL,08/06/2020,RESOURCES,ALLIED PUBLICITY SERVICES MANCHESTER LTD,08/06/2020,1027.40 ,EXTERNAL CONTRACTED PRINTING,V001567377
ROCHDALE BOROUGH COUNCIL,08/06/2020,CHILDREN�S SOCIAL CARE,INDEPENDENT TOGETHER LTD,08/06/2020,221.43 ,YOUNG PEOPLES RENTS,V001567378
ROCHDALE BOROUGH COUNCIL,11/06/2020,NEIGHBOURHOODS AND ENVIRONMENT,ROTA ROD LIMITED,11/06/2020,350.00 ,MAINTENANCE,V001567379
ROCHDALE BOROUGH COUNCIL,02/06/2020,ECONOMY DIRECTORATE,ROTA ROD LIMITED,02/06/2020,460.00 ,REPAIRS & ALTS OF BUILDINGS,V001567380
ROCHDALE BOROUGH COUNCIL,18/06/2020,PROPERTY AND HIGHWAYS,ROTA ROD LIMITED,18/06/2020,1130.00 ,REPAIRS & ALTS OF BUILDINGS,V001567381
ROCHDALE BOROUGH COUNCIL,04/06/2020,NEIGHBOURHOODS AND ENVIRONMENT,ROTA ROD LIMITED,04/06/2020,80.00 ,REPAIRS & ALTS OF BUILDINGS,V001567382
ROCHDALE BOROUGH COUNCIL,02/06/2020,PROPERTY AND HIGHWAYS,W J LEWIS BUILDERS MERCHANTS LIMITED,02/06/2020,72.50 ,PROPERTY - WORKS ELEMENT,V001567384
ROCHDALE BOROUGH COUNCIL,01/06/2020,CHILDREN�S SOCIAL CARE,POSTURITE UK LTD,01/06/2020,264.35 ,EQUIPMENT - GENERAL,V001567385
ROCHDALE BOROUGH COUNCIL,01/06/2020,CHILDREN�S SOCIAL CARE,POSTURITE UK LTD,01/06/2020,42.50 ,EQUIPMENT - GENERAL,V001567385
ROCHDALE BOROUGH COUNCIL,02/06/2020,CHILDREN�S SOCIAL CARE,FORENSIC TESTING SERVICE LTD,02/06/2020,50.00 ,MEDICAL FEES,V001567394
ROCHDALE BOROUGH COUNCIL,24/06/2020,NEIGHBOURHOODS AND ENVIRONMENT,ROYAL MAIL GROUP LTD,24/06/2020,10.02 ,POSTAGE,V001567397
ROCHDALE BOROUGH COUNCIL,03/06/2020,NEIGHBOURHOODS AND ENVIRONMENT,ZEN INTERNET LIMITED,03/06/2020,9.99 ,MAINTENANCE,V001567412
ROCHDALE BOROUGH COUNCIL,03/06/2020,NEIGHBOURHOODS AND ENVIRONMENT,CORPORATE DIRECT EUROPE LIMITED,03/06/2020,2100.00 ,IT EQUIPMENT,V001567413
ROCHDALE BOROUGH COUNCIL,03/06/2020,NEIGHBOURHOODS AND ENVIRONMENT,CORPORATE DIRECT EUROPE LIMITED,03/06/2020,7.95 ,IT EQUIPMENT,V001567413
ROCHDALE BOROUGH COUNCIL,29/06/2020,NEIGHBOURHOODS AND ENVIRONMENT,ACCORDIAL LIMITED,29/06/2020,850.00 ,SPECIFIED MAINTENANCE,V001567414
ROCHDALE BOROUGH COUNCIL,02/06/2020,COMMISSIONING AND STATUTORY,TIBARD LTD,02/06/2020,1750.00 ,"CLOTHES, UNIFORM AND LAUNDRY",V001567415
ROCHDALE BOROUGH COUNCIL,08/06/2020,ECONOMY DIRECTORATE,IRWELL STREET METALS,08/06/2020,6.33 ,REFUSE DISPOSAL,V001567418
ROCHDALE BOROUGH COUNCIL,23/06/2020,ECONOMY DIRECTORATE,IRWELL STREET METALS,23/06/2020,16.26 ,REFUSE DISPOSAL,V001567426
ROCHDALE BOROUGH COUNCIL,01/06/2020,NEIGHBOURHOODS AND ENVIRONMENT,ORCHARD RECYCLING SERVICE LTD,01/06/2020,2540.00 ,CONTRACTS,V001567497
ROCHDALE BOROUGH COUNCIL,01/06/2020,CHILDREN�S SOCIAL CARE,REDACTED - PERSONAL DATA,01/06/2020,123.10 ,ALLOWANCES,V001567498
ROCHDALE BOROUGH COUNCIL,01/06/2020,EARLY HELP AND SCHOOLS,INSPIRE TRAINING AND EDUCATION,01/06/2020,700.00 ,INDEPENDENT UNITS,V001567499
ROCHDALE BOROUGH COUNCIL,01/06/2020,NEIGHBOURHOODS AND ENVIRONMENT,REDACTED - PERSONAL DATA,01/06/2020,300.00 ,GRANTS TO OTHER BODIES,V001567500
ROCHDALE BOROUGH COUNCIL,01/06/2020,ECONOMY DIRECTORATE,TALBOT AND DAUGHTERS RESTORATION PROJECT,01/06/2020,1431.00 ,CONSULTANTS FEES,V001567501
ROCHDALE BOROUGH COUNCIL,01/06/2020,ECONOMY DIRECTORATE,KINGS CHAMBERS,01/06/2020,2268.75 ,PROFESSIONAL FEES,V001567502
ROCHDALE BOROUGH COUNCIL,01/06/2020,NEIGHBOURHOODS AND ENVIRONMENT,ROCHDALE TOWN TAXIS LTD,01/06/2020,36.00 ,TAXI HIRE,V001567503
ROCHDALE BOROUGH COUNCIL,01/06/2020,NEIGHBOURHOODS AND ENVIRONMENT,ROCHDALE TOWN TAXIS LTD,01/06/2020,36.00 ,TAXI HIRE,V001567503
ROCHDALE BOROUGH COUNCIL,01/06/2020,NEIGHBOURHOODS AND ENVIRONMENT,ROCHDALE TOWN TAXIS LTD,01/06/2020,36.00 ,TAXI HIRE,V001567503
ROCHDALE BOROUGH COUNCIL,01/06/2020,NEIGHBOURHOODS AND ENVIRONMENT,ROCHDALE TOWN TAXIS LTD,01/06/2020,199.98 ,TAXI HIRE,V001567504
ROCHDALE BOROUGH COUNCIL,01/06/2020,NEIGHBOURHOODS AND ENVIRONMENT,ROCHDALE TOWN TAXIS LTD,01/06/2020,199.98 ,TAXI HIRE,V001567504
ROCHDALE BOROUGH COUNCIL,01/06/2020,NEIGHBOURHOODS AND ENVIRONMENT,ROCHDALE TOWN TAXIS LTD,01/06/2020,199.98 ,TAXI HIRE,V001567504
ROCHDALE BOROUGH COUNCIL,01/06/2020,NEIGHBOURHOODS AND ENVIRONMENT,ROCHDALE TOWN TAXIS LTD,01/06/2020,425.00 ,TAXI HIRE,V001567505
ROCHDALE BOROUGH COUNCIL,01/06/2020,NEIGHBOURHOODS AND ENVIRONMENT,ROCHDALE TOWN TAXIS LTD,01/06/2020,425.00 ,TAXI HIRE,V001567505
ROCHDALE BOROUGH COUNCIL,01/06/2020,NEIGHBOURHOODS AND ENVIRONMENT,ROCHDALE TOWN TAXIS LTD,01/06/2020,425.00 ,TAXI HIRE,V001567505
ROCHDALE BOROUGH COUNCIL,01/06/2020,NEIGHBOURHOODS AND ENVIRONMENT,ROCHDALE TOWN TAXIS LTD,01/06/2020,170.00 ,TAXI HIRE,V001567506
ROCHDALE BOROUGH COUNCIL,01/06/2020,NEIGHBOURHOODS AND ENVIRONMENT,ROCHDALE TOWN TAXIS LTD,01/06/2020,170.00 ,TAXI HIRE,V001567506
ROCHDALE BOROUGH COUNCIL,01/06/2020,NEIGHBOURHOODS AND ENVIRONMENT,ROCHDALE TOWN TAXIS LTD,01/06/2020,170.00 ,TAXI HIRE,V001567506
ROCHDALE BOROUGH COUNCIL,01/06/2020,NEIGHBOURHOODS AND ENVIRONMENT,ROCHDALE TOWN TAXIS LTD,01/06/2020,90.00 ,TAXI HIRE,V001567507
ROCHDALE BOROUGH COUNCIL,01/06/2020,NEIGHBOURHOODS AND ENVIRONMENT,ROCHDALE TOWN TAXIS LTD,01/06/2020,90.00 ,TAXI HIRE,V001567507
ROCHDALE BOROUGH COUNCIL,01/06/2020,NEIGHBOURHOODS AND ENVIRONMENT,ROCHDALE TOWN TAXIS LTD,01/06/2020,90.00 ,TAXI HIRE,V001567507
ROCHDALE BOROUGH COUNCIL,01/06/2020,NEIGHBOURHOODS AND ENVIRONMENT,ROCHDALE TOWN TAXIS LTD,01/06/2020,70.00 ,TAXI HIRE,V001567508
ROCHDALE BOROUGH COUNCIL,01/06/2020,NEIGHBOURHOODS AND ENVIRONMENT,ROCHDALE TOWN TAXIS LTD,01/06/2020,70.00 ,TAXI HIRE,V001567508
ROCHDALE BOROUGH COUNCIL,01/06/2020,NEIGHBOURHOODS AND ENVIRONMENT,ROCHDALE TOWN TAXIS LTD,01/06/2020,70.00 ,TAXI HIRE,V001567508
ROCHDALE BOROUGH COUNCIL,01/06/2020,NEIGHBOURHOODS AND ENVIRONMENT,ROCHDALE TOWN TAXIS LTD,01/06/2020,350.00 ,TAXI HIRE,V001567509
ROCHDALE BOROUGH COUNCIL,01/06/2020,NEIGHBOURHOODS AND ENVIRONMENT,ROCHDALE TOWN TAXIS LTD,01/06/2020,350.00 ,TAXI HIRE,V001567509
ROCHDALE BOROUGH COUNCIL,01/06/2020,NEIGHBOURHOODS AND ENVIRONMENT,ROCHDALE TOWN TAXIS LTD,01/06/2020,350.00 ,TAXI HIRE,V001567509
ROCHDALE BOROUGH COUNCIL,01/06/2020,NEIGHBOURHOODS AND ENVIRONMENT,ROCHDALE TOWN TAXIS LTD,01/06/2020,166.00 ,TAXI HIRE,V001567510
ROCHDALE BOROUGH COUNCIL,01/06/2020,NEIGHBOURHOODS AND ENVIRONMENT,ROCHDALE TOWN TAXIS LTD,01/06/2020,166.00 ,TAXI HIRE,V001567510
ROCHDALE BOROUGH COUNCIL,01/06/2020,NEIGHBOURHOODS AND ENVIRONMENT,ROCHDALE TOWN TAXIS LTD,01/06/2020,166.00 ,TAXI HIRE,V001567510
ROCHDALE BOROUGH COUNCIL,01/06/2020,NEIGHBOURHOODS AND ENVIRONMENT,ROCHDALE TOWN TAXIS LTD,01/06/2020,68.00 ,TAXI HIRE,V001567511
ROCHDALE BOROUGH COUNCIL,01/06/2020,NEIGHBOURHOODS AND ENVIRONMENT,ROCHDALE TOWN TAXIS LTD,01/06/2020,68.00 ,TAXI HIRE,V001567511
ROCHDALE BOROUGH COUNCIL,01/06/2020,NEIGHBOURHOODS AND ENVIRONMENT,ROCHDALE TOWN TAXIS LTD,01/06/2020,68.00 ,TAXI HIRE,V001567511
ROCHDALE BOROUGH COUNCIL,01/06/2020,NEIGHBOURHOODS AND ENVIRONMENT,ROCHDALE TOWN TAXIS LTD,01/06/2020,12.00 ,TAXI HIRE,V001567512
ROCHDALE BOROUGH COUNCIL,01/06/2020,NEIGHBOURHOODS AND ENVIRONMENT,ROCHDALE TOWN TAXIS LTD,01/06/2020,12.00 ,TAXI HIRE,V001567512
ROCHDALE BOROUGH COUNCIL,01/06/2020,NEIGHBOURHOODS AND ENVIRONMENT,ROCHDALE TOWN TAXIS LTD,01/06/2020,12.00 ,TAXI HIRE,V001567512
ROCHDALE BOROUGH COUNCIL,01/06/2020,NEIGHBOURHOODS AND ENVIRONMENT,ROCHDALE TOWN TAXIS LTD,01/06/2020,40.00 ,TAXI HIRE,V001567513
ROCHDALE BOROUGH COUNCIL,01/06/2020,NEIGHBOURHOODS AND ENVIRONMENT,ROCHDALE TOWN TAXIS LTD,01/06/2020,40.00 ,TAXI HIRE,V001567513
ROCHDALE BOROUGH COUNCIL,01/06/2020,NEIGHBOURHOODS AND ENVIRONMENT,ROCHDALE TOWN TAXIS LTD,01/06/2020,40.00 ,TAXI HIRE,V001567513
ROCHDALE BOROUGH COUNCIL,01/06/2020,NEIGHBOURHOODS AND ENVIRONMENT,ROCHDALE TOWN TAXIS LTD,01/06/2020,148.00 ,TAXI HIRE,V001567514
ROCHDALE BOROUGH COUNCIL,01/06/2020,NEIGHBOURHOODS AND ENVIRONMENT,ROCHDALE TOWN TAXIS LTD,01/06/2020,148.00 ,TAXI HIRE,V001567514
ROCHDALE BOROUGH COUNCIL,01/06/2020,NEIGHBOURHOODS AND ENVIRONMENT,ROCHDALE TOWN TAXIS LTD,01/06/2020,148.00 ,TAXI HIRE,V001567514
ROCHDALE BOROUGH COUNCIL,01/06/2020,NEIGHBOURHOODS AND ENVIRONMENT,ROCHDALE TOWN TAXIS LTD,01/06/2020,36.00 ,TAXI HIRE,V001567515
ROCHDALE BOROUGH COUNCIL,01/06/2020,NEIGHBOURHOODS AND ENVIRONMENT,ROCHDALE TOWN TAXIS LTD,01/06/2020,36.00 ,TAXI HIRE,V001567515
ROCHDALE BOROUGH COUNCIL,01/06/2020,NEIGHBOURHOODS AND ENVIRONMENT,ROCHDALE TOWN TAXIS LTD,01/06/2020,36.00 ,TAXI HIRE,V001567515
ROCHDALE BOROUGH COUNCIL,11/06/2020,NEIGHBOURHOODS AND ENVIRONMENT,WHISTL UK LTD,11/06/2020,76.09 ,TRANSACTIONS-EXPENDITURE,V001567516
ROCHDALE BOROUGH COUNCIL,01/06/2020,ECONOMY DIRECTORATE,FRANK WHITTLE PARTNERSHIP LTD,01/06/2020,1228.00 ,CONSULTANTS FEES,V001567518
ROCHDALE BOROUGH COUNCIL,01/06/2020,ECONOMY DIRECTORATE,FRANK WHITTLE PARTNERSHIP LTD,01/06/2020,7104.00 ,CONSULTANTS FEES,V001567519
ROCHDALE BOROUGH COUNCIL,01/06/2020,CHILDREN�S SOCIAL CARE,G AND A TAYLOR HOTELS LTD,01/06/2020,500.85 ,ALLOWANCES,V001567520
ROCHDALE BOROUGH COUNCIL,01/06/2020,NEIGHBOURHOODS AND ENVIRONMENT,REDACTED - PERSONAL DATA,01/06/2020,240.00 ,ACTIVITIES,V001567521
ROCHDALE BOROUGH COUNCIL,01/06/2020,NEIGHBOURHOODS AND ENVIRONMENT,ROCHDALE TOWN TAXIS LTD,01/06/2020,120.00 ,TAXI HIRE,V001567522
ROCHDALE BOROUGH COUNCIL,01/06/2020,NEIGHBOURHOODS AND ENVIRONMENT,ROCHDALE TOWN TAXIS LTD,01/06/2020,120.00 ,TAXI HIRE,V001567522
ROCHDALE BOROUGH COUNCIL,01/06/2020,NEIGHBOURHOODS AND ENVIRONMENT,ROCHDALE TOWN TAXIS LTD,01/06/2020,120.00 ,TAXI HIRE,V001567522
ROCHDALE BOROUGH COUNCIL,01/06/2020,NEIGHBOURHOODS AND ENVIRONMENT,DAISY COMMUNICATIONS LTD,01/06/2020,8600.50 ,TRANSACTIONS-EXPENDITURE,V001567523
ROCHDALE BOROUGH COUNCIL,01/06/2020,ECONOMY DIRECTORATE,CLOVER SECURITY SERVICES LIMITED,01/06/2020,280.00 ,SECURITY,V001567524
ROCHDALE BOROUGH COUNCIL,01/06/2020,ECONOMY DIRECTORATE,DONALD INSALL ASSOCIATES,01/06/2020,4000.00 ,CONSULTANTS FEES,V001567525
ROCHDALE BOROUGH COUNCIL,01/06/2020,ECONOMY DIRECTORATE,DONALD INSALL ASSOCIATES,01/06/2020,10000.00 ,CONSULTANTS FEES,V001567526
ROCHDALE BOROUGH COUNCIL,01/06/2020,ECONOMY DIRECTORATE,DONALD INSALL ASSOCIATES,01/06/2020,10000.00 ,CONSULTANTS FEES,V001567527
ROCHDALE BOROUGH COUNCIL,01/06/2020,ECONOMY DIRECTORATE,DONALD INSALL ASSOCIATES,01/06/2020,145.35 ,CONSULTANTS FEES,V001567528
ROCHDALE BOROUGH COUNCIL,01/06/2020,NEIGHBOURHOODS AND ENVIRONMENT,BLOOM PROCUREMENT SERVICES LTD,01/06/2020,2050.00 ,EQUIPMENT - GENERAL,V001567529
ROCHDALE BOROUGH COUNCIL,01/06/2020,ECONOMY DIRECTORATE,THE HERITAGE ANGEL LTD,01/06/2020,2000.00 ,CONSULTANTS FEES,V001567530
ROCHDALE BOROUGH COUNCIL,01/06/2020,ECONOMY DIRECTORATE,THE HERITAGE ANGEL LTD,01/06/2020,5000.00 ,CONSULTANTS FEES,V001567531
ROCHDALE BOROUGH COUNCIL,01/06/2020,NEIGHBOURHOODS AND ENVIRONMENT,REDACTED - PERSONAL DATA,01/06/2020,333.50 ,TAXI HIRE,V001567532
ROCHDALE BOROUGH COUNCIL,01/06/2020,NEIGHBOURHOODS AND ENVIRONMENT,J AND S TRAVEL,01/06/2020,615.60 ,TAXI HIRE,V001567533
ROCHDALE BOROUGH COUNCIL,01/06/2020,NEIGHBOURHOODS AND ENVIRONMENT,J AND S TRAVEL,01/06/2020,623.76 ,TAXI HIRE,V001567533
ROCHDALE BOROUGH COUNCIL,01/06/2020,NEIGHBOURHOODS AND ENVIRONMENT,J AND S TRAVEL,01/06/2020,652.00 ,TAXI HIRE,V001567533
ROCHDALE BOROUGH COUNCIL,01/06/2020,NEIGHBOURHOODS AND ENVIRONMENT,J AND S TRAVEL,01/06/2020,628.00 ,TAXI HIRE,V001567533
ROCHDALE BOROUGH COUNCIL,01/06/2020,NEIGHBOURHOODS AND ENVIRONMENT,COACH OPTIONS LIMITED,01/06/2020,370.56 ,TAXI HIRE,V001567534
ROCHDALE BOROUGH COUNCIL,01/06/2020,NEIGHBOURHOODS AND ENVIRONMENT,COACH OPTIONS LIMITED,01/06/2020,381.96 ,TAXI HIRE,V001567535
ROCHDALE BOROUGH COUNCIL,01/06/2020,NEIGHBOURHOODS AND ENVIRONMENT,REDACTED - PERSONAL DATA,01/06/2020,333.50 ,TAXI HIRE,V001567536
ROCHDALE BOROUGH COUNCIL,01/06/2020,NEIGHBOURHOODS AND ENVIRONMENT,J AND S TRAVEL,01/06/2020,615.60 ,TAXI HIRE,V001567537
ROCHDALE BOROUGH COUNCIL,01/06/2020,NEIGHBOURHOODS AND ENVIRONMENT,J AND S TRAVEL,01/06/2020,623.76 ,TAXI HIRE,V001567537
ROCHDALE BOROUGH COUNCIL,01/06/2020,NEIGHBOURHOODS AND ENVIRONMENT,J AND S TRAVEL,01/06/2020,652.00 ,TAXI HIRE,V001567537
ROCHDALE BOROUGH COUNCIL,01/06/2020,NEIGHBOURHOODS AND ENVIRONMENT,J AND S TRAVEL,01/06/2020,628.00 ,TAXI HIRE,V001567537
ROCHDALE BOROUGH COUNCIL,01/06/2020,NEIGHBOURHOODS AND ENVIRONMENT,SPIN PRINT SOLUTIONS,01/06/2020,259.00 ,PRINTING,V001567538
ROCHDALE BOROUGH COUNCIL,01/06/2020,EARLY HELP AND SCHOOLS,TSOM GROUP,01/06/2020,600.00 ,INDEPENDENT UNITS,V001567539
ROCHDALE BOROUGH COUNCIL,02/06/2020,CHILDREN�S SOCIAL CARE,MILLENNIUM TRANSLATIONS LTD,02/06/2020,48.00 ,TRANSLATION & INTERPRETATION,V001567540
ROCHDALE BOROUGH COUNCIL,01/06/2020,NEIGHBOURHOODS AND ENVIRONMENT,BLUEPRINT GB LTD,01/06/2020,85.00 ,PRINTING,V001567541
ROCHDALE BOROUGH COUNCIL,01/06/2020,PROPERTY AND HIGHWAYS,D SHAWCROSS LTD,01/06/2020,2085.75 ,MINOR BUILDING WORKS,V001567542
ROCHDALE BOROUGH COUNCIL,01/06/2020,NEIGHBOURHOODS AND ENVIRONMENT,ROCHDALE TOWN TAXIS LTD,01/06/2020,250.00 ,TAXI HIRE,V001567543
ROCHDALE BOROUGH COUNCIL,01/06/2020,NEIGHBOURHOODS AND ENVIRONMENT,ROCHDALE TOWN TAXIS LTD,01/06/2020,250.00 ,TAXI HIRE,V001567543
ROCHDALE BOROUGH COUNCIL,01/06/2020,NEIGHBOURHOODS AND ENVIRONMENT,ROCHDALE TOWN TAXIS LTD,01/06/2020,250.00 ,TAXI HIRE,V001567543
ROCHDALE BOROUGH COUNCIL,01/06/2020,PROPERTY AND HIGHWAYS,IHS GLOBAL LTD,01/06/2020,17431.43 ,SOFTWARE,V001567544
ROCHDALE BOROUGH COUNCIL,17/06/2020,CHILDREN�S SOCIAL CARE,STEP AHEAD,17/06/2020,57.90 ,YOUNGE PERSONS ALLOWANCE,V001567545
ROCHDALE BOROUGH COUNCIL,01/06/2020,CHILDREN�S SOCIAL CARE,DEPAUL UK,01/06/2020,24685.71 ,YOUNG PEOPLES RENTS,V001567546
ROCHDALE BOROUGH COUNCIL,01/06/2020,CHILDREN�S SOCIAL CARE,FOSTER CARELINE LTD,01/06/2020,6835.71 ,FOSTER PARENTS BASIC ALLOWANCE,V001567547
ROCHDALE BOROUGH COUNCIL,11/06/2020,NEIGHBOURHOODS AND ENVIRONMENT,WHISTL UK LTD,11/06/2020,534.55 ,TRANSACTIONS-EXPENDITURE,V001567548
ROCHDALE BOROUGH COUNCIL,01/06/2020,NEIGHBOURHOODS AND ENVIRONMENT,BRITISH TELECOMMUNICATIONS PLC,01/06/2020,11217.94 ,COMMUNICATION AND COMPUTING - GENERAL,V001567549
ROCHDALE BOROUGH COUNCIL,01/06/2020,NEIGHBOURHOODS AND ENVIRONMENT,BRITISH TELECOMMUNICATIONS PLC,01/06/2020,11217.94 ,COMMUNICATION AND COMPUTING - GENERAL,V001567549
ROCHDALE BOROUGH COUNCIL,01/06/2020,NEIGHBOURHOODS AND ENVIRONMENT,BRITISH TELECOMMUNICATIONS PLC,01/06/2020,11217.94 ,COMMUNICATION AND COMPUTING - GENERAL,V001567549
ROCHDALE BOROUGH COUNCIL,01/06/2020,NEIGHBOURHOODS AND ENVIRONMENT,MANCHESTER DOGS HOME,01/06/2020,46.62 ,FEES / COMMISSION,V001567550
ROCHDALE BOROUGH COUNCIL,01/06/2020,NEIGHBOURHOODS AND ENVIRONMENT,GRAVITAS RECRUITMENT GROUP,01/06/2020,2250.00 ,CAPITAL - STAFFING AGENCY PAYMENTS,V001567551
ROCHDALE BOROUGH COUNCIL,01/06/2020,NEIGHBOURHOODS AND ENVIRONMENT,GRAVITAS RECRUITMENT GROUP,01/06/2020,2000.00 ,AGENCY STAFF,V001567552
ROCHDALE BOROUGH COUNCIL,01/06/2020,CHILDREN�S SOCIAL CARE,ALPHA PLUS FOSTERING,01/06/2020,3276.04 ,FOSTER PARENTS BASIC ALLOWANCE,V001567553
ROCHDALE BOROUGH COUNCIL,01/06/2020,CHILDREN�S SOCIAL CARE,ALPHA PLUS FOSTERING,01/06/2020,3342.90 ,FOSTER PARENTS BASIC ALLOWANCE,V001567554
ROCHDALE BOROUGH COUNCIL,01/06/2020,CHILDREN�S SOCIAL CARE,FOSTERING SOLUTIONS LTD,01/06/2020,3251.85 ,FOSTER PARENTS BASIC ALLOWANCE,V001567555
ROCHDALE BOROUGH COUNCIL,01/06/2020,CHILDREN�S SOCIAL CARE,FOSTERING SOLUTIONS LTD,01/06/2020,3024.22 ,FOSTER PARENTS BASIC ALLOWANCE,V001567556
ROCHDALE BOROUGH COUNCIL,01/06/2020,CHILDREN�S SOCIAL CARE,FOSTERING SOLUTIONS LTD,01/06/2020,2147.10 ,FOSTER PARENTS BASIC ALLOWANCE,V001567557
ROCHDALE BOROUGH COUNCIL,01/06/2020,CHILDREN�S SOCIAL CARE,FOSTERING SOLUTIONS LTD,01/06/2020,3218.79 ,FOSTER PARENTS BASIC ALLOWANCE,V001567558
ROCHDALE BOROUGH COUNCIL,01/06/2020,CHILDREN�S SOCIAL CARE,FOSTERING SOLUTIONS LTD,01/06/2020,3318.26 ,FOSTER PARENTS BASIC ALLOWANCE,V001567559
ROCHDALE BOROUGH COUNCIL,01/06/2020,CHILDREN�S SOCIAL CARE,FOSTERING SOLUTIONS LTD,01/06/2020,3557.10 ,FOSTER PARENTS BASIC ALLOWANCE,V001567560
ROCHDALE BOROUGH COUNCIL,01/06/2020,CHILDREN�S SOCIAL CARE,FOSTERING SOLUTIONS LTD,01/06/2020,3379.24 ,FOSTER PARENTS BASIC ALLOWANCE,V001567561
ROCHDALE BOROUGH COUNCIL,01/06/2020,CHILDREN�S SOCIAL CARE,REED SPECIALIST RECRUITMENT LTD,01/06/2020,11.84 ,AGENCY STAFF,V001567562
ROCHDALE BOROUGH COUNCIL,01/06/2020,ADULT CARE LCO FUNCTIONS,REED SPECIALIST RECRUITMENT LTD,01/06/2020,138.88 ,CAPITAL - STAFFING AGENCY PAYMENTS,V001567562
ROCHDALE BOROUGH COUNCIL,01/06/2020,CHILDREN�S SOCIAL CARE,REED SPECIALIST RECRUITMENT LTD,01/06/2020,3.96 ,AGENCY STAFF,V001567562
ROCHDALE BOROUGH COUNCIL,01/06/2020,CHILDREN�S SOCIAL CARE,REED SPECIALIST RECRUITMENT LTD,01/06/2020,24.80 ,AGENCY STAFF,V001567562
ROCHDALE BOROUGH COUNCIL,01/06/2020,CHILDREN�S SOCIAL CARE,REED SPECIALIST RECRUITMENT LTD,01/06/2020,30.40 ,AGENCY STAFF,V001567562
ROCHDALE BOROUGH COUNCIL,01/06/2020,CHILDREN�S SOCIAL CARE,REED SPECIALIST RECRUITMENT LTD,01/06/2020,3.60 ,AGENCY STAFF,V001567562
ROCHDALE BOROUGH COUNCIL,01/06/2020,NEIGHBOURHOODS AND ENVIRONMENT,REED SPECIALIST RECRUITMENT LTD,01/06/2020,114.72 ,AGENCY STAFF,V001567562
ROCHDALE BOROUGH COUNCIL,01/06/2020,NEIGHBOURHOODS AND ENVIRONMENT,REED SPECIALIST RECRUITMENT LTD,01/06/2020,114.72 ,AGENCY STAFF,V001567562
ROCHDALE BOROUGH COUNCIL,01/06/2020,NEIGHBOURHOODS AND ENVIRONMENT,REED SPECIALIST RECRUITMENT LTD,01/06/2020,286.29 ,AGENCY STAFF,V001567562
ROCHDALE BOROUGH COUNCIL,01/06/2020,NEIGHBOURHOODS AND ENVIRONMENT,REED SPECIALIST RECRUITMENT LTD,01/06/2020,108.40 ,AGENCY STAFF,V001567562
ROCHDALE BOROUGH COUNCIL,01/06/2020,NEIGHBOURHOODS AND ENVIRONMENT,REED SPECIALIST RECRUITMENT LTD,01/06/2020,108.40 ,AGENCY STAFF,V001567562
ROCHDALE BOROUGH COUNCIL,01/06/2020,NEIGHBOURHOODS AND ENVIRONMENT,REED SPECIALIST RECRUITMENT LTD,01/06/2020,108.40 ,AGENCY STAFF,V001567562
ROCHDALE BOROUGH COUNCIL,01/06/2020,CHILDREN�S SOCIAL CARE,REED SPECIALIST RECRUITMENT LTD,01/06/2020,975.24 ,AGENCY STAFF,V001567562
ROCHDALE BOROUGH COUNCIL,01/06/2020,PROPERTY AND HIGHWAYS,REED SPECIALIST RECRUITMENT LTD,01/06/2020,676.72 ,AGENCY STAFF,V001567562
ROCHDALE BOROUGH COUNCIL,01/06/2020,ADULT CARE LCO FUNCTIONS,REED SPECIALIST RECRUITMENT LTD,01/06/2020,484.51 ,AGENCY STAFF,V001567562
ROCHDALE BOROUGH COUNCIL,01/06/2020,ADULT CARE LCO FUNCTIONS,REED SPECIALIST RECRUITMENT LTD,01/06/2020,477.96 ,AGENCY STAFF,V001567562
ROCHDALE BOROUGH COUNCIL,01/06/2020,ADULT CARE LCO FUNCTIONS,REED SPECIALIST RECRUITMENT LTD,01/06/2020,484.51 ,AGENCY STAFF,V001567562
ROCHDALE BOROUGH COUNCIL,01/06/2020,ADULT CARE LCO FUNCTIONS,REED SPECIALIST RECRUITMENT LTD,01/06/2020,484.51 ,AGENCY STAFF,V001567562
ROCHDALE BOROUGH COUNCIL,01/06/2020,ADULT CARE LCO FUNCTIONS,REED SPECIALIST RECRUITMENT LTD,01/06/2020,392.84 ,AGENCY STAFF,V001567562
ROCHDALE BOROUGH COUNCIL,01/06/2020,ADULT CARE LCO FUNCTIONS,REED SPECIALIST RECRUITMENT LTD,01/06/2020,405.93 ,AGENCY STAFF,V001567562
ROCHDALE BOROUGH COUNCIL,01/06/2020,ADULT CARE LCO FUNCTIONS,REED SPECIALIST RECRUITMENT LTD,01/06/2020,484.51 ,AGENCY STAFF,V001567562
ROCHDALE BOROUGH COUNCIL,01/06/2020,ADULT CARE LCO FUNCTIONS,REED SPECIALIST RECRUITMENT LTD,01/06/2020,484.51 ,AGENCY STAFF,V001567562
ROCHDALE BOROUGH COUNCIL,01/06/2020,ADULT CARE LCO FUNCTIONS,REED SPECIALIST RECRUITMENT LTD,01/06/2020,367.93 ,CAPITAL - STAFFING AGENCY PAYMENTS,V001567562
ROCHDALE BOROUGH COUNCIL,01/06/2020,NEIGHBOURHOODS AND ENVIRONMENT,REED SPECIALIST RECRUITMENT LTD,01/06/2020,563.79 ,AGENCY STAFF,V001567562
ROCHDALE BOROUGH COUNCIL,01/06/2020,NEIGHBOURHOODS AND ENVIRONMENT,REED SPECIALIST RECRUITMENT LTD,01/06/2020,606.41 ,AGENCY STAFF,V001567562
ROCHDALE BOROUGH COUNCIL,01/06/2020,NEIGHBOURHOODS AND ENVIRONMENT,REED SPECIALIST RECRUITMENT LTD,01/06/2020,414.79 ,AGENCY STAFF,V001567562
ROCHDALE BOROUGH COUNCIL,01/06/2020,ADULT CARE LCO FUNCTIONS,REED SPECIALIST RECRUITMENT LTD,01/06/2020,825.84 ,AGENCY STAFF,V001567562
ROCHDALE BOROUGH COUNCIL,01/06/2020,CHILDREN�S SOCIAL CARE,REED SPECIALIST RECRUITMENT LTD,01/06/2020,1069.75 ,AGENCY STAFF,V001567562
ROCHDALE BOROUGH COUNCIL,01/06/2020,ADULT CARE LCO FUNCTIONS,REED SPECIALIST RECRUITMENT LTD,01/06/2020,619.38 ,AGENCY STAFF,V001567562
ROCHDALE BOROUGH COUNCIL,01/06/2020,RESOURCES,REED SPECIALIST RECRUITMENT LTD,01/06/2020,1115.84 ,AGENCY STAFF,V001567562
ROCHDALE BOROUGH COUNCIL,01/06/2020,ADULT CARE LCO FUNCTIONS,REED SPECIALIST RECRUITMENT LTD,01/06/2020,823.55 ,AGENCY STAFF,V001567562
ROCHDALE BOROUGH COUNCIL,01/06/2020,ADULT CARE LCO FUNCTIONS,REED SPECIALIST RECRUITMENT LTD,01/06/2020,401.97 ,AGENCY STAFF,V001567562
ROCHDALE BOROUGH COUNCIL,01/06/2020,NEIGHBOURHOODS AND ENVIRONMENT,REED SPECIALIST RECRUITMENT LTD,01/06/2020,609.84 ,AGENCY STAFF,V001567562
ROCHDALE BOROUGH COUNCIL,01/06/2020,NEIGHBOURHOODS AND ENVIRONMENT,REED SPECIALIST RECRUITMENT LTD,01/06/2020,958.46 ,AGENCY STAFF,V001567562
ROCHDALE BOROUGH COUNCIL,01/06/2020,NEIGHBOURHOODS AND ENVIRONMENT,REED SPECIALIST RECRUITMENT LTD,01/06/2020,454.10 ,AGENCY STAFF,V001567562
ROCHDALE BOROUGH COUNCIL,01/06/2020,NEIGHBOURHOODS AND ENVIRONMENT,REED SPECIALIST RECRUITMENT LTD,01/06/2020,628.23 ,AGENCY STAFF,V001567562
ROCHDALE BOROUGH COUNCIL,01/06/2020,NEIGHBOURHOODS AND ENVIRONMENT,REED SPECIALIST RECRUITMENT LTD,01/06/2020,511.95 ,AGENCY STAFF,V001567562
ROCHDALE BOROUGH COUNCIL,01/06/2020,NEIGHBOURHOODS AND ENVIRONMENT,REED SPECIALIST RECRUITMENT LTD,01/06/2020,454.10 ,AGENCY STAFF,V001567562
ROCHDALE BOROUGH COUNCIL,01/06/2020,NEIGHBOURHOODS AND ENVIRONMENT,REED SPECIALIST RECRUITMENT LTD,01/06/2020,314.03 ,AGENCY STAFF,V001567562
ROCHDALE BOROUGH COUNCIL,01/06/2020,NEIGHBOURHOODS AND ENVIRONMENT,REED SPECIALIST RECRUITMENT LTD,01/06/2020,104.67 ,AGENCY STAFF,V001567562
ROCHDALE BOROUGH COUNCIL,01/06/2020,PROPERTY AND HIGHWAYS,REED SPECIALIST RECRUITMENT LTD,01/06/2020,589.32 ,AGENCY STAFF,V001567562
ROCHDALE BOROUGH COUNCIL,01/06/2020,NEIGHBOURHOODS AND ENVIRONMENT,REED SPECIALIST RECRUITMENT LTD,01/06/2020,413.46 ,AGENCY STAFF,V001567562
ROCHDALE BOROUGH COUNCIL,01/06/2020,PROPERTY AND HIGHWAYS,REED SPECIALIST RECRUITMENT LTD,01/06/2020,635.54 ,AGENCY STAFF,V001567562
ROCHDALE BOROUGH COUNCIL,01/06/2020,NEIGHBOURHOODS AND ENVIRONMENT,REED SPECIALIST RECRUITMENT LTD,01/06/2020,209.36 ,AGENCY STAFF,V001567562
ROCHDALE BOROUGH COUNCIL,01/06/2020,NEIGHBOURHOODS AND ENVIRONMENT,REED SPECIALIST RECRUITMENT LTD,01/06/2020,418.72 ,AGENCY STAFF,V001567562
ROCHDALE BOROUGH COUNCIL,01/06/2020,ADULT CARE LCO FUNCTIONS,REED SPECIALIST RECRUITMENT LTD,01/06/2020,359.32 ,AGENCY STAFF,V001567562
ROCHDALE BOROUGH COUNCIL,01/06/2020,ADULT CARE LCO FUNCTIONS,REED SPECIALIST RECRUITMENT LTD,01/06/2020,684.58 ,CAPITAL - STAFFING AGENCY PAYMENTS,V001567562
ROCHDALE BOROUGH COUNCIL,01/06/2020,NEIGHBOURHOODS AND ENVIRONMENT,REED SPECIALIST RECRUITMENT LTD,01/06/2020,648.34 ,AGENCY STAFF,V001567562
ROCHDALE BOROUGH COUNCIL,01/06/2020,CHILDREN�S SOCIAL CARE,REED SPECIALIST RECRUITMENT LTD,01/06/2020,975.24 ,AGENCY STAFF,V001567562
ROCHDALE BOROUGH COUNCIL,01/06/2020,NEIGHBOURHOODS AND ENVIRONMENT,REED SPECIALIST RECRUITMENT LTD,01/06/2020,418.72 ,AGENCY STAFF,V001567562
ROCHDALE BOROUGH COUNCIL,01/06/2020,NEIGHBOURHOODS AND ENVIRONMENT,REED SPECIALIST RECRUITMENT LTD,01/06/2020,227.04 ,AGENCY STAFF,V001567562
ROCHDALE BOROUGH COUNCIL,01/06/2020,NEIGHBOURHOODS AND ENVIRONMENT,REED SPECIALIST RECRUITMENT LTD,01/06/2020,701.11 ,AGENCY STAFF,V001567562
ROCHDALE BOROUGH COUNCIL,01/06/2020,NEIGHBOURHOODS AND ENVIRONMENT,REED SPECIALIST RECRUITMENT LTD,01/06/2020,726.83 ,AGENCY STAFF,V001567562
ROCHDALE BOROUGH COUNCIL,01/06/2020,NEIGHBOURHOODS AND ENVIRONMENT,REED SPECIALIST RECRUITMENT LTD,01/06/2020,310.09 ,AGENCY STAFF,V001567562
ROCHDALE BOROUGH COUNCIL,01/06/2020,ADULT CARE LCO FUNCTIONS,REED SPECIALIST RECRUITMENT LTD,01/06/2020,404.61 ,AGENCY STAFF,V001567562
ROCHDALE BOROUGH COUNCIL,01/06/2020,NEIGHBOURHOODS AND ENVIRONMENT,REED SPECIALIST RECRUITMENT LTD,01/06/2020,387.92 ,AGENCY STAFF,V001567562
ROCHDALE BOROUGH COUNCIL,01/06/2020,CHILDREN�S SOCIAL CARE,REED SPECIALIST RECRUITMENT LTD,01/06/2020,747.68 ,AGENCY STAFF,V001567562
ROCHDALE BOROUGH COUNCIL,01/06/2020,NEIGHBOURHOODS AND ENVIRONMENT,REED SPECIALIST RECRUITMENT LTD,01/06/2020,413.46 ,AGENCY STAFF,V001567562
ROCHDALE BOROUGH COUNCIL,01/06/2020,NEIGHBOURHOODS AND ENVIRONMENT,REED SPECIALIST RECRUITMENT LTD,01/06/2020,651.89 ,AGENCY STAFF,V001567562
ROCHDALE BOROUGH COUNCIL,01/06/2020,PROPERTY AND HIGHWAYS,REED SPECIALIST RECRUITMENT LTD,01/06/2020,675.50 ,AGENCY STAFF,V001567562
ROCHDALE BOROUGH COUNCIL,01/06/2020,NEIGHBOURHOODS AND ENVIRONMENT,REED SPECIALIST RECRUITMENT LTD,01/06/2020,643.64 ,AGENCY STAFF,V001567562
ROCHDALE BOROUGH COUNCIL,01/06/2020,NEIGHBOURHOODS AND ENVIRONMENT,REED SPECIALIST RECRUITMENT LTD,01/06/2020,117.79 ,AGENCY STAFF,V001567562
ROCHDALE BOROUGH COUNCIL,01/06/2020,NEIGHBOURHOODS AND ENVIRONMENT,REED SPECIALIST RECRUITMENT LTD,01/06/2020,483.52 ,AGENCY STAFF,V001567562
ROCHDALE BOROUGH COUNCIL,01/06/2020,NEIGHBOURHOODS AND ENVIRONMENT,REED SPECIALIST RECRUITMENT LTD,01/06/2020,119.53 ,AGENCY STAFF,V001567562
ROCHDALE BOROUGH COUNCIL,01/06/2020,NEIGHBOURHOODS AND ENVIRONMENT,REED SPECIALIST RECRUITMENT LTD,01/06/2020,478.06 ,AGENCY STAFF,V001567562
ROCHDALE BOROUGH COUNCIL,01/06/2020,NEIGHBOURHOODS AND ENVIRONMENT,REED SPECIALIST RECRUITMENT LTD,01/06/2020,704.54 ,AGENCY STAFF,V001567562
ROCHDALE BOROUGH COUNCIL,01/06/2020,NEIGHBOURHOODS AND ENVIRONMENT,REED SPECIALIST RECRUITMENT LTD,01/06/2020,503.90 ,AGENCY STAFF,V001567562
ROCHDALE BOROUGH COUNCIL,01/06/2020,RESOURCES,REED SPECIALIST RECRUITMENT LTD,01/06/2020,434.64 ,AGENCY STAFF,V001567562
ROCHDALE BOROUGH COUNCIL,01/06/2020,NEIGHBOURHOODS AND ENVIRONMENT,REED SPECIALIST RECRUITMENT LTD,01/06/2020,599.57 ,AGENCY STAFF,V001567562
ROCHDALE BOROUGH COUNCIL,01/06/2020,CHILDREN�S SOCIAL CARE,REED SPECIALIST RECRUITMENT LTD,01/06/2020,915.24 ,AGENCY STAFF,V001567562
ROCHDALE BOROUGH COUNCIL,01/06/2020,NEIGHBOURHOODS AND ENVIRONMENT,REED SPECIALIST RECRUITMENT LTD,01/06/2020,717.83 ,AGENCY STAFF,V001567562
ROCHDALE BOROUGH COUNCIL,01/06/2020,NEIGHBOURHOODS AND ENVIRONMENT,REED SPECIALIST RECRUITMENT LTD,01/06/2020,454.10 ,AGENCY STAFF,V001567562
ROCHDALE BOROUGH COUNCIL,01/06/2020,NEIGHBOURHOODS AND ENVIRONMENT,REED SPECIALIST RECRUITMENT LTD,01/06/2020,615.93 ,AGENCY STAFF,V001567562
ROCHDALE BOROUGH COUNCIL,01/06/2020,NEIGHBOURHOODS AND ENVIRONMENT,REED SPECIALIST RECRUITMENT LTD,01/06/2020,652.86 ,AGENCY STAFF,V001567562
ROCHDALE BOROUGH COUNCIL,01/06/2020,NEIGHBOURHOODS AND ENVIRONMENT,REED SPECIALIST RECRUITMENT LTD,01/06/2020,454.10 ,AGENCY STAFF,V001567562
ROCHDALE BOROUGH COUNCIL,01/06/2020,ADULT CARE LCO FUNCTIONS,REED SPECIALIST RECRUITMENT LTD,01/06/2020,408.69 ,AGENCY STAFF,V001567562
ROCHDALE BOROUGH COUNCIL,01/06/2020,NEIGHBOURHOODS AND ENVIRONMENT,REED SPECIALIST RECRUITMENT LTD,01/06/2020,418.72 ,AGENCY STAFF,V001567562
ROCHDALE BOROUGH COUNCIL,01/06/2020,NEIGHBOURHOODS AND ENVIRONMENT,REED SPECIALIST RECRUITMENT LTD,01/06/2020,724.88 ,AGENCY STAFF,V001567562
ROCHDALE BOROUGH COUNCIL,01/06/2020,NEIGHBOURHOODS AND ENVIRONMENT,REED SPECIALIST RECRUITMENT LTD,01/06/2020,596.41 ,AGENCY STAFF,V001567562
ROCHDALE BOROUGH COUNCIL,01/06/2020,NEIGHBOURHOODS AND ENVIRONMENT,REED SPECIALIST RECRUITMENT LTD,01/06/2020,651.89 ,AGENCY STAFF,V001567562
ROCHDALE BOROUGH COUNCIL,01/06/2020,NEIGHBOURHOODS AND ENVIRONMENT,REED SPECIALIST RECRUITMENT LTD,01/06/2020,631.48 ,AGENCY STAFF,V001567562
ROCHDALE BOROUGH COUNCIL,01/06/2020,NEIGHBOURHOODS AND ENVIRONMENT,REED SPECIALIST RECRUITMENT LTD,01/06/2020,665.17 ,AGENCY STAFF,V001567562
ROCHDALE BOROUGH COUNCIL,01/06/2020,NEIGHBOURHOODS AND ENVIRONMENT,REED SPECIALIST RECRUITMENT LTD,01/06/2020,596.41 ,AGENCY STAFF,V001567562
ROCHDALE BOROUGH COUNCIL,01/06/2020,NEIGHBOURHOODS AND ENVIRONMENT,REED SPECIALIST RECRUITMENT LTD,01/06/2020,588.86 ,AGENCY STAFF,V001567562
ROCHDALE BOROUGH COUNCIL,01/06/2020,NEIGHBOURHOODS AND ENVIRONMENT,REED SPECIALIST RECRUITMENT LTD,01/06/2020,511.95 ,AGENCY STAFF,V001567562
ROCHDALE BOROUGH COUNCIL,01/06/2020,NEIGHBOURHOODS AND ENVIRONMENT,REED SPECIALIST RECRUITMENT LTD,01/06/2020,576.55 ,AGENCY STAFF,V001567562
ROCHDALE BOROUGH COUNCIL,01/06/2020,NEIGHBOURHOODS AND ENVIRONMENT,REED SPECIALIST RECRUITMENT LTD,01/06/2020,710.74 ,AGENCY STAFF,V001567562
ROCHDALE BOROUGH COUNCIL,01/06/2020,NEIGHBOURHOODS AND ENVIRONMENT,REED SPECIALIST RECRUITMENT LTD,01/06/2020,724.88 ,AGENCY STAFF,V001567562
ROCHDALE BOROUGH COUNCIL,01/06/2020,NEIGHBOURHOODS AND ENVIRONMENT,REED SPECIALIST RECRUITMENT LTD,01/06/2020,418.72 ,AGENCY STAFF,V001567562
ROCHDALE BOROUGH COUNCIL,01/06/2020,NEIGHBOURHOODS AND ENVIRONMENT,REED SPECIALIST RECRUITMENT LTD,01/06/2020,418.72 ,AGENCY STAFF,V001567562
ROCHDALE BOROUGH COUNCIL,01/06/2020,NEIGHBOURHOODS AND ENVIRONMENT,REED SPECIALIST RECRUITMENT LTD,01/06/2020,677.00 ,AGENCY STAFF,V001567562
ROCHDALE BOROUGH COUNCIL,01/06/2020,NEIGHBOURHOODS AND ENVIRONMENT,REED SPECIALIST RECRUITMENT LTD,01/06/2020,601.18 ,AGENCY STAFF,V001567562
ROCHDALE BOROUGH COUNCIL,01/06/2020,PROPERTY AND HIGHWAYS,REED SPECIALIST RECRUITMENT LTD,01/06/2020,684.07 ,AGENCY STAFF,V001567562
ROCHDALE BOROUGH COUNCIL,01/06/2020,NEIGHBOURHOODS AND ENVIRONMENT,REED SPECIALIST RECRUITMENT LTD,01/06/2020,266.56 ,AGENCY STAFF,V001567562
ROCHDALE BOROUGH COUNCIL,01/06/2020,NEIGHBOURHOODS AND ENVIRONMENT,REED SPECIALIST RECRUITMENT LTD,01/06/2020,716.86 ,AGENCY STAFF,V001567562
ROCHDALE BOROUGH COUNCIL,01/06/2020,NEIGHBOURHOODS AND ENVIRONMENT,REED SPECIALIST RECRUITMENT LTD,01/06/2020,454.10 ,AGENCY STAFF,V001567562
ROCHDALE BOROUGH COUNCIL,01/06/2020,NEIGHBOURHOODS AND ENVIRONMENT,REED SPECIALIST RECRUITMENT LTD,01/06/2020,1020.95 ,AGENCY STAFF,V001567562
ROCHDALE BOROUGH COUNCIL,01/06/2020,CHILDREN�S SOCIAL CARE,REED SPECIALIST RECRUITMENT LTD,01/06/2020,832.12 ,AGENCY STAFF,V001567562
ROCHDALE BOROUGH COUNCIL,01/06/2020,RESOURCES,REED SPECIALIST RECRUITMENT LTD,01/06/2020,845.63 ,AGENCY STAFF,V001567562
ROCHDALE BOROUGH COUNCIL,01/06/2020,CHILDREN�S SOCIAL CARE,REED SPECIALIST RECRUITMENT LTD,01/06/2020,1172.77 ,AGENCY STAFF,V001567562
ROCHDALE BOROUGH COUNCIL,01/06/2020,CHILDREN�S SOCIAL CARE,REED SPECIALIST RECRUITMENT LTD,01/06/2020,945.24 ,AGENCY STAFF,V001567562
ROCHDALE BOROUGH COUNCIL,01/06/2020,CHILDREN�S SOCIAL CARE,REED SPECIALIST RECRUITMENT LTD,01/06/2020,975.24 ,AGENCY STAFF,V001567562
ROCHDALE BOROUGH COUNCIL,01/06/2020,NEIGHBOURHOODS AND ENVIRONMENT,REED SPECIALIST RECRUITMENT LTD,01/06/2020,387.12 ,AGENCY STAFF,V001567562
ROCHDALE BOROUGH COUNCIL,01/06/2020,ADULT CARE LCO FUNCTIONS,REED SPECIALIST RECRUITMENT LTD,01/06/2020,610.83 ,AGENCY STAFF,V001567562
ROCHDALE BOROUGH COUNCIL,01/06/2020,ADULT CARE LCO FUNCTIONS,REED SPECIALIST RECRUITMENT LTD,01/06/2020,825.84 ,AGENCY STAFF,V001567562
ROCHDALE BOROUGH COUNCIL,01/06/2020,EARLY HELP AND SCHOOLS,REED SPECIALIST RECRUITMENT LTD,01/06/2020,661.13 ,AGENCY STAFF,V001567562
ROCHDALE BOROUGH COUNCIL,01/06/2020,CHILDREN�S SOCIAL CARE,REED SPECIALIST RECRUITMENT LTD,01/06/2020,763.91 ,AGENCY STAFF,V001567562
ROCHDALE BOROUGH COUNCIL,01/06/2020,ADULT CARE LCO FUNCTIONS,REED SPECIALIST RECRUITMENT LTD,01/06/2020,825.24 ,AGENCY STAFF,V001567562
ROCHDALE BOROUGH COUNCIL,01/06/2020,CHILDREN�S SOCIAL CARE,REED SPECIALIST RECRUITMENT LTD,01/06/2020,1266.82 ,AGENCY STAFF,V001567562
ROCHDALE BOROUGH COUNCIL,01/06/2020,CHILDREN�S SOCIAL CARE,REED SPECIALIST RECRUITMENT LTD,01/06/2020,619.38 ,AGENCY STAFF,V001567562
ROCHDALE BOROUGH COUNCIL,01/06/2020,CHILDREN�S SOCIAL CARE,REED SPECIALIST RECRUITMENT LTD,01/06/2020,975.24 ,AGENCY STAFF,V001567562
ROCHDALE BOROUGH COUNCIL,01/06/2020,CHILDREN�S SOCIAL CARE,REED SPECIALIST RECRUITMENT LTD,01/06/2020,363.96 ,AGENCY STAFF,V001567562
ROCHDALE BOROUGH COUNCIL,01/06/2020,CHILDREN�S SOCIAL CARE,REED SPECIALIST RECRUITMENT LTD,01/06/2020,825.84 ,AGENCY STAFF,V001567562
ROCHDALE BOROUGH COUNCIL,01/06/2020,CHILDREN�S SOCIAL CARE,REED SPECIALIST RECRUITMENT LTD,01/06/2020,975.24 ,AGENCY STAFF,V001567562
ROCHDALE BOROUGH COUNCIL,01/06/2020,CHILDREN�S SOCIAL CARE,REED SPECIALIST RECRUITMENT LTD,01/06/2020,1335.24 ,AGENCY STAFF,V001567562
ROCHDALE BOROUGH COUNCIL,01/06/2020,CHILDREN�S SOCIAL CARE,REED SPECIALIST RECRUITMENT LTD,01/06/2020,1275.24 ,AGENCY STAFF,V001567562
ROCHDALE BOROUGH COUNCIL,01/06/2020,CHILDREN�S SOCIAL CARE,REED SPECIALIST RECRUITMENT LTD,01/06/2020,975.24 ,AGENCY STAFF,V001567562
ROCHDALE BOROUGH COUNCIL,01/06/2020,CHILDREN�S SOCIAL CARE,REED SPECIALIST RECRUITMENT LTD,01/06/2020,666.41 ,AGENCY STAFF,V001567562
ROCHDALE BOROUGH COUNCIL,01/06/2020,CHILDREN�S SOCIAL CARE,REED SPECIALIST RECRUITMENT LTD,01/06/2020,1202.80 ,AGENCY STAFF,V001567562
ROCHDALE BOROUGH COUNCIL,01/06/2020,ADULT CARE LCO FUNCTIONS,REED SPECIALIST RECRUITMENT LTD,01/06/2020,1017.80 ,AGENCY STAFF,V001567562
ROCHDALE BOROUGH COUNCIL,02/06/2020,NEIGHBOURHOODS AND ENVIRONMENT,E ON ENERGY SOLUTIONS LIMITED,02/06/2020,46.58 ,STATUTORY UNDERTAKING-UTILITY COMPANIES,V001567564
ROCHDALE BOROUGH COUNCIL,02/06/2020,NEIGHBOURHOODS AND ENVIRONMENT,E ON ENERGY SOLUTIONS LIMITED,02/06/2020,40.00 ,STATUTORY UNDERTAKING-UTILITY COMPANIES,V001567564
ROCHDALE BOROUGH COUNCIL,02/06/2020,NEIGHBOURHOODS AND ENVIRONMENT,ALLIANCE DISPOSABLES LIMITED,02/06/2020,375.00 ,CONSUMABLES,V001567565
ROCHDALE BOROUGH COUNCIL,02/06/2020,PROPERTY AND HIGHWAYS,CALEDONIAN LIFTS MANCHESTER LTD,02/06/2020,35.00 ,PROPERTY - WORKS ELEMENT,V001567566
ROCHDALE BOROUGH COUNCIL,01/06/2020,NEIGHBOURHOODS AND ENVIRONMENT,CP DAVIDSON AND SONS LTD,01/06/2020,2640.00 ,TRANSACTIONS-INCOME,V001567567
ROCHDALE BOROUGH COUNCIL,01/06/2020,NEIGHBOURHOODS AND ENVIRONMENT,ROCHDALE HOUSING INITIATIVE,01/06/2020,1005.91 ,CAPITAL SALARIES,V001567568
ROCHDALE BOROUGH COUNCIL,01/06/2020,NEIGHBOURHOODS AND ENVIRONMENT,ROCHDALE HOUSING INITIATIVE,01/06/2020,1005.91 ,CAPITAL SALARIES,V001567568
ROCHDALE BOROUGH COUNCIL,01/06/2020,NEIGHBOURHOODS AND ENVIRONMENT,ROCHDALE HOUSING INITIATIVE,01/06/2020,355.09 ,CAPITAL SALARIES,V001567569
ROCHDALE BOROUGH COUNCIL,01/06/2020,NEIGHBOURHOODS AND ENVIRONMENT,ROCHDALE HOUSING INITIATIVE,01/06/2020,355.09 ,CAPITAL SALARIES,V001567569
ROCHDALE BOROUGH COUNCIL,02/06/2020,NEIGHBOURHOODS AND ENVIRONMENT,THE SANCTUARY TRUST,02/06/2020,55337.00 ,PROJECTS,V001567570
ROCHDALE BOROUGH COUNCIL,02/06/2020,NEIGHBOURHOODS AND ENVIRONMENT,THE SANCTUARY TRUST,02/06/2020,76517.00 ,PROJECTS,V001567570
ROCHDALE BOROUGH COUNCIL,01/06/2020,NEIGHBOURHOODS AND ENVIRONMENT,THE SANCTUARY TRUST,01/06/2020,32453.00 ,PROJECTS,V001567571
ROCHDALE BOROUGH COUNCIL,01/06/2020,NEIGHBOURHOODS AND ENVIRONMENT,THE SANCTUARY TRUST,01/06/2020,2990.00 ,CLEANING AND CARETAKING COSTS,V001567572
ROCHDALE BOROUGH COUNCIL,01/06/2020,NEIGHBOURHOODS AND ENVIRONMENT,OLDHAM AND ROCHDALE GROUNDWORK TRUST LTD,01/06/2020,600.00 ,CAPITAL SALARIES,V001567573
ROCHDALE BOROUGH COUNCIL,01/06/2020,NEIGHBOURHOODS AND ENVIRONMENT,CLOVER SECURITY SERVICES LIMITED,01/06/2020,1740.00 ,SECURITY,V001567574
ROCHDALE BOROUGH COUNCIL,01/06/2020,EARLY HELP AND SCHOOLS,TSOM GROUP,01/06/2020,1800.00 ,INDEPENDENT UNITS,V001567575
ROCHDALE BOROUGH COUNCIL,01/06/2020,NEIGHBOURHOODS AND ENVIRONMENT,COACH OPTIONS LIMITED,01/06/2020,617.60 ,TAXI HIRE,V001567579
ROCHDALE BOROUGH COUNCIL,01/06/2020,NEIGHBOURHOODS AND ENVIRONMENT,COACH OPTIONS LIMITED,01/06/2020,617.60 ,TAXI HIRE,V001567580
ROCHDALE BOROUGH COUNCIL,01/06/2020,NEIGHBOURHOODS AND ENVIRONMENT,COACH OPTIONS LIMITED,01/06/2020,617.60 ,TAXI HIRE,V001567581
ROCHDALE BOROUGH COUNCIL,01/06/2020,NEIGHBOURHOODS AND ENVIRONMENT,COACH OPTIONS LIMITED,01/06/2020,617.60 ,TAXI HIRE,V001567582
ROCHDALE BOROUGH COUNCIL,01/06/2020,NEIGHBOURHOODS AND ENVIRONMENT,COACH OPTIONS LIMITED,01/06/2020,617.60 ,TAXI HIRE,V001567583
ROCHDALE BOROUGH COUNCIL,01/06/2020,NEIGHBOURHOODS AND ENVIRONMENT,COACH OPTIONS LIMITED,01/06/2020,636.60 ,TAXI HIRE,V001567584
ROCHDALE BOROUGH COUNCIL,01/06/2020,NEIGHBOURHOODS AND ENVIRONMENT,COACH OPTIONS LIMITED,01/06/2020,636.60 ,TAXI HIRE,V001567585
ROCHDALE BOROUGH COUNCIL,01/06/2020,NEIGHBOURHOODS AND ENVIRONMENT,COACH OPTIONS LIMITED,01/06/2020,636.60 ,TAXI HIRE,V001567586
ROCHDALE BOROUGH COUNCIL,01/06/2020,NEIGHBOURHOODS AND ENVIRONMENT,COACH OPTIONS LIMITED,01/06/2020,509.28 ,TAXI HIRE,V001567587
ROCHDALE BOROUGH COUNCIL,01/06/2020,NEIGHBOURHOODS AND ENVIRONMENT,COACH OPTIONS LIMITED,01/06/2020,636.60 ,TAXI HIRE,V001567588
ROCHDALE BOROUGH COUNCIL,01/06/2020,NEIGHBOURHOODS AND ENVIRONMENT,ROCHDALE TOWN TAXIS LTD,01/06/2020,90.00 ,TAXI HIRE,V001567665
ROCHDALE BOROUGH COUNCIL,01/06/2020,NEIGHBOURHOODS AND ENVIRONMENT,ROCHDALE TOWN TAXIS LTD,01/06/2020,90.00 ,TAXI HIRE,V001567665
ROCHDALE BOROUGH COUNCIL,01/06/2020,NEIGHBOURHOODS AND ENVIRONMENT,ROCHDALE TOWN TAXIS LTD,01/06/2020,90.00 ,TAXI HIRE,V001567665
ROCHDALE BOROUGH COUNCIL,01/06/2020,NEIGHBOURHOODS AND ENVIRONMENT,PATTERSONS BRISTOL LTD,01/06/2020,3.60 ,CLEANING EQUIPMENT,V001567666
ROCHDALE BOROUGH COUNCIL,01/06/2020,NEIGHBOURHOODS AND ENVIRONMENT,PATTERSONS BRISTOL LTD,01/06/2020,3.60 ,CLEANING EQUIPMENT,V001567666
ROCHDALE BOROUGH COUNCIL,01/06/2020,NEIGHBOURHOODS AND ENVIRONMENT,PATTERSONS BRISTOL LTD,01/06/2020,2.85 ,CLEANING MATERIALS,V001567666
ROCHDALE BOROUGH COUNCIL,01/06/2020,NEIGHBOURHOODS AND ENVIRONMENT,PATTERSONS BRISTOL LTD,01/06/2020,9.25 ,CLEANING EQUIPMENT,V001567666
ROCHDALE BOROUGH COUNCIL,01/06/2020,NEIGHBOURHOODS AND ENVIRONMENT,PATTERSONS BRISTOL LTD,01/06/2020,3.64 ,CLEANING MATERIALS,V001567666
ROCHDALE BOROUGH COUNCIL,01/06/2020,NEIGHBOURHOODS AND ENVIRONMENT,PATTERSONS BRISTOL LTD,01/06/2020,9.40 ,CLEANING MATERIALS,V001567666
ROCHDALE BOROUGH COUNCIL,01/06/2020,NEIGHBOURHOODS AND ENVIRONMENT,PATTERSONS BRISTOL LTD,01/06/2020,14.90 ,CLEANING MATERIALS,V001567666
ROCHDALE BOROUGH COUNCIL,01/06/2020,NEIGHBOURHOODS AND ENVIRONMENT,PATTERSONS BRISTOL LTD,01/06/2020,3.37 ,CLEANING MATERIALS,V001567666
ROCHDALE BOROUGH COUNCIL,01/06/2020,NEIGHBOURHOODS AND ENVIRONMENT,PATTERSONS BRISTOL LTD,01/06/2020,3.37 ,CLEANING MATERIALS,V001567666
ROCHDALE BOROUGH COUNCIL,01/06/2020,NEIGHBOURHOODS AND ENVIRONMENT,PATTERSONS BRISTOL LTD,01/06/2020,12.10 ,CLEANING EQUIPMENT,V001567666
ROCHDALE BOROUGH COUNCIL,01/06/2020,NEIGHBOURHOODS AND ENVIRONMENT,PATTERSONS BRISTOL LTD,01/06/2020,3.64 ,CLEANING MATERIALS,V001567666
ROCHDALE BOROUGH COUNCIL,01/06/2020,NEIGHBOURHOODS AND ENVIRONMENT,PATTERSONS BRISTOL LTD,01/06/2020,28.61 ,CONSUMABLES,V001567666
ROCHDALE BOROUGH COUNCIL,01/06/2020,NEIGHBOURHOODS AND ENVIRONMENT,PATTERSONS BRISTOL LTD,01/06/2020,13.86 ,CONSUMABLES,V001567667
ROCHDALE BOROUGH COUNCIL,01/06/2020,NEIGHBOURHOODS AND ENVIRONMENT,PATTERSONS BRISTOL LTD,01/06/2020,4.54 ,CLEANING MATERIALS,V001567668
ROCHDALE BOROUGH COUNCIL,01/06/2020,NEIGHBOURHOODS AND ENVIRONMENT,PATTERSONS BRISTOL LTD,01/06/2020,9.40 ,CLEANING MATERIALS,V001567668
ROCHDALE BOROUGH COUNCIL,01/06/2020,NEIGHBOURHOODS AND ENVIRONMENT,PATTERSONS BRISTOL LTD,01/06/2020,15.94 ,CLEANING EQUIPMENT,V001567668
ROCHDALE BOROUGH COUNCIL,01/06/2020,NEIGHBOURHOODS AND ENVIRONMENT,PATTERSONS BRISTOL LTD,01/06/2020,1.81 ,CLEANING MATERIALS,V001567668
ROCHDALE BOROUGH COUNCIL,01/06/2020,NEIGHBOURHOODS AND ENVIRONMENT,PATTERSONS BRISTOL LTD,01/06/2020,3.30 ,CONSUMABLES,V001567668
ROCHDALE BOROUGH COUNCIL,01/06/2020,NEIGHBOURHOODS AND ENVIRONMENT,PATTERSONS BRISTOL LTD,01/06/2020,14.10 ,CLEANING MATERIALS,V001567669
ROCHDALE BOROUGH COUNCIL,01/06/2020,NEIGHBOURHOODS AND ENVIRONMENT,PATTERSONS BRISTOL LTD,01/06/2020,9.08 ,CLEANING MATERIALS,V001567669
ROCHDALE BOROUGH COUNCIL,01/06/2020,NEIGHBOURHOODS AND ENVIRONMENT,PATTERSONS BRISTOL LTD,01/06/2020,7.28 ,CLEANING MATERIALS,V001567669
ROCHDALE BOROUGH COUNCIL,01/06/2020,NEIGHBOURHOODS AND ENVIRONMENT,PATTERSONS BRISTOL LTD,01/06/2020,6.68 ,CLEANING MATERIALS,V001567669
ROCHDALE BOROUGH COUNCIL,01/06/2020,NEIGHBOURHOODS AND ENVIRONMENT,PATTERSONS BRISTOL LTD,01/06/2020,64.62 ,CONSUMABLES,V001567669
ROCHDALE BOROUGH COUNCIL,01/06/2020,NEIGHBOURHOODS AND ENVIRONMENT,PATTERSONS BRISTOL LTD,01/06/2020,28.56 ,CONSUMABLES,V001567669
ROCHDALE BOROUGH COUNCIL,01/06/2020,NEIGHBOURHOODS AND ENVIRONMENT,PATTERSONS BRISTOL LTD,01/06/2020,7.28 ,CLEANING MATERIALS,V001567669
ROCHDALE BOROUGH COUNCIL,01/06/2020,NEIGHBOURHOODS AND ENVIRONMENT,PATTERSONS BRISTOL LTD,01/06/2020,96.72 ,CONSUMABLES,V001567669
ROCHDALE BOROUGH COUNCIL,01/06/2020,NEIGHBOURHOODS AND ENVIRONMENT,PATTERSONS BRISTOL LTD,01/06/2020,7.08 ,CLEANING EQUIPMENT,V001567669
ROCHDALE BOROUGH COUNCIL,01/06/2020,NEIGHBOURHOODS AND ENVIRONMENT,PATTERSONS BRISTOL LTD,01/06/2020,7.08 ,CLEANING EQUIPMENT,V001567669
ROCHDALE BOROUGH COUNCIL,01/06/2020,NEIGHBOURHOODS AND ENVIRONMENT,PATTERSONS BRISTOL LTD,01/06/2020,42.08 ,CONSUMABLES,V001567669
ROCHDALE BOROUGH COUNCIL,01/06/2020,NEIGHBOURHOODS AND ENVIRONMENT,PATTERSONS BRISTOL LTD,01/06/2020,120.00 ,CONSUMABLES,V001567669
ROCHDALE BOROUGH COUNCIL,01/06/2020,NEIGHBOURHOODS AND ENVIRONMENT,PATTERSONS BRISTOL LTD,01/06/2020,33.76 ,CONSUMABLES,V001567669
ROCHDALE BOROUGH COUNCIL,01/06/2020,NEIGHBOURHOODS AND ENVIRONMENT,PATTERSONS BRISTOL LTD,01/06/2020,6.60 ,CONSUMABLES,V001567669
ROCHDALE BOROUGH COUNCIL,01/06/2020,CHILDREN�S SOCIAL CARE,CARE 4 CHILDREN RESIDENTIAL SERVICES,01/06/2020,3182.10 ,FOSTER PARENTS BASIC ALLOWANCE,V001567670
ROCHDALE BOROUGH COUNCIL,01/06/2020,CHILDREN�S SOCIAL CARE,CARE 4 CHILDREN RESIDENTIAL SERVICES,01/06/2020,3214.20 ,FOSTER PARENTS BASIC ALLOWANCE,V001567671
ROCHDALE BOROUGH COUNCIL,01/06/2020,CHILDREN�S SOCIAL CARE,CARE 4 CHILDREN RESIDENTIAL SERVICES,01/06/2020,3351.90 ,FOSTER PARENTS BASIC ALLOWANCE,V001567672
ROCHDALE BOROUGH COUNCIL,01/06/2020,CHILDREN�S SOCIAL CARE,CARE 4 CHILDREN RESIDENTIAL SERVICES,01/06/2020,3385.80 ,FOSTER PARENTS BASIC ALLOWANCE,V001567673
ROCHDALE BOROUGH COUNCIL,02/06/2020,PROPERTY AND HIGHWAYS,ELECTRIC CENTER,02/06/2020,6.19 ,PROPERTY - WORKS ELEMENT,V001567674
ROCHDALE BOROUGH COUNCIL,02/06/2020,PROPERTY AND HIGHWAYS,ELECTRIC CENTER,02/06/2020,65.89 ,PROPERTY - WORKS ELEMENT,V001567675
ROCHDALE BOROUGH COUNCIL,02/06/2020,PROPERTY AND HIGHWAYS,ELECTRIC CENTER,02/06/2020,27.58 ,PROPERTY - WORKS ELEMENT,V001567676
ROCHDALE BOROUGH COUNCIL,04/06/2020,PROPERTY AND HIGHWAYS,BOELS RENTAL,04/06/2020,48.48 ,PROPERTY - WORKS ELEMENT,V001567677
ROCHDALE BOROUGH COUNCIL,02/06/2020,COMMISSIONING AND STATUTORY,DENTAK CARE AND SERVICES LTD,02/06/2020,400.00 ,SOCIAL SERVICES OTHER,V001567678
ROCHDALE BOROUGH COUNCIL,02/06/2020,PROPERTY AND HIGHWAYS,REACH PUBLISHING SERVICES LTD,02/06/2020,84.42 ,ADVERTISING,V001567679
ROCHDALE BOROUGH COUNCIL,02/06/2020,PROPERTY AND HIGHWAYS,REACH PUBLISHING SERVICES LTD,02/06/2020,60.80 ,ADVERTISING,V001567680
ROCHDALE BOROUGH COUNCIL,05/06/2020,NEIGHBOURHOODS AND ENVIRONMENT,EARLEY ORNAMENTALS LTD,05/06/2020,224.48 ,"TREES, SHRUBS, PLANTS",V001567681
ROCHDALE BOROUGH COUNCIL,05/06/2020,NEIGHBOURHOODS AND ENVIRONMENT,EARLEY ORNAMENTALS LTD,05/06/2020,211.98 ,"TREES, SHRUBS, PLANTS",V001567681
ROCHDALE BOROUGH COUNCIL,02/06/2020,CHILDREN�S SOCIAL CARE,SWIIS FOSTER CARE LIMITED,02/06/2020,837.97 ,FOSTER PARENTS BASIC ALLOWANCE,V001567682
ROCHDALE BOROUGH COUNCIL,02/06/2020,RESOURCES,THE OYSTER PARTNERSHIP LTD,02/06/2020,1626.83 ,AGENCY STAFF,V001567683
ROCHDALE BOROUGH COUNCIL,02/06/2020,EARLY HELP AND SCHOOLS,M6 THEATRE COMPANY LIMITED,02/06/2020,375.00 ,ACTIVITIES,V001567684
ROCHDALE BOROUGH COUNCIL,02/06/2020,NEIGHBOURHOODS AND ENVIRONMENT,SHORROCK TRICHEM LTD,02/06/2020,61.92 ,MAINTENANCE,V001567685
ROCHDALE BOROUGH COUNCIL,02/06/2020,ECONOMY DIRECTORATE,MINERVA HERITAGE LTD,02/06/2020,3740.00 ,CONSULTANTS FEES,V001567686
ROCHDALE BOROUGH COUNCIL,02/06/2020,PROPERTY AND HIGHWAYS,REACH PUBLISHING SERVICES LTD,02/06/2020,60.80 ,ADVERTISING,V001567687
ROCHDALE BOROUGH COUNCIL,02/06/2020,ECONOMY DIRECTORATE,GTM ELECTRICAL SERVICES LIMITED,02/06/2020,3449.23 ,REPAIRS & ALTS OF BUILDINGS,V001567688
ROCHDALE BOROUGH COUNCIL,02/06/2020,NEIGHBOURHOODS AND ENVIRONMENT,MDS HEALTHCARE LTD,02/06/2020,8000.00 ,CONSUMABLES,V001567690
ROCHDALE BOROUGH COUNCIL,02/06/2020,CHILDREN�S SOCIAL CARE,BANNER GROUP LIMITED,02/06/2020,14.90 ,EQUIPMENT - GENERAL,V001567691
ROCHDALE BOROUGH COUNCIL,02/06/2020,CHILDREN�S SOCIAL CARE,PARADIGM PROFESSIONAL CONSULTANCY LTD,02/06/2020,1387.50 ,AGENCY STAFF,V001567692
ROCHDALE BOROUGH COUNCIL,02/06/2020,CHILDREN�S SOCIAL CARE,PARADIGM PROFESSIONAL CONSULTANCY LTD,02/06/2020,1413.60 ,AGENCY STAFF,V001567693
ROCHDALE BOROUGH COUNCIL,02/06/2020,CHILDREN�S SOCIAL CARE,PARADIGM PROFESSIONAL CONSULTANCY LTD,02/06/2020,1395.60 ,AGENCY STAFF,V001567694
ROCHDALE BOROUGH COUNCIL,02/06/2020,CHILDREN�S SOCIAL CARE,PARADIGM PROFESSIONAL CONSULTANCY LTD,02/06/2020,1387.50 ,AGENCY STAFF,V001567695
ROCHDALE BOROUGH COUNCIL,02/06/2020,CHILDREN�S SOCIAL CARE,PARADIGM PROFESSIONAL CONSULTANCY LTD,02/06/2020,1354.95 ,AGENCY STAFF,V001567696
ROCHDALE BOROUGH COUNCIL,02/06/2020,CHILDREN�S SOCIAL CARE,PARADIGM PROFESSIONAL CONSULTANCY LTD,02/06/2020,1387.50 ,AGENCY STAFF,V001567697
ROCHDALE BOROUGH COUNCIL,02/06/2020,CHILDREN�S SOCIAL CARE,PARADIGM PROFESSIONAL CONSULTANCY LTD,02/06/2020,1368.75 ,AGENCY STAFF,V001567698
ROCHDALE BOROUGH COUNCIL,02/06/2020,PROPERTY AND HIGHWAYS,F S MOULT AND SON,02/06/2020,1849.58 ,PROPERTY - WORKS ELEMENT,V001567699
ROCHDALE BOROUGH COUNCIL,02/06/2020,ECONOMY DIRECTORATE,G2 RECRUITMENT SOLUTIONS LTD,02/06/2020,1469.86 ,AGENCY STAFF,V001567700
ROCHDALE BOROUGH COUNCIL,02/06/2020,NEIGHBOURHOODS AND ENVIRONMENT,THE PENNINE ACUTE HOSPITALS NHS TRUST,02/06/2020,17622.00 ,MORTUARY CHARGES,V001567701
ROCHDALE BOROUGH COUNCIL,02/06/2020,NEIGHBOURHOODS AND ENVIRONMENT,THE PENNINE ACUTE HOSPITALS NHS TRUST,02/06/2020,16563.00 ,MORTUARY CHARGES,V001567702
ROCHDALE BOROUGH COUNCIL,02/06/2020,ECONOMY DIRECTORATE,G2 RECRUITMENT SOLUTIONS LTD,02/06/2020,1246.00 ,AGENCY STAFF,V001567703
ROCHDALE BOROUGH COUNCIL,02/06/2020,ECONOMY DIRECTORATE,G2 RECRUITMENT SOLUTIONS LTD,02/06/2020,224.00 ,AGENCY STAFF,V001567703
ROCHDALE BOROUGH COUNCIL,02/06/2020,CHILDREN�S SOCIAL CARE,ROCHDALE SELF STORAGE LIMITED,02/06/2020,108.33 ,YOUNG PEOPLES RENTS,V001567704
ROCHDALE BOROUGH COUNCIL,04/06/2020,COMMISSIONING AND STATUTORY,ROCHDALE HEALTH ALLIANCE,04/06/2020,20721.67 ,OTHER LA`S - SEN PROVISION,V001567705
ROCHDALE BOROUGH COUNCIL,04/06/2020,PROPERTY AND HIGHWAYS,BOELS RENTAL,04/06/2020,138.13 ,BUILDING MATERIALS,V001567706
ROCHDALE BOROUGH COUNCIL,11/06/2020,PROPERTY AND HIGHWAYS,REACH PUBLISHING SERVICES LTD,11/06/2020,70.56 ,ADVERTISING,V001567707
ROCHDALE BOROUGH COUNCIL,02/06/2020,CHILDREN�S SOCIAL CARE,SWIIS FOSTER CARE LIMITED,02/06/2020,817.04 ,FOSTER PARENTS BASIC ALLOWANCE,V001567708
ROCHDALE BOROUGH COUNCIL,02/06/2020,CHILDREN�S SOCIAL CARE,ADVOCACY FOCUS,02/06/2020,5952.91 ,SERVICE LEVEL AGREEMENTS,V001567709
ROCHDALE BOROUGH COUNCIL,02/06/2020,NEIGHBOURHOODS AND ENVIRONMENT,LANCASHIRE LOCK AND SAFE COMPANY LIMITED,02/06/2020,259.95 ,EQUIPMENT - GENERAL,V001567710
ROCHDALE BOROUGH COUNCIL,02/06/2020,CHILDREN�S SOCIAL CARE,ROCHDALE SELF STORAGE LIMITED,02/06/2020,108.33 ,YOUNG PEOPLES RENTS,V001567711
ROCHDALE BOROUGH COUNCIL,08/06/2020,ECONOMY DIRECTORATE,IRWELL STREET METALS,08/06/2020,113.57 ,REFUSE DISPOSAL,V001567712
ROCHDALE BOROUGH COUNCIL,02/06/2020,EARLY HELP AND SCHOOLS,B AND E BOYS LIMITED,02/06/2020,18996.11 ,MINOR BUILDING WORKS,V001567713
ROCHDALE BOROUGH COUNCIL,04/06/2020,NEIGHBOURHOODS AND ENVIRONMENT,ROCHDALE TOWN TAXIS LTD,04/06/2020,160.00 ,TAXI HIRE,V001567716
ROCHDALE BOROUGH COUNCIL,04/06/2020,NEIGHBOURHOODS AND ENVIRONMENT,ROCHDALE TOWN TAXIS LTD,04/06/2020,160.00 ,TAXI HIRE,V001567716
ROCHDALE BOROUGH COUNCIL,04/06/2020,NEIGHBOURHOODS AND ENVIRONMENT,ROCHDALE TOWN TAXIS LTD,04/06/2020,160.00 ,TAXI HIRE,V001567716
ROCHDALE BOROUGH COUNCIL,02/06/2020,NEIGHBOURHOODS AND ENVIRONMENT,ROCHDALE TOWN TAXIS LTD,02/06/2020,260.00 ,TAXI HIRE,V001567717
ROCHDALE BOROUGH COUNCIL,02/06/2020,NEIGHBOURHOODS AND ENVIRONMENT,ROCHDALE TOWN TAXIS LTD,02/06/2020,260.00 ,TAXI HIRE,V001567717
ROCHDALE BOROUGH COUNCIL,02/06/2020,NEIGHBOURHOODS AND ENVIRONMENT,ROCHDALE TOWN TAXIS LTD,02/06/2020,260.00 ,TAXI HIRE,V001567717
ROCHDALE BOROUGH COUNCIL,04/06/2020,NEIGHBOURHOODS AND ENVIRONMENT,ROCHDALE TOWN TAXIS LTD,04/06/2020,20.00 ,TAXI HIRE,V001567718
ROCHDALE BOROUGH COUNCIL,04/06/2020,NEIGHBOURHOODS AND ENVIRONMENT,ROCHDALE TOWN TAXIS LTD,04/06/2020,20.00 ,TAXI HIRE,V001567718
ROCHDALE BOROUGH COUNCIL,04/06/2020,NEIGHBOURHOODS AND ENVIRONMENT,ROCHDALE TOWN TAXIS LTD,04/06/2020,20.00 ,TAXI HIRE,V001567718
ROCHDALE BOROUGH COUNCIL,04/06/2020,NEIGHBOURHOODS AND ENVIRONMENT,ROCHDALE TOWN TAXIS LTD,04/06/2020,425.00 ,TAXI HIRE,V001567719
ROCHDALE BOROUGH COUNCIL,04/06/2020,NEIGHBOURHOODS AND ENVIRONMENT,ROCHDALE TOWN TAXIS LTD,04/06/2020,425.00 ,TAXI HIRE,V001567719
ROCHDALE BOROUGH COUNCIL,04/06/2020,NEIGHBOURHOODS AND ENVIRONMENT,ROCHDALE TOWN TAXIS LTD,04/06/2020,425.00 ,TAXI HIRE,V001567719
ROCHDALE BOROUGH COUNCIL,04/06/2020,NEIGHBOURHOODS AND ENVIRONMENT,ROCHDALE TOWN TAXIS LTD,04/06/2020,90.00 ,TAXI HIRE,V001567720
ROCHDALE BOROUGH COUNCIL,04/06/2020,NEIGHBOURHOODS AND ENVIRONMENT,ROCHDALE TOWN TAXIS LTD,04/06/2020,90.00 ,TAXI HIRE,V001567720
ROCHDALE BOROUGH COUNCIL,04/06/2020,NEIGHBOURHOODS AND ENVIRONMENT,ROCHDALE TOWN TAXIS LTD,04/06/2020,90.00 ,TAXI HIRE,V001567720
ROCHDALE BOROUGH COUNCIL,02/06/2020,NEIGHBOURHOODS AND ENVIRONMENT,ROCHDALE TOWN TAXIS LTD,02/06/2020,166.00 ,TAXI HIRE,V001567721
ROCHDALE BOROUGH COUNCIL,02/06/2020,NEIGHBOURHOODS AND ENVIRONMENT,ROCHDALE TOWN TAXIS LTD,02/06/2020,166.00 ,TAXI HIRE,V001567721
ROCHDALE BOROUGH COUNCIL,02/06/2020,NEIGHBOURHOODS AND ENVIRONMENT,ROCHDALE TOWN TAXIS LTD,02/06/2020,166.00 ,TAXI HIRE,V001567721
ROCHDALE BOROUGH COUNCIL,02/06/2020,NEIGHBOURHOODS AND ENVIRONMENT,ROCHDALE TOWN TAXIS LTD,02/06/2020,68.00 ,TAXI HIRE,V001567722
ROCHDALE BOROUGH COUNCIL,02/06/2020,NEIGHBOURHOODS AND ENVIRONMENT,ROCHDALE TOWN TAXIS LTD,02/06/2020,68.00 ,TAXI HIRE,V001567722
ROCHDALE BOROUGH COUNCIL,02/06/2020,NEIGHBOURHOODS AND ENVIRONMENT,ROCHDALE TOWN TAXIS LTD,02/06/2020,68.00 ,TAXI HIRE,V001567722
ROCHDALE BOROUGH COUNCIL,02/06/2020,NEIGHBOURHOODS AND ENVIRONMENT,ROCHDALE TOWN TAXIS LTD,02/06/2020,40.00 ,TAXI HIRE,V001567723
ROCHDALE BOROUGH COUNCIL,02/06/2020,NEIGHBOURHOODS AND ENVIRONMENT,ROCHDALE TOWN TAXIS LTD,02/06/2020,40.00 ,TAXI HIRE,V001567723
ROCHDALE BOROUGH COUNCIL,02/06/2020,NEIGHBOURHOODS AND ENVIRONMENT,ROCHDALE TOWN TAXIS LTD,02/06/2020,40.00 ,TAXI HIRE,V001567723
ROCHDALE BOROUGH COUNCIL,02/06/2020,NEIGHBOURHOODS AND ENVIRONMENT,ROCHDALE TOWN TAXIS LTD,02/06/2020,12.00 ,TAXI HIRE,V001567724
ROCHDALE BOROUGH COUNCIL,02/06/2020,NEIGHBOURHOODS AND ENVIRONMENT,ROCHDALE TOWN TAXIS LTD,02/06/2020,12.00 ,TAXI HIRE,V001567724
ROCHDALE BOROUGH COUNCIL,02/06/2020,NEIGHBOURHOODS AND ENVIRONMENT,ROCHDALE TOWN TAXIS LTD,02/06/2020,12.00 ,TAXI HIRE,V001567724
ROCHDALE BOROUGH COUNCIL,02/06/2020,NEIGHBOURHOODS AND ENVIRONMENT,ROCHDALE TOWN TAXIS LTD,02/06/2020,148.00 ,TAXI HIRE,V001567725
ROCHDALE BOROUGH COUNCIL,02/06/2020,NEIGHBOURHOODS AND ENVIRONMENT,ROCHDALE TOWN TAXIS LTD,02/06/2020,148.00 ,TAXI HIRE,V001567725
ROCHDALE BOROUGH COUNCIL,02/06/2020,NEIGHBOURHOODS AND ENVIRONMENT,ROCHDALE TOWN TAXIS LTD,02/06/2020,148.00 ,TAXI HIRE,V001567725
ROCHDALE BOROUGH COUNCIL,02/06/2020,NEIGHBOURHOODS AND ENVIRONMENT,ROCHDALE TOWN TAXIS LTD,02/06/2020,199.98 ,TAXI HIRE,V001567726
ROCHDALE BOROUGH COUNCIL,02/06/2020,NEIGHBOURHOODS AND ENVIRONMENT,ROCHDALE TOWN TAXIS LTD,02/06/2020,199.98 ,TAXI HIRE,V001567726
ROCHDALE BOROUGH COUNCIL,02/06/2020,NEIGHBOURHOODS AND ENVIRONMENT,ROCHDALE TOWN TAXIS LTD,02/06/2020,199.98 ,TAXI HIRE,V001567726
ROCHDALE BOROUGH COUNCIL,02/06/2020,NEIGHBOURHOODS AND ENVIRONMENT,ROCHDALE TOWN TAXIS LTD,02/06/2020,36.00 ,TAXI HIRE,V001567727
ROCHDALE BOROUGH COUNCIL,02/06/2020,NEIGHBOURHOODS AND ENVIRONMENT,ROCHDALE TOWN TAXIS LTD,02/06/2020,36.00 ,TAXI HIRE,V001567727
ROCHDALE BOROUGH COUNCIL,02/06/2020,NEIGHBOURHOODS AND ENVIRONMENT,ROCHDALE TOWN TAXIS LTD,02/06/2020,36.00 ,TAXI HIRE,V001567727
ROCHDALE BOROUGH COUNCIL,02/06/2020,PROPERTY AND HIGHWAYS,DDH FABRICATIONS LTD,02/06/2020,260.00 ,PROPERTY - WORKS ELEMENT,V001567728
ROCHDALE BOROUGH COUNCIL,02/06/2020,NEIGHBOURHOODS AND ENVIRONMENT,FORENSICS LTD,02/06/2020,491.63 ,TOXICOLOGY PAYMENTS,V001567729
ROCHDALE BOROUGH COUNCIL,09/06/2020,PROPERTY AND HIGHWAYS,LANCASHIRE LOCK AND SAFE COMPANY LIMITED,09/06/2020,60.00 ,REPAIRS & ALTS OF BUILDINGS,V001567730
ROCHDALE BOROUGH COUNCIL,03/06/2020,NEIGHBOURHOODS AND ENVIRONMENT,D H MINICOACH HIRE,03/06/2020,1797.75 ,TAXI HIRE,V001567731
ROCHDALE BOROUGH COUNCIL,03/06/2020,NEIGHBOURHOODS AND ENVIRONMENT,D H MINICOACH HIRE,03/06/2020,1851.75 ,TAXI HIRE,V001567731
ROCHDALE BOROUGH COUNCIL,02/06/2020,NEIGHBOURHOODS AND ENVIRONMENT,REDACTED - PERSONAL DATA,02/06/2020,333.50 ,TAXI HIRE,V001567732
ROCHDALE BOROUGH COUNCIL,04/06/2020,NEIGHBOURHOODS AND ENVIRONMENT,J AND S TRAVEL,04/06/2020,615.60 ,TAXI HIRE,V001567733
ROCHDALE BOROUGH COUNCIL,04/06/2020,NEIGHBOURHOODS AND ENVIRONMENT,J AND S TRAVEL,04/06/2020,623.76 ,TAXI HIRE,V001567733
ROCHDALE BOROUGH COUNCIL,04/06/2020,NEIGHBOURHOODS AND ENVIRONMENT,J AND S TRAVEL,04/06/2020,652.00 ,TAXI HIRE,V001567733
ROCHDALE BOROUGH COUNCIL,04/06/2020,NEIGHBOURHOODS AND ENVIRONMENT,J AND S TRAVEL,04/06/2020,628.00 ,TAXI HIRE,V001567733
ROCHDALE BOROUGH COUNCIL,04/06/2020,NEIGHBOURHOODS AND ENVIRONMENT,PREMIERESHOW LIMITED,04/06/2020,572.30 ,TAXI HIRE,V001567734
ROCHDALE BOROUGH COUNCIL,04/06/2020,NEIGHBOURHOODS AND ENVIRONMENT,PREMIERESHOW LIMITED,04/06/2020,572.30 ,TAXI HIRE,V001567734
ROCHDALE BOROUGH COUNCIL,04/06/2020,NEIGHBOURHOODS AND ENVIRONMENT,PREMIERESHOW LIMITED,04/06/2020,629.75 ,TAXI HIRE,V001567734
ROCHDALE BOROUGH COUNCIL,04/06/2020,NEIGHBOURHOODS AND ENVIRONMENT,PREMIERESHOW LIMITED,04/06/2020,629.75 ,TAXI HIRE,V001567734
ROCHDALE BOROUGH COUNCIL,04/06/2020,NEIGHBOURHOODS AND ENVIRONMENT,PREMIERESHOW LIMITED,04/06/2020,602.75 ,TAXI HIRE,V001567734
ROCHDALE BOROUGH COUNCIL,04/06/2020,NEIGHBOURHOODS AND ENVIRONMENT,PREMIERESHOW LIMITED,04/06/2020,602.75 ,TAXI HIRE,V001567734
ROCHDALE BOROUGH COUNCIL,04/06/2020,NEIGHBOURHOODS AND ENVIRONMENT,PREMIERESHOW LIMITED,04/06/2020,572.65 ,TAXI HIRE,V001567734
ROCHDALE BOROUGH COUNCIL,04/06/2020,NEIGHBOURHOODS AND ENVIRONMENT,PREMIERESHOW LIMITED,04/06/2020,572.65 ,TAXI HIRE,V001567734
ROCHDALE BOROUGH COUNCIL,04/06/2020,NEIGHBOURHOODS AND ENVIRONMENT,PREMIERESHOW LIMITED,04/06/2020,656.00 ,TAXI HIRE,V001567734
ROCHDALE BOROUGH COUNCIL,04/06/2020,NEIGHBOURHOODS AND ENVIRONMENT,PREMIERESHOW LIMITED,04/06/2020,656.00 ,TAXI HIRE,V001567734
ROCHDALE BOROUGH COUNCIL,04/06/2020,NEIGHBOURHOODS AND ENVIRONMENT,PREMIERESHOW LIMITED,04/06/2020,634.75 ,TAXI HIRE,V001567734
ROCHDALE BOROUGH COUNCIL,04/06/2020,NEIGHBOURHOODS AND ENVIRONMENT,PREMIERESHOW LIMITED,04/06/2020,634.75 ,TAXI HIRE,V001567734
ROCHDALE BOROUGH COUNCIL,02/06/2020,CHILDREN�S SOCIAL CARE,REDACTED - PERSONAL DATA,02/06/2020,150.00 ,CHILDRENS SUBSISTENCE,V001567735
ROCHDALE BOROUGH COUNCIL,08/06/2020,ECONOMY DIRECTORATE,IRWELL STREET METALS,08/06/2020,116.33 ,REFUSE DISPOSAL,V001567736
ROCHDALE BOROUGH COUNCIL,08/06/2020,CHILDREN�S SOCIAL CARE,PATHWAYS,08/06/2020,231.60 ,YOUNGE PERSONS ALLOWANCE,V001567737
ROCHDALE BOROUGH COUNCIL,16/06/2020,CHILDREN�S SOCIAL CARE,PATHWAYS,16/06/2020,4225.00 ,YOUNG PEOPLES RENTS,V001567738
ROCHDALE BOROUGH COUNCIL,09/06/2020,CHILDREN�S SOCIAL CARE,PATHWAYS,09/06/2020,231.60 ,YOUNGE PERSONS ALLOWANCE,V001567739
ROCHDALE BOROUGH COUNCIL,02/06/2020,EARLY HELP AND SCHOOLS,BANNER GROUP LIMITED,02/06/2020,469.60 ,PRINTING & STATIONERY,V001567740
ROCHDALE BOROUGH COUNCIL,08/06/2020,CHILDREN�S SOCIAL CARE,PATHWAYS,08/06/2020,4755.00 ,YOUNG PEOPLES RENTS,V001567741
ROCHDALE BOROUGH COUNCIL,09/06/2020,CHILDREN�S SOCIAL CARE,PATHWAYS,09/06/2020,231.60 ,YOUNGE PERSONS ALLOWANCE,V001567742
ROCHDALE BOROUGH COUNCIL,04/06/2020,EARLY HELP AND SCHOOLS,ARGOS BUSINESS SOLUTIONS LIMITED,04/06/2020,388.86 ,REPAIRS & ALTS OF BUILDINGS,V001567743
ROCHDALE BOROUGH COUNCIL,05/06/2020,EARLY HELP AND SCHOOLS,ARGOS BUSINESS SOLUTIONS LIMITED,05/06/2020,121.24 ,EQUIPMENT - GENERAL,V001567745
ROCHDALE BOROUGH COUNCIL,15/06/2020,RESOURCES,HEALTH MANAGEMENT LIMITED,15/06/2020,720.00 ,OCCUPATIONAL HEALTH,V001567746
ROCHDALE BOROUGH COUNCIL,08/06/2020,CHILDREN�S SOCIAL CARE,HEXAGON CARE SERVICES LTD,08/06/2020,12621.43 ,EBD (EMOT & BEHAV DIFF) PLACEMENTS,V001567748
ROCHDALE BOROUGH COUNCIL,02/06/2020,CHILDREN�S SOCIAL CARE,REDACTED - PERSONAL DATA,02/06/2020,57.90 ,ALLOWANCES,V001567749
ROCHDALE BOROUGH COUNCIL,02/06/2020,RESOURCES,INFORM CPI LTD,02/06/2020,200.00 ,FEES / COMMISSION,V001567750
ROCHDALE BOROUGH COUNCIL,09/06/2020,PROPERTY AND HIGHWAYS,METRIC GROUP LTD,09/06/2020,270.90 ,EQUIPMENT - GENERAL,V001567751
ROCHDALE BOROUGH COUNCIL,11/06/2020,NEIGHBOURHOODS AND ENVIRONMENT,PATTERSONS BRISTOL LTD,11/06/2020,2.52 ,CLEANING MATERIALS,V001567752
ROCHDALE BOROUGH COUNCIL,11/06/2020,NEIGHBOURHOODS AND ENVIRONMENT,PATTERSONS BRISTOL LTD,11/06/2020,12.10 ,CLEANING EQUIPMENT,V001567752
ROCHDALE BOROUGH COUNCIL,11/06/2020,NEIGHBOURHOODS AND ENVIRONMENT,PATTERSONS BRISTOL LTD,11/06/2020,1.59 ,CLEANING EQUIPMENT,V001567752
ROCHDALE BOROUGH COUNCIL,11/06/2020,NEIGHBOURHOODS AND ENVIRONMENT,PATTERSONS BRISTOL LTD,11/06/2020,1.87 ,CLEANING EQUIPMENT,V001567752
ROCHDALE BOROUGH COUNCIL,11/06/2020,NEIGHBOURHOODS AND ENVIRONMENT,PATTERSONS BRISTOL LTD,11/06/2020,3.60 ,CLEANING EQUIPMENT,V001567752
ROCHDALE BOROUGH COUNCIL,11/06/2020,NEIGHBOURHOODS AND ENVIRONMENT,PATTERSONS BRISTOL LTD,11/06/2020,9.01 ,CONSUMABLES,V001567752
ROCHDALE BOROUGH COUNCIL,11/06/2020,NEIGHBOURHOODS AND ENVIRONMENT,PATTERSONS BRISTOL LTD,11/06/2020,6.93 ,CONSUMABLES,V001567752
ROCHDALE BOROUGH COUNCIL,11/06/2020,NEIGHBOURHOODS AND ENVIRONMENT,PATTERSONS BRISTOL LTD,11/06/2020,1.43 ,CLEANING MATERIALS,V001567752
ROCHDALE BOROUGH COUNCIL,11/06/2020,NEIGHBOURHOODS AND ENVIRONMENT,PATTERSONS BRISTOL LTD,11/06/2020,14.10 ,CLEANING MATERIALS,V001567752
ROCHDALE BOROUGH COUNCIL,11/06/2020,NEIGHBOURHOODS AND ENVIRONMENT,PATTERSONS BRISTOL LTD,11/06/2020,2.27 ,CLEANING MATERIALS,V001567752
ROCHDALE BOROUGH COUNCIL,11/06/2020,NEIGHBOURHOODS AND ENVIRONMENT,PATTERSONS BRISTOL LTD,11/06/2020,4.31 ,CLEANING MATERIALS,V001567752
ROCHDALE BOROUGH COUNCIL,08/06/2020,CHILDREN�S SOCIAL CARE,PATHWAYS,08/06/2020,3210.70 ,YOUNG PEOPLES RENTS,V001567753
ROCHDALE BOROUGH COUNCIL,03/06/2020,NEIGHBOURHOODS AND ENVIRONMENT,SOLOPROTECT LTD,03/06/2020,309.28 ,SECURITY,V001567754
ROCHDALE BOROUGH COUNCIL,02/06/2020,EARLY HELP AND SCHOOLS,REDACTED - PERSONAL DATA,02/06/2020,31.20 ,CONVEYANCE OF CHILDREN,V001567755
ROCHDALE BOROUGH COUNCIL,02/06/2020,RESOURCES,SOLOPROTECT LTD,02/06/2020,80.85 ,SECURITY,V001567756
ROCHDALE BOROUGH COUNCIL,02/06/2020,RESOURCES,SOLOPROTECT LTD,02/06/2020,179.65 ,SECURITY,V001567757
ROCHDALE BOROUGH COUNCIL,02/06/2020,RESOURCES,BLOOM PROCUREMENT SERVICES LTD,02/06/2020,1568.45 ,AGENCY STAFF,V001567760
ROCHDALE BOROUGH COUNCIL,08/06/2020,CHILDREN�S SOCIAL CARE,CASICARE LTD,08/06/2020,3875.00 ,YOUNG PEOPLES RENTS,V001567761
ROCHDALE BOROUGH COUNCIL,10/06/2020,CHILDREN�S SOCIAL CARE,KEYS EDUCATION AND CARE LTD,10/06/2020,17492.86 ,EBD (EMOT & BEHAV DIFF) PLACEMENTS,V001567762
ROCHDALE BOROUGH COUNCIL,02/06/2020,RESOURCES,BLOOM PROCUREMENT SERVICES LTD,02/06/2020,2764.78 ,AGENCY STAFF,V001567763
ROCHDALE BOROUGH COUNCIL,02/06/2020,NEIGHBOURHOODS AND ENVIRONMENT,PJ COMBUSTION SOLUTIONS LTD,02/06/2020,3047.00 ,SPECIFIED MAINTENANCE,V001567765
ROCHDALE BOROUGH COUNCIL,08/06/2020,CHILDREN�S SOCIAL CARE,WITHERSLACK GROUP,08/06/2020,15443.75 ,EBD (EMOT & BEHAV DIFF) PLACEMENTS,V001567766
ROCHDALE BOROUGH COUNCIL,16/06/2020,NEIGHBOURHOODS AND ENVIRONMENT,ALLIANCE DISPOSABLES LIMITED,16/06/2020,68.25 ,CONSUMABLES,V001567767
ROCHDALE BOROUGH COUNCIL,15/06/2020,CHILDREN�S SOCIAL CARE,ADVOCACY FOCUS,15/06/2020,5952.91 ,SERVICE LEVEL AGREEMENTS,V001567769
ROCHDALE BOROUGH COUNCIL,03/06/2020,ECONOMY DIRECTORATE,CARRINGTON WEST LTD,03/06/2020,1359.00 ,AGENCY STAFF,V001567770
ROCHDALE BOROUGH COUNCIL,03/06/2020,NEIGHBOURHOODS AND ENVIRONMENT,FREIGHT TRANSPORT ASSOCIATION,03/06/2020,1100.00 ,EQUIPMENT - GENERAL,V001567771
ROCHDALE BOROUGH COUNCIL,03/06/2020,NEIGHBOURHOODS AND ENVIRONMENT,FREIGHT TRANSPORT ASSOCIATION,03/06/2020,1100.00 ,EQUIPMENT - GENERAL,V001567771
ROCHDALE BOROUGH COUNCIL,03/06/2020,NEIGHBOURHOODS AND ENVIRONMENT,ALLIANCE DISPOSABLES LIMITED,03/06/2020,81.00 ,CONSUMABLES,V001567772
ROCHDALE BOROUGH COUNCIL,03/06/2020,EARLY HELP AND SCHOOLS,PATTERSONS BRISTOL LTD,03/06/2020,30.00 ,CONSUMABLES,V001567773
ROCHDALE BOROUGH COUNCIL,03/06/2020,EARLY HELP AND SCHOOLS,PATTERSONS BRISTOL LTD,03/06/2020,16.88 ,CONSUMABLES,V001567773
ROCHDALE BOROUGH COUNCIL,03/06/2020,PUBLIC HEALTH,ACTION TOGETHER,03/06/2020,22916.66 ,PH OTHER CONTRACTS,V001567774
ROCHDALE BOROUGH COUNCIL,03/06/2020,ECONOMY DIRECTORATE,ROCHDALE DEVELOPMENT AGENCY,03/06/2020,3323.63 ,CONTRACTED SERVICES,V001567775
ROCHDALE BOROUGH COUNCIL,03/06/2020,ECONOMY DIRECTORATE,ROCHDALE DEVELOPMENT AGENCY,03/06/2020,1599.96 ,CAPITAL SALARIES,V001567775
ROCHDALE BOROUGH COUNCIL,03/06/2020,NEIGHBOURHOODS AND ENVIRONMENT,ROCHDALE DEVELOPMENT AGENCY,03/06/2020,2743.98 ,CAPITAL SALARIES,V001567775
ROCHDALE BOROUGH COUNCIL,03/06/2020,ECONOMY DIRECTORATE,ROCHDALE DEVELOPMENT AGENCY,03/06/2020,7509.32 ,CAPITAL SALARIES,V001567775
ROCHDALE BOROUGH COUNCIL,03/06/2020,ECONOMY DIRECTORATE,ROCHDALE DEVELOPMENT AGENCY,03/06/2020,2743.98 ,CAPITAL SALARIES,V001567775
ROCHDALE BOROUGH COUNCIL,03/06/2020,ECONOMY DIRECTORATE,ROCHDALE DEVELOPMENT AGENCY,03/06/2020,1767.30 ,CAPITAL SALARIES,V001567775
ROCHDALE BOROUGH COUNCIL,03/06/2020,ECONOMY DIRECTORATE,ROCHDALE DEVELOPMENT AGENCY,03/06/2020,1000.52 ,CAPITAL SALARIES,V001567775
ROCHDALE BOROUGH COUNCIL,03/06/2020,ECONOMY DIRECTORATE,ROCHDALE DEVELOPMENT AGENCY,03/06/2020,3534.59 ,CAPITAL SALARIES,V001567775
ROCHDALE BOROUGH COUNCIL,03/06/2020,PROPERTY AND HIGHWAYS,ROCHDALE DEVELOPMENT AGENCY,03/06/2020,1423.52 ,CAPITAL SALARIES,V001567775
ROCHDALE BOROUGH COUNCIL,03/06/2020,PROPERTY AND HIGHWAYS,ROCHDALE DEVELOPMENT AGENCY,03/06/2020,6202.08 ,CAPITAL SALARIES,V001567775
ROCHDALE BOROUGH COUNCIL,03/06/2020,PROPERTY AND HIGHWAYS,ROCHDALE DEVELOPMENT AGENCY,03/06/2020,4493.18 ,CAPITAL SALARIES,V001567775
ROCHDALE BOROUGH COUNCIL,03/06/2020,ECONOMY DIRECTORATE,ROCHDALE DEVELOPMENT AGENCY,03/06/2020,833.33 ,CAPITAL SALARIES,V001567775
ROCHDALE BOROUGH COUNCIL,03/06/2020,ECONOMY DIRECTORATE,ROCHDALE DEVELOPMENT AGENCY,03/06/2020,1767.30 ,CAPITAL SALARIES,V001567775
ROCHDALE BOROUGH COUNCIL,03/06/2020,ECONOMY DIRECTORATE,ROCHDALE DEVELOPMENT AGENCY,03/06/2020,3081.75 ,CAPITAL SALARIES,V001567775
ROCHDALE BOROUGH COUNCIL,03/06/2020,ECONOMY DIRECTORATE,ROCHDALE DEVELOPMENT AGENCY,03/06/2020,1241.98 ,CAPITAL SALARIES,V001567775
ROCHDALE BOROUGH COUNCIL,03/06/2020,ECONOMY DIRECTORATE,ROCHDALE DEVELOPMENT AGENCY,03/06/2020,5408.75 ,CONTRACTED SERVICES,V001567775
ROCHDALE BOROUGH COUNCIL,03/06/2020,ECONOMY DIRECTORATE,ROCHDALE DEVELOPMENT AGENCY,03/06/2020,2460.62 ,CONTRACTED SERVICES,V001567775
ROCHDALE BOROUGH COUNCIL,03/06/2020,ECONOMY DIRECTORATE,ROCHDALE DEVELOPMENT AGENCY,03/06/2020,5035.96 ,CAPITAL SALARIES,V001567775
ROCHDALE BOROUGH COUNCIL,03/06/2020,ECONOMY DIRECTORATE,ROCHDALE DEVELOPMENT AGENCY,03/06/2020,3284.53 ,CAPITAL SALARIES,V001567775
ROCHDALE BOROUGH COUNCIL,03/06/2020,ECONOMY DIRECTORATE,ROCHDALE DEVELOPMENT AGENCY,03/06/2020,218.11 ,MARKETING EXPENDITURE,V001567775
ROCHDALE BOROUGH COUNCIL,03/06/2020,ECONOMY DIRECTORATE,ROCHDALE DEVELOPMENT AGENCY,03/06/2020,4500.00 ,LEGAL SERVICES INTERNAL,V001567775
ROCHDALE BOROUGH COUNCIL,05/06/2020,RESOURCES,CRITIQOM LIMITED,05/06/2020,1531.97 ,POSTAGE,V001567776
ROCHDALE BOROUGH COUNCIL,03/06/2020,ADULT CARE LCO FUNCTIONS,BANNER GROUP LIMITED,03/06/2020,31.78 ,PRINTING & STATIONERY,V001567777
ROCHDALE BOROUGH COUNCIL,03/06/2020,NEIGHBOURHOODS AND ENVIRONMENT,NORTHGATE VEHICLE HIRE LIMITED,03/06/2020,17.50 ,EQUIPMENT - GENERAL,V001567778
ROCHDALE BOROUGH COUNCIL,03/06/2020,NEIGHBOURHOODS AND ENVIRONMENT,NORTHGATE VEHICLE HIRE LIMITED,03/06/2020,25.00 ,EQUIPMENT - GENERAL,V001567779
ROCHDALE BOROUGH COUNCIL,03/06/2020,CHILDREN�S SOCIAL CARE,NORTHERN COMMUNITY PATHWAYS LTD,03/06/2020,2292.85 ,YOUNG PEOPLES RENTS,V001567780
ROCHDALE BOROUGH COUNCIL,03/06/2020,CHILDREN�S SOCIAL CARE,NORTHERN COMMUNITY PATHWAYS LTD,03/06/2020,256.41 ,YOUNGE PERSONS ALLOWANCE,V001567781
ROCHDALE BOROUGH COUNCIL,03/06/2020,CHILDREN�S SOCIAL CARE,NORTHERN COMMUNITY PATHWAYS LTD,03/06/2020,239.87 ,YOUNGE PERSONS ALLOWANCE,V001567782
ROCHDALE BOROUGH COUNCIL,03/06/2020,CHILDREN�S SOCIAL CARE,NORTHERN COMMUNITY PATHWAYS LTD,03/06/2020,2216.43 ,YOUNG PEOPLES RENTS,V001567783
ROCHDALE BOROUGH COUNCIL,03/06/2020,CHILDREN�S SOCIAL CARE,THE TOGETHER TRUST,03/06/2020,3505.50 ,FOSTER PARENTS BASIC ALLOWANCE,V001567784
ROCHDALE BOROUGH COUNCIL,03/06/2020,CHILDREN�S SOCIAL CARE,THE TOGETHER TRUST,03/06/2020,17100.00 ,EBD (EMOT & BEHAV DIFF) PLACEMENTS,V001567785
ROCHDALE BOROUGH COUNCIL,03/06/2020,CHILDREN�S SOCIAL CARE,THE TOGETHER TRUST,03/06/2020,17100.00 ,EBD (EMOT & BEHAV DIFF) PLACEMENTS,V001567786
ROCHDALE BOROUGH COUNCIL,03/06/2020,CHILDREN�S SOCIAL CARE,FOSTER CARES LTD,03/06/2020,810.00 ,FOSTER PARENTS BASIC ALLOWANCE,V001567787
ROCHDALE BOROUGH COUNCIL,03/06/2020,CHILDREN�S SOCIAL CARE,FOSTER CARES LTD,03/06/2020,810.00 ,FOSTER PARENTS BASIC ALLOWANCE,V001567788
ROCHDALE BOROUGH COUNCIL,03/06/2020,CHILDREN�S SOCIAL CARE,CHOICES HOME FOR CHILDREN,03/06/2020,12428.57 ,EBD (EMOT & BEHAV DIFF) PLACEMENTS,V001567789
ROCHDALE BOROUGH COUNCIL,03/06/2020,RESOURCES,MUNICIPAL MUTUAL INSURANCE LTD,03/06/2020,1456.13 ,PROVISIONS UTILISED IN YEAR,V001567790
ROCHDALE BOROUGH COUNCIL,15/06/2020,NEIGHBOURHOODS AND ENVIRONMENT,CIVICA UK LIMITED,15/06/2020,132.92 ,SUBSCRIPTIONS,V001567791
ROCHDALE BOROUGH COUNCIL,03/06/2020,NEIGHBOURHOODS AND ENVIRONMENT,REDACTED - PERSONAL DATA,03/06/2020,6240.00 ,MEDICAL FEES,V001567792
ROCHDALE BOROUGH COUNCIL,03/06/2020,CHILDREN�S SOCIAL CARE,ADVOCACY FOCUS,03/06/2020,5952.91 ,SERVICE LEVEL AGREEMENTS,V001567793
ROCHDALE BOROUGH COUNCIL,03/06/2020,CHILDREN�S SOCIAL CARE,STREETWISE,03/06/2020,716.00 ,ADVERTISING,V001567794
ROCHDALE BOROUGH COUNCIL,22/06/2020,CHILDREN�S SOCIAL CARE,MILLENNIUM TRANSLATIONS LTD,22/06/2020,53.30 ,TRANSLATION & INTERPRETATION,V001567795
ROCHDALE BOROUGH COUNCIL,03/06/2020,CHILDREN�S SOCIAL CARE,REDACTED - PERSONAL DATA,03/06/2020,175.00 ,CHILDRENS SUBSISTENCE,V001567796
ROCHDALE BOROUGH COUNCIL,08/06/2020,CHILDREN�S SOCIAL CARE,SAFEHOUSES FOSTERING,08/06/2020,3782.31 ,FOSTER PARENTS BASIC ALLOWANCE,V001567798
ROCHDALE BOROUGH COUNCIL,08/06/2020,CHILDREN�S SOCIAL CARE,SAFEHOUSES FOSTERING,08/06/2020,3782.31 ,FOSTER PARENTS BASIC ALLOWANCE,V001567799
ROCHDALE BOROUGH COUNCIL,08/06/2020,CHILDREN�S SOCIAL CARE,SAFEHOUSES FOSTERING,08/06/2020,3592.90 ,FOSTER PARENTS BASIC ALLOWANCE,V001567800
ROCHDALE BOROUGH COUNCIL,08/06/2020,CHILDREN�S SOCIAL CARE,SAFEHOUSES FOSTERING,08/06/2020,3782.00 ,FOSTER PARENTS BASIC ALLOWANCE,V001567801
ROCHDALE BOROUGH COUNCIL,08/06/2020,CHILDREN�S SOCIAL CARE,SAFEHOUSES FOSTERING,08/06/2020,3684.66 ,FOSTER PARENTS BASIC ALLOWANCE,V001567802
ROCHDALE BOROUGH COUNCIL,08/06/2020,CHILDREN�S SOCIAL CARE,SAFEHOUSES FOSTERING,08/06/2020,2945.00 ,FOSTER PARENTS BASIC ALLOWANCE,V001567803
ROCHDALE BOROUGH COUNCIL,19/06/2020,NEIGHBOURHOODS AND ENVIRONMENT,EUROPEAN ELECTRONIQUE LTD,19/06/2020,209928.00 ,PURCHASE OF ICT HARDWARE,V001567805
ROCHDALE BOROUGH COUNCIL,19/06/2020,NEIGHBOURHOODS AND ENVIRONMENT,EUROPEAN ELECTRONIQUE LTD,19/06/2020,160372.00 ,PURCHASE OF ICT HARDWARE,V001567805
ROCHDALE BOROUGH COUNCIL,03/06/2020,CHILDREN�S SOCIAL CARE,TIMEOUT CHILDRENS HOMES LTD,03/06/2020,15600.00 ,EBD (EMOT & BEHAV DIFF) PLACEMENTS,V001567806
ROCHDALE BOROUGH COUNCIL,03/06/2020,CHILDREN�S SOCIAL CARE,TIMEOUT CHILDRENS HOMES LTD,03/06/2020,14100.00 ,EBD (EMOT & BEHAV DIFF) PLACEMENTS,V001567807
ROCHDALE BOROUGH COUNCIL,09/06/2020,CHILDREN�S SOCIAL CARE,CALDERDALE METROPOLITAN BOROUGH COUNCIL,09/06/2020,733.46 ,ALLOWANCES,V001567808
ROCHDALE BOROUGH COUNCIL,08/06/2020,NEIGHBOURHOODS AND ENVIRONMENT,GREENFINGERS LANDSCAPE LTD,08/06/2020,5850.84 ,CONTRACTS,V001567809
ROCHDALE BOROUGH COUNCIL,03/06/2020,CHILDREN�S SOCIAL CARE,REDACTED - PERSONAL DATA,03/06/2020,1250.00 ,CONSULTANT FEES,V001567810
ROCHDALE BOROUGH COUNCIL,08/06/2020,NEIGHBOURHOODS AND ENVIRONMENT,BLOOM PROCUREMENT SERVICES LTD,08/06/2020,500.00 ,EQUIPMENT - GENERAL,V001567811
ROCHDALE BOROUGH COUNCIL,03/06/2020,CHILDREN�S SOCIAL CARE,BALTIMORE CONSULTING LTD,03/06/2020,1626.51 ,AGENCY STAFF,V001567813
ROCHDALE BOROUGH COUNCIL,03/06/2020,CHILDREN�S SOCIAL CARE,LIFETIME OPPORTUNITIES,03/06/2020,10600.00 ,EBD (EMOT & BEHAV DIFF) PLACEMENTS,V001567872
ROCHDALE BOROUGH COUNCIL,03/06/2020,CHILDREN�S SOCIAL CARE,LIFETIME OPPORTUNITIES,03/06/2020,12000.00 ,EBD (EMOT & BEHAV DIFF) PLACEMENTS,V001567873
ROCHDALE BOROUGH COUNCIL,03/06/2020,CHILDREN�S SOCIAL CARE,FOSTER CARELINE LTD,03/06/2020,7063.57 ,FOSTER PARENTS BASIC ALLOWANCE,V001567874
ROCHDALE BOROUGH COUNCIL,18/06/2020,NEIGHBOURHOODS AND ENVIRONMENT,EARLEY ORNAMENTALS LTD,18/06/2020,454.26 ,"TREES, SHRUBS, PLANTS",V001567875
ROCHDALE BOROUGH COUNCIL,03/06/2020,NEIGHBOURHOODS AND ENVIRONMENT,XMA LIMITED,03/06/2020,611.68 ,PURCHASE OF ICT HARDWARE,V001567876
ROCHDALE BOROUGH COUNCIL,03/06/2020,NEIGHBOURHOODS AND ENVIRONMENT,SPECIALIST COMPUTER CENTRES PLC,03/06/2020,5710.00 ,TRANSACTIONS-EXPENDITURE,V001567877
ROCHDALE BOROUGH COUNCIL,03/06/2020,CHILDREN�S SOCIAL CARE,CAMBIAN CHILDCARE LIMITED,03/06/2020,14835.67 ,EBD (EMOT & BEHAV DIFF) PLACEMENTS,V001567878
ROCHDALE BOROUGH COUNCIL,03/06/2020,CHILDREN�S SOCIAL CARE,CAMBIAN CHILDCARE LIMITED,03/06/2020,21921.34 ,EBD (EMOT & BEHAV DIFF) PLACEMENTS,V001567879
ROCHDALE BOROUGH COUNCIL,03/06/2020,CHILDREN�S SOCIAL CARE,CAMBIAN CHILDCARE LIMITED,03/06/2020,20592.99 ,EBD (EMOT & BEHAV DIFF) PLACEMENTS,V001567880
ROCHDALE BOROUGH COUNCIL,04/06/2020,COMMISSIONING AND STATUTORY,ROCHDALE HEALTH ALLIANCE,04/06/2020,15721.67 ,OTHER LA`S - SEN PROVISION,V001567881
ROCHDALE BOROUGH COUNCIL,04/06/2020,PROPERTY AND HIGHWAYS,REACH PUBLISHING SERVICES LTD,04/06/2020,70.94 ,ADVERTISING,V001567882
ROCHDALE BOROUGH COUNCIL,04/06/2020,PROPERTY AND HIGHWAYS,DDH FABRICATIONS LTD,04/06/2020,290.00 ,PROPERTY - WORKS ELEMENT,V001567883
ROCHDALE BOROUGH COUNCIL,03/06/2020,NEIGHBOURHOODS AND ENVIRONMENT,LANCASHIRE LOCK AND SAFE COMPANY LIMITED,03/06/2020,42.00 ,EQUIPMENT - GENERAL,V001567884
ROCHDALE BOROUGH COUNCIL,03/06/2020,CHILDREN�S SOCIAL CARE,LORIMER FOSTER SERVICES,03/06/2020,3321.65 ,FOSTER PARENTS BASIC ALLOWANCE,V001567887
ROCHDALE BOROUGH COUNCIL,03/06/2020,CHILDREN�S SOCIAL CARE,LORIMER FOSTER SERVICES,03/06/2020,3321.65 ,FOSTER PARENTS BASIC ALLOWANCE,V001567888
ROCHDALE BOROUGH COUNCIL,03/06/2020,CHILDREN�S SOCIAL CARE,LORIMER FOSTER SERVICES,03/06/2020,3321.65 ,FOSTER PARENTS BASIC ALLOWANCE,V001567889
ROCHDALE BOROUGH COUNCIL,03/06/2020,CHILDREN�S SOCIAL CARE,LORIMER FOSTER SERVICES,03/06/2020,2923.92 ,FOSTER PARENTS BASIC ALLOWANCE,V001567890
ROCHDALE BOROUGH COUNCIL,09/06/2020,CHILDREN�S SOCIAL CARE,EXCEL FOSTERING,09/06/2020,5357.10 ,FOSTER PARENTS BASIC ALLOWANCE,V001567891
ROCHDALE BOROUGH COUNCIL,05/06/2020,COMMISSIONING AND STATUTORY,BARNARDOS,05/06/2020,15003.78 ,SP BLOCK PAYMENTS - EXTERNAL,V001567892
ROCHDALE BOROUGH COUNCIL,05/06/2020,COMMISSIONING AND STATUTORY,BOND BOARD LTD,05/06/2020,5731.30 ,SP BLOCK PAYMENTS - EXTERNAL,V001567893
ROCHDALE BOROUGH COUNCIL,05/06/2020,COMMISSIONING AND STATUTORY,CREATIVE SUPPORT,05/06/2020,16047.17 ,SP BLOCK PAYMENTS - EXTERNAL,V001567894
ROCHDALE BOROUGH COUNCIL,05/06/2020,COMMISSIONING AND STATUTORY,CREATIVE SUPPORT,05/06/2020,16047.17 ,SP BLOCK PAYMENTS - EXTERNAL,V001567894
ROCHDALE BOROUGH COUNCIL,05/06/2020,COMMISSIONING AND STATUTORY,MAKING SPACE,05/06/2020,2992.00 ,SP BLOCK PAYMENTS - EXTERNAL,V001567895
ROCHDALE BOROUGH COUNCIL,05/06/2020,COMMISSIONING AND STATUTORY,MAKING SPACE,05/06/2020,2992.00 ,SP BLOCK PAYMENTS - EXTERNAL,V001567895
ROCHDALE BOROUGH COUNCIL,05/06/2020,COMMISSIONING AND STATUTORY,MAKING SPACE,05/06/2020,19949.08 ,SP BLOCK PAYMENTS - EXTERNAL,V001567896
ROCHDALE BOROUGH COUNCIL,05/06/2020,COMMISSIONING AND STATUTORY,MAKING SPACE,05/06/2020,19949.08 ,SP BLOCK PAYMENTS - EXTERNAL,V001567896
ROCHDALE BOROUGH COUNCIL,05/06/2020,ADULT CARE LCO FUNCTIONS,PENDLETON CARE LTD,05/06/2020,633.60 ,SUPPORTED LIVING,V001567897
ROCHDALE BOROUGH COUNCIL,05/06/2020,ADULT CARE LCO FUNCTIONS,PENDLETON CARE LTD,05/06/2020,633.60 ,SUPPORTED LIVING,V001567897
ROCHDALE BOROUGH COUNCIL,05/06/2020,COMMISSIONING AND STATUTORY,ROCHDALE PETRUS COMMUNITY,05/06/2020,10279.60 ,SP BLOCK PAYMENTS - EXTERNAL,V001567898
ROCHDALE BOROUGH COUNCIL,05/06/2020,COMMISSIONING AND STATUTORY,ROCHDALE PETRUS COMMUNITY,05/06/2020,10279.60 ,SP BLOCK PAYMENTS - EXTERNAL,V001567898
ROCHDALE BOROUGH COUNCIL,05/06/2020,COMMISSIONING AND STATUTORY,ROCHDALE AND DISTRICT MIND,05/06/2020,9376.92 ,SERVICE LEVEL AGREEMENTS,V001567899
ROCHDALE BOROUGH COUNCIL,05/06/2020,COMMISSIONING AND STATUTORY,STEPPING STONE,05/06/2020,15189.02 ,SP BLOCK PAYMENTS - EXTERNAL,V001567900
ROCHDALE BOROUGH COUNCIL,05/06/2020,COMMISSIONING AND STATUTORY,STEPPING STONE,05/06/2020,15189.02 ,SP BLOCK PAYMENTS - EXTERNAL,V001567900
ROCHDALE BOROUGH COUNCIL,05/06/2020,COMMISSIONING AND STATUTORY,STEPPING STONE,05/06/2020,9113.44 ,SP BLOCK PAYMENTS - EXTERNAL,V001567901
ROCHDALE BOROUGH COUNCIL,05/06/2020,COMMISSIONING AND STATUTORY,STEPPING STONE,05/06/2020,9113.44 ,SP BLOCK PAYMENTS - EXTERNAL,V001567901
ROCHDALE BOROUGH COUNCIL,05/06/2020,COMMISSIONING AND STATUTORY,STEPPING STONE,05/06/2020,15189.02 ,SP BLOCK PAYMENTS - EXTERNAL,V001567902
ROCHDALE BOROUGH COUNCIL,05/06/2020,COMMISSIONING AND STATUTORY,STEPPING STONE,05/06/2020,15189.02 ,SP BLOCK PAYMENTS - EXTERNAL,V001567902
ROCHDALE BOROUGH COUNCIL,05/06/2020,COMMISSIONING AND STATUTORY,TOGETHER WORKING FOR WELLBEING,05/06/2020,23037.80 ,CONTRACTS,V001567903
ROCHDALE BOROUGH COUNCIL,05/06/2020,COMMISSIONING AND STATUTORY,TOGETHER WORKING FOR WELLBEING,05/06/2020,23037.80 ,CONTRACTS,V001567903
ROCHDALE BOROUGH COUNCIL,05/06/2020,COMMISSIONING AND STATUTORY,WOMENS HOUSING ACTION GROUP,05/06/2020,15311.63 ,SP BLOCK PAYMENTS - EXTERNAL,V001567904
ROCHDALE BOROUGH COUNCIL,05/06/2020,COMMISSIONING AND STATUTORY,WOMENS HOUSING ACTION GROUP,05/06/2020,15311.63 ,SP BLOCK PAYMENTS - EXTERNAL,V001567904
ROCHDALE BOROUGH COUNCIL,15/06/2020,ECONOMY DIRECTORATE,GMCA,15/06/2020,1505500.00 ,PASSENGER TRANSPORT LEVY,V001567905
ROCHDALE BOROUGH COUNCIL,03/06/2020,CHILDREN�S SOCIAL CARE,REDACTED - PERSONAL DATA,03/06/2020,550.00 ,YOUNG PEOPLES RENTS,V001567906
ROCHDALE BOROUGH COUNCIL,03/06/2020,NEIGHBOURHOODS AND ENVIRONMENT,ASTOR BANNERMAN MEDICAL LTD,03/06/2020,1020.88 ,CONSUMABLES,V001567907
ROCHDALE BOROUGH COUNCIL,05/06/2020,CHILDREN�S SOCIAL CARE,PARADIGM PROFESSIONAL CONSULTANCY LTD,05/06/2020,1403.70 ,AGENCY STAFF,V001567908
ROCHDALE BOROUGH COUNCIL,03/06/2020,EARLY HELP AND SCHOOLS,PLP CONSTRUCTION LIMITED,03/06/2020,2504.70 ,MINOR BUILDING WORKS,V001567909
ROCHDALE BOROUGH COUNCIL,03/06/2020,PROPERTY AND HIGHWAYS,TRIAD FABRICATIONS LIMITED,03/06/2020,150.00 ,MAINTENANCE,V001567910
ROCHDALE BOROUGH COUNCIL,03/06/2020,NEIGHBOURHOODS AND ENVIRONMENT,CRESCENT COMMUNITY RADIO LTD,03/06/2020,660.00 ,ACTIVITIES,V001567911
ROCHDALE BOROUGH COUNCIL,03/06/2020,NEIGHBOURHOODS AND ENVIRONMENT,CIVICA UK LIMITED,03/06/2020,2050.00 ,CONTRACTED SERVICES,V001567912
ROCHDALE BOROUGH COUNCIL,05/06/2020,CHILDREN�S SOCIAL CARE,PARADIGM PROFESSIONAL CONSULTANCY LTD,05/06/2020,1387.50 ,AGENCY STAFF,V001567913
ROCHDALE BOROUGH COUNCIL,05/06/2020,CHILDREN�S SOCIAL CARE,PARADIGM PROFESSIONAL CONSULTANCY LTD,05/06/2020,1405.50 ,AGENCY STAFF,V001567916
ROCHDALE BOROUGH COUNCIL,03/06/2020,PROPERTY AND HIGHWAYS,REACH PUBLISHING SERVICES LTD,03/06/2020,70.56 ,ADVERTISING,V001567917
ROCHDALE BOROUGH COUNCIL,03/06/2020,PROPERTY AND HIGHWAYS,REACH PUBLISHING SERVICES LTD,03/06/2020,91.21 ,ADVERTISING,V001567918
ROCHDALE BOROUGH COUNCIL,09/06/2020,PROPERTY AND HIGHWAYS,FRANK KEY TOOL HIRE LTD,09/06/2020,24.75 ,PROPERTY - WORKS ELEMENT,V001567919
ROCHDALE BOROUGH COUNCIL,10/06/2020,NEIGHBOURHOODS AND ENVIRONMENT,REDACTED - PERSONAL DATA,10/06/2020,372.88 ,WITNESSES EXPENSES,V001567920
ROCHDALE BOROUGH COUNCIL,11/06/2020,ADULT CARE LCO FUNCTIONS,BURNEDGE KENNELS AND CATTERY,11/06/2020,414.00 ,SPECIAL PLACEMENTS,V001567921
ROCHDALE BOROUGH COUNCIL,08/06/2020,RESOURCES,PHOENIX COMMERCIAL COLLECTIONS LIMITED,08/06/2020,0.00 ,INPUT VAT -  ADJUSTMENTS,V001567922
ROCHDALE BOROUGH COUNCIL,08/06/2020,RESOURCES,PHOENIX COMMERCIAL COLLECTIONS LIMITED,08/06/2020,0.00 ,INPUT VAT -  ADJUSTMENTS,V001567922
ROCHDALE BOROUGH COUNCIL,03/06/2020,PROPERTY AND HIGHWAYS,REACH PUBLISHING SERVICES LTD,03/06/2020,81.07 ,ADVERTISING,V001567923
ROCHDALE BOROUGH COUNCIL,03/06/2020,PROPERTY AND HIGHWAYS,REACH PUBLISHING SERVICES LTD,03/06/2020,60.80 ,ADVERTISING,V001567924
ROCHDALE BOROUGH COUNCIL,03/06/2020,PROPERTY AND HIGHWAYS,DDH FABRICATIONS LTD,03/06/2020,140.00 ,PROPERTY - WORKS ELEMENT,V001567925
ROCHDALE BOROUGH COUNCIL,03/06/2020,PROPERTY AND HIGHWAYS,DDH FABRICATIONS LTD,03/06/2020,140.00 ,PROPERTY - WORKS ELEMENT,V001567926
ROCHDALE BOROUGH COUNCIL,03/06/2020,PROPERTY AND HIGHWAYS,DDH FABRICATIONS LTD,03/06/2020,140.00 ,PROPERTY - WORKS ELEMENT,V001567927
ROCHDALE BOROUGH COUNCIL,04/06/2020,PROPERTY AND HIGHWAYS,REACH PUBLISHING SERVICES LTD,04/06/2020,70.56 ,ADVERTISING,V001567928
ROCHDALE BOROUGH COUNCIL,04/06/2020,PROPERTY AND HIGHWAYS,REACH PUBLISHING SERVICES LTD,04/06/2020,70.94 ,ADVERTISING,V001567929
ROCHDALE BOROUGH COUNCIL,04/06/2020,PROPERTY AND HIGHWAYS,REACH PUBLISHING SERVICES LTD,04/06/2020,60.80 ,ADVERTISING,V001567930
ROCHDALE BOROUGH COUNCIL,08/06/2020,NEIGHBOURHOODS AND ENVIRONMENT,MANCHESTER CABINS LIMITED,08/06/2020,105.60 ,CONTRACTS,V001567931
ROCHDALE BOROUGH COUNCIL,09/06/2020,PROPERTY AND HIGHWAYS,FRANK KEY TOOL HIRE LTD,09/06/2020,3.00 ,PROPERTY - WORKS ELEMENT,V001567934
ROCHDALE BOROUGH COUNCIL,04/06/2020,NEIGHBOURHOODS AND ENVIRONMENT,DR VINITA CHARAN,04/06/2020,3440.00 ,MEDICAL FEES,V001567935
ROCHDALE BOROUGH COUNCIL,04/06/2020,NEIGHBOURHOODS AND ENVIRONMENT,REDACTED - PERSONAL DATA,04/06/2020,2160.00 ,MEDICAL FEES,V001567936
ROCHDALE BOROUGH COUNCIL,05/06/2020,ADULT CARE LCO FUNCTIONS,REDACTED - PERSONAL DATA,05/06/2020,3048.16 ,DIRECT PAYMENTS,V001567937
ROCHDALE BOROUGH COUNCIL,05/06/2020,EARLY HELP AND SCHOOLS,REDACTED - PERSONAL DATA,05/06/2020,949.08 ,DIRECT PAYMENTS,V001567938
ROCHDALE BOROUGH COUNCIL,05/06/2020,EARLY HELP AND SCHOOLS,REDACTED - PERSONAL DATA,05/06/2020,194.20 ,DIRECT PAYMENTS,V001567939
ROCHDALE BOROUGH COUNCIL,05/06/2020,EARLY HELP AND SCHOOLS,REDACTED - PERSONAL DATA,05/06/2020,294.88 ,DIRECT PAYMENTS,V001567940
ROCHDALE BOROUGH COUNCIL,05/06/2020,EARLY HELP AND SCHOOLS,REDACTED - PERSONAL DATA,05/06/2020,375.72 ,DIRECT PAYMENTS,V001567941
ROCHDALE BOROUGH COUNCIL,05/06/2020,ADULT CARE LCO FUNCTIONS,REDACTED - PERSONAL DATA,05/06/2020,1479.92 ,DIRECT PAYMENTS,V001567942
ROCHDALE BOROUGH COUNCIL,05/06/2020,EARLY HELP AND SCHOOLS,REDACTED - PERSONAL DATA,05/06/2020,881.98 ,DIRECT PAYMENTS,V001567943
ROCHDALE BOROUGH COUNCIL,04/06/2020,NEIGHBOURHOODS AND ENVIRONMENT,ALLIANCE DISPOSABLES LIMITED,04/06/2020,13.50 ,CONSUMABLES,V001567944
ROCHDALE BOROUGH COUNCIL,05/06/2020,EARLY HELP AND SCHOOLS,REDACTED - PERSONAL DATA,05/06/2020,250.68 ,DIRECT PAYMENTS,V001567945
ROCHDALE BOROUGH COUNCIL,05/06/2020,EARLY HELP AND SCHOOLS,REDACTED - PERSONAL DATA,05/06/2020,118.92 ,DIRECT PAYMENTS,V001567946
ROCHDALE BOROUGH COUNCIL,05/06/2020,EARLY HELP AND SCHOOLS,REDACTED - PERSONAL DATA,05/06/2020,118.92 ,DIRECT PAYMENTS,V001567947
ROCHDALE BOROUGH COUNCIL,05/06/2020,ADULT CARE LCO FUNCTIONS,REDACTED - PERSONAL DATA,05/06/2020,3522.32 ,DIRECT PAYMENTS,V001567948
ROCHDALE BOROUGH COUNCIL,05/06/2020,EARLY HELP AND SCHOOLS,REDACTED - PERSONAL DATA,05/06/2020,412.32 ,DIRECT PAYMENTS,V001567949
ROCHDALE BOROUGH COUNCIL,05/06/2020,EARLY HELP AND SCHOOLS,REDACTED - PERSONAL DATA,05/06/2020,419.32 ,DIRECT PAYMENTS,V001567950
ROCHDALE BOROUGH COUNCIL,05/06/2020,EARLY HELP AND SCHOOLS,REDACTED - PERSONAL DATA,05/06/2020,329.04 ,DIRECT PAYMENTS,V001567951
ROCHDALE BOROUGH COUNCIL,05/06/2020,EARLY HELP AND SCHOOLS,REDACTED - PERSONAL DATA,05/06/2020,504.92 ,DIRECT PAYMENTS,V001567952
ROCHDALE BOROUGH COUNCIL,05/06/2020,EARLY HELP AND SCHOOLS,REDACTED - PERSONAL DATA,05/06/2020,296.68 ,HOME CARE - CHILDRENS SERVICES,V001567953
ROCHDALE BOROUGH COUNCIL,05/06/2020,EARLY HELP AND SCHOOLS,REDACTED - PERSONAL DATA,05/06/2020,388.40 ,DIRECT PAYMENTS,V001567954
ROCHDALE BOROUGH COUNCIL,05/06/2020,EARLY HELP AND SCHOOLS,REDACTED - PERSONAL DATA,05/06/2020,339.60 ,HOME CARE - CHILDRENS SERVICES,V001567955
ROCHDALE BOROUGH COUNCIL,05/06/2020,EARLY HELP AND SCHOOLS,REDACTED - PERSONAL DATA,05/06/2020,194.20 ,DIRECT PAYMENTS,V001567956
ROCHDALE BOROUGH COUNCIL,05/06/2020,EARLY HELP AND SCHOOLS,REDACTED - PERSONAL DATA,05/06/2020,239.20 ,HOME CARE - CHILDRENS SERVICES,V001567957
ROCHDALE BOROUGH COUNCIL,05/06/2020,EARLY HELP AND SCHOOLS,REDACTED - PERSONAL DATA,05/06/2020,289.36 ,HOME CARE - CHILDRENS SERVICES,V001567958
ROCHDALE BOROUGH COUNCIL,05/06/2020,EARLY HELP AND SCHOOLS,REDACTED - PERSONAL DATA,05/06/2020,985.35 ,HOME CARE - CHILDRENS SERVICES,V001567959
ROCHDALE BOROUGH COUNCIL,05/06/2020,EARLY HELP AND SCHOOLS,REDACTED - PERSONAL DATA,05/06/2020,221.16 ,DIRECT PAYMENTS,V001567960
ROCHDALE BOROUGH COUNCIL,05/06/2020,EARLY HELP AND SCHOOLS,REDACTED - PERSONAL DATA,05/06/2020,221.16 ,DIRECT PAYMENTS,V001567961
ROCHDALE BOROUGH COUNCIL,05/06/2020,EARLY HELP AND SCHOOLS,REDACTED - PERSONAL DATA,05/06/2020,618.48 ,HOME CARE - CHILDRENS SERVICES,V001567962
ROCHDALE BOROUGH COUNCIL,05/06/2020,EARLY HELP AND SCHOOLS,REDACTED - PERSONAL DATA,05/06/2020,116.52 ,DIRECT PAYMENTS,V001567963
ROCHDALE BOROUGH COUNCIL,05/06/2020,EARLY HELP AND SCHOOLS,REDACTED - PERSONAL DATA,05/06/2020,223.36 ,DIRECT PAYMENTS,V001567964
ROCHDALE BOROUGH COUNCIL,05/06/2020,EARLY HELP AND SCHOOLS,REDACTED - PERSONAL DATA,05/06/2020,116.52 ,DIRECT PAYMENTS,V001567965
ROCHDALE BOROUGH COUNCIL,04/06/2020,RESOURCES,REDACTED - PERSONAL DATA,04/06/2020,500.00 ,PROFESSIONAL FEES,V001567966
ROCHDALE BOROUGH COUNCIL,05/06/2020,EARLY HELP AND SCHOOLS,REDACTED - PERSONAL DATA,05/06/2020,337.68 ,DIRECT PAYMENTS,V001567967
ROCHDALE BOROUGH COUNCIL,05/06/2020,EARLY HELP AND SCHOOLS,REDACTED - PERSONAL DATA,05/06/2020,432.40 ,DIRECT PAYMENTS,V001567968
ROCHDALE BOROUGH COUNCIL,05/06/2020,EARLY HELP AND SCHOOLS,REDACTED - PERSONAL DATA,05/06/2020,139.52 ,DIRECT PAYMENTS,V001567969
ROCHDALE BOROUGH COUNCIL,05/06/2020,EARLY HELP AND SCHOOLS,REDACTED - PERSONAL DATA,05/06/2020,184.48 ,DIRECT PAYMENTS,V001567970
ROCHDALE BOROUGH COUNCIL,05/06/2020,EARLY HELP AND SCHOOLS,REDACTED - PERSONAL DATA,05/06/2020,116.52 ,DIRECT PAYMENTS,V001567971
ROCHDALE BOROUGH COUNCIL,05/06/2020,EARLY HELP AND SCHOOLS,REDACTED - PERSONAL DATA,05/06/2020,566.76 ,DIRECT PAYMENTS,V001567972
ROCHDALE BOROUGH COUNCIL,05/06/2020,EARLY HELP AND SCHOOLS,REDACTED - PERSONAL DATA,05/06/2020,546.96 ,DIRECT PAYMENTS,V001567973
ROCHDALE BOROUGH COUNCIL,05/06/2020,EARLY HELP AND SCHOOLS,REDACTED - PERSONAL DATA,05/06/2020,223.36 ,DIRECT PAYMENTS,V001567974
ROCHDALE BOROUGH COUNCIL,05/06/2020,EARLY HELP AND SCHOOLS,REDACTED - PERSONAL DATA,05/06/2020,357.92 ,DIRECT PAYMENTS,V001567975
ROCHDALE BOROUGH COUNCIL,05/06/2020,EARLY HELP AND SCHOOLS,REDACTED - PERSONAL DATA,05/06/2020,2139.88 ,HOME CARE - CHILDRENS SERVICES,V001567976
ROCHDALE BOROUGH COUNCIL,05/06/2020,EARLY HELP AND SCHOOLS,REDACTED - PERSONAL DATA,05/06/2020,2319.44 ,HOME CARE - CHILDRENS SERVICES,V001567977
ROCHDALE BOROUGH COUNCIL,05/06/2020,EARLY HELP AND SCHOOLS,REDACTED - PERSONAL DATA,05/06/2020,1460.08 ,DIRECT PAYMENTS,V001567978
ROCHDALE BOROUGH COUNCIL,05/06/2020,EARLY HELP AND SCHOOLS,REDACTED - PERSONAL DATA,05/06/2020,194.20 ,DIRECT PAYMENTS,V001567979
ROCHDALE BOROUGH COUNCIL,05/06/2020,EARLY HELP AND SCHOOLS,REDACTED - PERSONAL DATA,05/06/2020,194.20 ,DIRECT PAYMENTS,V001567980
ROCHDALE BOROUGH COUNCIL,05/06/2020,EARLY HELP AND SCHOOLS,REDACTED - PERSONAL DATA,05/06/2020,149.84 ,DIRECT PAYMENTS,V001567981
ROCHDALE BOROUGH COUNCIL,05/06/2020,EARLY HELP AND SCHOOLS,REDACTED - PERSONAL DATA,05/06/2020,823.88 ,DIRECT PAYMENTS,V001567982
ROCHDALE BOROUGH COUNCIL,05/06/2020,EARLY HELP AND SCHOOLS,REDACTED - PERSONAL DATA,05/06/2020,233.04 ,DIRECT PAYMENTS,V001567983
ROCHDALE BOROUGH COUNCIL,05/06/2020,EARLY HELP AND SCHOOLS,REDACTED - PERSONAL DATA,05/06/2020,572.72 ,DIRECT PAYMENTS,V001567984
ROCHDALE BOROUGH COUNCIL,05/06/2020,EARLY HELP AND SCHOOLS,REDACTED - PERSONAL DATA,05/06/2020,668.08 ,HOME CARE - CHILDRENS SERVICES,V001567985
ROCHDALE BOROUGH COUNCIL,05/06/2020,EARLY HELP AND SCHOOLS,REDACTED - PERSONAL DATA,05/06/2020,566.76 ,DIRECT PAYMENTS,V001567986
ROCHDALE BOROUGH COUNCIL,05/06/2020,EARLY HELP AND SCHOOLS,REDACTED - PERSONAL DATA,05/06/2020,116.52 ,DIRECT PAYMENTS,V001567987
ROCHDALE BOROUGH COUNCIL,05/06/2020,EARLY HELP AND SCHOOLS,REDACTED - PERSONAL DATA,05/06/2020,145.64 ,DIRECT PAYMENTS,V001567988
ROCHDALE BOROUGH COUNCIL,05/06/2020,EARLY HELP AND SCHOOLS,REDACTED - PERSONAL DATA,05/06/2020,678.48 ,HOME CARE - CHILDRENS SERVICES,V001567989
ROCHDALE BOROUGH COUNCIL,05/06/2020,EARLY HELP AND SCHOOLS,REDACTED - PERSONAL DATA,05/06/2020,261.48 ,HOME CARE - CHILDRENS SERVICES,V001567990
ROCHDALE BOROUGH COUNCIL,05/06/2020,EARLY HELP AND SCHOOLS,REDACTED - PERSONAL DATA,05/06/2020,116.52 ,DIRECT PAYMENTS,V001567991
ROCHDALE BOROUGH COUNCIL,05/06/2020,EARLY HELP AND SCHOOLS,REDACTED - PERSONAL DATA,05/06/2020,77.68 ,DIRECT PAYMENTS,V001567992
ROCHDALE BOROUGH COUNCIL,05/06/2020,EARLY HELP AND SCHOOLS,REDACTED - PERSONAL DATA,05/06/2020,186.76 ,HOME CARE - CHILDRENS SERVICES,V001567993
ROCHDALE BOROUGH COUNCIL,05/06/2020,EARLY HELP AND SCHOOLS,REDACTED - PERSONAL DATA,05/06/2020,120.24 ,HOME CARE - CHILDRENS SERVICES,V001567994
ROCHDALE BOROUGH COUNCIL,05/06/2020,EARLY HELP AND SCHOOLS,REDACTED - PERSONAL DATA,05/06/2020,185.48 ,HOME CARE - CHILDRENS SERVICES,V001567995
ROCHDALE BOROUGH COUNCIL,05/06/2020,EARLY HELP AND SCHOOLS,REDACTED - PERSONAL DATA,05/06/2020,450.12 ,HOME CARE - CHILDRENS SERVICES,V001567996
ROCHDALE BOROUGH COUNCIL,05/06/2020,EARLY HELP AND SCHOOLS,REDACTED - PERSONAL DATA,05/06/2020,506.92 ,HOME CARE - CHILDRENS SERVICES,V001567997
ROCHDALE BOROUGH COUNCIL,05/06/2020,EARLY HELP AND SCHOOLS,REDACTED - PERSONAL DATA,05/06/2020,291.32 ,DIRECT PAYMENTS,V001567998
ROCHDALE BOROUGH COUNCIL,05/06/2020,EARLY HELP AND SCHOOLS,REDACTED - PERSONAL DATA,05/06/2020,337.68 ,DIRECT PAYMENTS,V001567999
ROCHDALE BOROUGH COUNCIL,05/06/2020,EARLY HELP AND SCHOOLS,REDACTED - PERSONAL DATA,05/06/2020,9552.74 ,HOME CARE - CHILDRENS SERVICES,V001568000
ROCHDALE BOROUGH COUNCIL,05/06/2020,EARLY HELP AND SCHOOLS,REDACTED - PERSONAL DATA,05/06/2020,644.96 ,DIRECT PAYMENTS,V001568001
ROCHDALE BOROUGH COUNCIL,05/06/2020,EARLY HELP AND SCHOOLS,REDACTED - PERSONAL DATA,05/06/2020,186.28 ,DIRECT PAYMENTS,V001568002
ROCHDALE BOROUGH COUNCIL,05/06/2020,EARLY HELP AND SCHOOLS,REDACTED - PERSONAL DATA,05/06/2020,142.68 ,DIRECT PAYMENTS,V001568003
ROCHDALE BOROUGH COUNCIL,05/06/2020,EARLY HELP AND SCHOOLS,REDACTED - PERSONAL DATA,05/06/2020,116.52 ,DIRECT PAYMENTS,V001568004
ROCHDALE BOROUGH COUNCIL,05/06/2020,EARLY HELP AND SCHOOLS,REDACTED - PERSONAL DATA,05/06/2020,253.52 ,HOME CARE - CHILDRENS SERVICES,V001568005
ROCHDALE BOROUGH COUNCIL,05/06/2020,EARLY HELP AND SCHOOLS,REDACTED - PERSONAL DATA,05/06/2020,116.52 ,HOME CARE - CHILDRENS SERVICES,V001568006
ROCHDALE BOROUGH COUNCIL,05/06/2020,EARLY HELP AND SCHOOLS,REDACTED - PERSONAL DATA,05/06/2020,116.52 ,DIRECT PAYMENTS,V001568007
ROCHDALE BOROUGH COUNCIL,05/06/2020,EARLY HELP AND SCHOOLS,REDACTED - PERSONAL DATA,05/06/2020,320.05 ,DIRECT PAYMENTS,V001568008
ROCHDALE BOROUGH COUNCIL,05/06/2020,EARLY HELP AND SCHOOLS,REDACTED - PERSONAL DATA,05/06/2020,283.80 ,HOME CARE - CHILDRENS SERVICES,V001568009
ROCHDALE BOROUGH COUNCIL,05/06/2020,EARLY HELP AND SCHOOLS,REDACTED - PERSONAL DATA,05/06/2020,142.67 ,DIRECT PAYMENTS,V001568010
ROCHDALE BOROUGH COUNCIL,05/06/2020,EARLY HELP AND SCHOOLS,REDACTED - PERSONAL DATA,05/06/2020,142.67 ,DIRECT PAYMENTS,V001568011
ROCHDALE BOROUGH COUNCIL,05/06/2020,EARLY HELP AND SCHOOLS,REDACTED - PERSONAL DATA,05/06/2020,182.00 ,HOME CARE - CHILDRENS SERVICES,V001568012
ROCHDALE BOROUGH COUNCIL,05/06/2020,EARLY HELP AND SCHOOLS,REDACTED - PERSONAL DATA,05/06/2020,203.72 ,DIRECT PAYMENTS,V001568013
ROCHDALE BOROUGH COUNCIL,05/06/2020,EARLY HELP AND SCHOOLS,REDACTED - PERSONAL DATA,05/06/2020,203.72 ,DIRECT PAYMENTS,V001568014
ROCHDALE BOROUGH COUNCIL,05/06/2020,EARLY HELP AND SCHOOLS,REDACTED - PERSONAL DATA,05/06/2020,138.48 ,HOME CARE - CHILDRENS SERVICES,V001568015
ROCHDALE BOROUGH COUNCIL,05/06/2020,EARLY HELP AND SCHOOLS,REDACTED - PERSONAL DATA,05/06/2020,171.52 ,HOME CARE - CHILDRENS SERVICES,V001568016
ROCHDALE BOROUGH COUNCIL,05/06/2020,EARLY HELP AND SCHOOLS,REDACTED - PERSONAL DATA,05/06/2020,145.64 ,DIRECT PAYMENTS,V001568017
ROCHDALE BOROUGH COUNCIL,05/06/2020,EARLY HELP AND SCHOOLS,REDACTED - PERSONAL DATA,05/06/2020,233.04 ,DIRECT PAYMENTS,V001568018
ROCHDALE BOROUGH COUNCIL,05/06/2020,EARLY HELP AND SCHOOLS,REDACTED - PERSONAL DATA,05/06/2020,116.52 ,DIRECT PAYMENTS,V001568019
ROCHDALE BOROUGH COUNCIL,05/06/2020,EARLY HELP AND SCHOOLS,REDACTED - PERSONAL DATA,05/06/2020,104.64 ,DIRECT PAYMENTS,V001568020
ROCHDALE BOROUGH COUNCIL,05/06/2020,EARLY HELP AND SCHOOLS,REDACTED - PERSONAL DATA,05/06/2020,69.76 ,DIRECT PAYMENTS,V001568021
ROCHDALE BOROUGH COUNCIL,05/06/2020,EARLY HELP AND SCHOOLS,REDACTED - PERSONAL DATA,05/06/2020,729.28 ,DIRECT PAYMENTS,V001568022
ROCHDALE BOROUGH COUNCIL,05/06/2020,EARLY HELP AND SCHOOLS,REDACTED - PERSONAL DATA,05/06/2020,466.08 ,DIRECT PAYMENTS,V001568023
ROCHDALE BOROUGH COUNCIL,05/06/2020,EARLY HELP AND SCHOOLS,REDACTED - PERSONAL DATA,05/06/2020,320.44 ,DIRECT PAYMENTS,V001568024
ROCHDALE BOROUGH COUNCIL,05/06/2020,EARLY HELP AND SCHOOLS,REDACTED - PERSONAL DATA,05/06/2020,116.52 ,DIRECT PAYMENTS,V001568025
ROCHDALE BOROUGH COUNCIL,05/06/2020,EARLY HELP AND SCHOOLS,REDACTED - PERSONAL DATA,05/06/2020,104.64 ,DIRECT PAYMENTS,V001568026
ROCHDALE BOROUGH COUNCIL,05/06/2020,EARLY HELP AND SCHOOLS,REDACTED - PERSONAL DATA,05/06/2020,388.40 ,DIRECT PAYMENTS,V001568027
ROCHDALE BOROUGH COUNCIL,05/06/2020,ADULT CARE LCO FUNCTIONS,REDACTED - PERSONAL DATA,05/06/2020,284.64 ,DIRECT PAYMENTS,V001568028
ROCHDALE BOROUGH COUNCIL,05/06/2020,EARLY HELP AND SCHOOLS,REDACTED - PERSONAL DATA,05/06/2020,118.92 ,DIRECT PAYMENTS,V001568029
ROCHDALE BOROUGH COUNCIL,05/06/2020,EARLY HELP AND SCHOOLS,REDACTED - PERSONAL DATA,05/06/2020,729.28 ,DIRECT PAYMENTS,V001568030
ROCHDALE BOROUGH COUNCIL,05/06/2020,EARLY HELP AND SCHOOLS,REDACTED - PERSONAL DATA,05/06/2020,5025.54 ,HOME CARE - CHILDRENS SERVICES,V001568031
ROCHDALE BOROUGH COUNCIL,05/06/2020,EARLY HELP AND SCHOOLS,REDACTED - PERSONAL DATA,05/06/2020,139.52 ,DIRECT PAYMENTS,V001568032
ROCHDALE BOROUGH COUNCIL,05/06/2020,EARLY HELP AND SCHOOLS,REDACTED - PERSONAL DATA,05/06/2020,116.52 ,DIRECT PAYMENTS,V001568033
ROCHDALE BOROUGH COUNCIL,05/06/2020,EARLY HELP AND SCHOOLS,REDACTED - PERSONAL DATA,05/06/2020,262.52 ,DIRECT PAYMENTS,V001568034
ROCHDALE BOROUGH COUNCIL,05/06/2020,EARLY HELP AND SCHOOLS,REDACTED - PERSONAL DATA,05/06/2020,233.04 ,DIRECT PAYMENTS,V001568035
ROCHDALE BOROUGH COUNCIL,05/06/2020,EARLY HELP AND SCHOOLS,REDACTED - PERSONAL DATA,05/06/2020,116.52 ,DIRECT PAYMENTS,V001568036
ROCHDALE BOROUGH COUNCIL,05/06/2020,EARLY HELP AND SCHOOLS,REDACTED - PERSONAL DATA,05/06/2020,570.72 ,DIRECT PAYMENTS,V001568037
ROCHDALE BOROUGH COUNCIL,05/06/2020,EARLY HELP AND SCHOOLS,REDACTED - PERSONAL DATA,05/06/2020,427.24 ,DIRECT PAYMENTS,V001568038
ROCHDALE BOROUGH COUNCIL,05/06/2020,EARLY HELP AND SCHOOLS,REDACTED - PERSONAL DATA,05/06/2020,160.00 ,HOME CARE - CHILDRENS SERVICES,V001568039
ROCHDALE BOROUGH COUNCIL,05/06/2020,EARLY HELP AND SCHOOLS,REDACTED - PERSONAL DATA,05/06/2020,115.40 ,HOME CARE - CHILDRENS SERVICES,V001568040
ROCHDALE BOROUGH COUNCIL,05/06/2020,EARLY HELP AND SCHOOLS,REDACTED - PERSONAL DATA,05/06/2020,116.52 ,DIRECT PAYMENTS,V001568041
ROCHDALE BOROUGH COUNCIL,05/06/2020,EARLY HELP AND SCHOOLS,REDACTED - PERSONAL DATA,05/06/2020,145.64 ,DIRECT PAYMENTS,V001568042
ROCHDALE BOROUGH COUNCIL,05/06/2020,EARLY HELP AND SCHOOLS,REDACTED - PERSONAL DATA,05/06/2020,130.80 ,DIRECT PAYMENTS,V001568043
ROCHDALE BOROUGH COUNCIL,05/06/2020,EARLY HELP AND SCHOOLS,REDACTED - PERSONAL DATA,05/06/2020,97.12 ,DIRECT PAYMENTS,V001568044
ROCHDALE BOROUGH COUNCIL,05/06/2020,EARLY HELP AND SCHOOLS,REDACTED - PERSONAL DATA,05/06/2020,145.64 ,DIRECT PAYMENTS,V001568045
ROCHDALE BOROUGH COUNCIL,05/06/2020,EARLY HELP AND SCHOOLS,REDACTED - PERSONAL DATA,05/06/2020,207.72 ,HOME CARE - CHILDRENS SERVICES,V001568046
ROCHDALE BOROUGH COUNCIL,05/06/2020,EARLY HELP AND SCHOOLS,REDACTED - PERSONAL DATA,05/06/2020,140.48 ,DIRECT PAYMENTS,V001568047
ROCHDALE BOROUGH COUNCIL,05/06/2020,EARLY HELP AND SCHOOLS,REDACTED - PERSONAL DATA,05/06/2020,355.00 ,HOME CARE - CHILDRENS SERVICES,V001568048
ROCHDALE BOROUGH COUNCIL,05/06/2020,EARLY HELP AND SCHOOLS,REDACTED - PERSONAL DATA,05/06/2020,355.00 ,HOME CARE - CHILDRENS SERVICES,V001568049
ROCHDALE BOROUGH COUNCIL,05/06/2020,EARLY HELP AND SCHOOLS,REDACTED - PERSONAL DATA,05/06/2020,144.00 ,HOME CARE - CHILDRENS SERVICES,V001568050
ROCHDALE BOROUGH COUNCIL,05/06/2020,EARLY HELP AND SCHOOLS,REDACTED - PERSONAL DATA,05/06/2020,129.24 ,HOME CARE - CHILDRENS SERVICES,V001568051
ROCHDALE BOROUGH COUNCIL,05/06/2020,EARLY HELP AND SCHOOLS,REDACTED - PERSONAL DATA,05/06/2020,524.00 ,HOME CARE - CHILDRENS SERVICES,V001568052
ROCHDALE BOROUGH COUNCIL,05/06/2020,EARLY HELP AND SCHOOLS,REDACTED - PERSONAL DATA,05/06/2020,233.04 ,DIRECT PAYMENTS,V001568053
ROCHDALE BOROUGH COUNCIL,05/06/2020,EARLY HELP AND SCHOOLS,REDACTED - PERSONAL DATA,05/06/2020,145.64 ,DIRECT PAYMENTS,V001568054
ROCHDALE BOROUGH COUNCIL,05/06/2020,EARLY HELP AND SCHOOLS,REDACTED - PERSONAL DATA,05/06/2020,145.64 ,DIRECT PAYMENTS,V001568055
ROCHDALE BOROUGH COUNCIL,05/06/2020,EARLY HELP AND SCHOOLS,REDACTED - PERSONAL DATA,05/06/2020,3850.43 ,DIRECT PAYMENTS,V001568056
ROCHDALE BOROUGH COUNCIL,05/06/2020,EARLY HELP AND SCHOOLS,REDACTED - PERSONAL DATA,05/06/2020,2139.33 ,DIRECT PAYMENTS,V001568057
ROCHDALE BOROUGH COUNCIL,04/06/2020,NEIGHBOURHOODS AND ENVIRONMENT,REDACTED - PERSONAL DATA,04/06/2020,276.90 ,OTHER POST MORTEMS,V001568058
ROCHDALE BOROUGH COUNCIL,04/06/2020,NEIGHBOURHOODS AND ENVIRONMENT,REDACTED - PERSONAL DATA,04/06/2020,319.00 ,OTHER HISTOLOGY,V001568058
ROCHDALE BOROUGH COUNCIL,04/06/2020,NEIGHBOURHOODS AND ENVIRONMENT,ARCO GROUP LIMITED,04/06/2020,16.63 ,TRANSACTIONS-EXPENDITURE,V001568069
ROCHDALE BOROUGH COUNCIL,04/06/2020,NEIGHBOURHOODS AND ENVIRONMENT,ARCO GROUP LIMITED,04/06/2020,16.63 ,TRANSACTIONS-EXPENDITURE,V001568069
ROCHDALE BOROUGH COUNCIL,04/06/2020,NEIGHBOURHOODS AND ENVIRONMENT,ARCO GROUP LIMITED,04/06/2020,16.63 ,TRANSACTIONS-EXPENDITURE,V001568069
ROCHDALE BOROUGH COUNCIL,04/06/2020,NEIGHBOURHOODS AND ENVIRONMENT,FAUN ZOELLER UK LTD,04/06/2020,80.20 ,VEHICLE MAINTENANCE,V001568070
ROCHDALE BOROUGH COUNCIL,04/06/2020,NEIGHBOURHOODS AND ENVIRONMENT,FAUN ZOELLER UK LTD,04/06/2020,14.00 ,VEHICLE MAINTENANCE,V001568070
ROCHDALE BOROUGH COUNCIL,04/06/2020,NEIGHBOURHOODS AND ENVIRONMENT,ROLAND BARNES MAINTENANCE,04/06/2020,11.50 ,VEHICLE MAINTENANCE,V001568071
ROCHDALE BOROUGH COUNCIL,04/06/2020,NEIGHBOURHOODS AND ENVIRONMENT,ROLAND BARNES MAINTENANCE,04/06/2020,15.20 ,VEHICLE MAINTENANCE,V001568071
ROCHDALE BOROUGH COUNCIL,04/06/2020,NEIGHBOURHOODS AND ENVIRONMENT,ROLAND BARNES MAINTENANCE,04/06/2020,75.00 ,VEHICLE MAINTENANCE,V001568071
ROCHDALE BOROUGH COUNCIL,04/06/2020,NEIGHBOURHOODS AND ENVIRONMENT,ROLAND BARNES MAINTENANCE,04/06/2020,38.30 ,VEHICLE MAINTENANCE,V001568071
ROCHDALE BOROUGH COUNCIL,04/06/2020,NEIGHBOURHOODS AND ENVIRONMENT,ROLAND BARNES MAINTENANCE,04/06/2020,66.40 ,VEHICLE MAINTENANCE,V001568071
ROCHDALE BOROUGH COUNCIL,04/06/2020,NEIGHBOURHOODS AND ENVIRONMENT,ROLAND BARNES MAINTENANCE,04/06/2020,39.95 ,VEHICLE MAINTENANCE,V001568071
ROCHDALE BOROUGH COUNCIL,04/06/2020,NEIGHBOURHOODS AND ENVIRONMENT,ROLAND BARNES MAINTENANCE,04/06/2020,50.00 ,VEHICLE MAINTENANCE,V001568071
ROCHDALE BOROUGH COUNCIL,04/06/2020,NEIGHBOURHOODS AND ENVIRONMENT,ROLAND BARNES MAINTENANCE,04/06/2020,65.96 ,VEHICLE MAINTENANCE,V001568071
ROCHDALE BOROUGH COUNCIL,04/06/2020,NEIGHBOURHOODS AND ENVIRONMENT,JOHNSTON SWEEPERS LIMITED,04/06/2020,1593.20 ,VEHICLE MAINTENANCE,V001568072
ROCHDALE BOROUGH COUNCIL,04/06/2020,NEIGHBOURHOODS AND ENVIRONMENT,JOHNSTON SWEEPERS LIMITED,04/06/2020,1593.20 ,VEHICLE MAINTENANCE,V001568072
ROCHDALE BOROUGH COUNCIL,04/06/2020,NEIGHBOURHOODS AND ENVIRONMENT,ROLAND BARNES MAINTENANCE,04/06/2020,417.00 ,TRANSACTIONS-EXPENDITURE,V001568073
ROCHDALE BOROUGH COUNCIL,04/06/2020,NEIGHBOURHOODS AND ENVIRONMENT,AEBI SCHMIDT UK LIMITED,04/06/2020,15.00 ,VEHICLE MAINTENANCE,V001568074
ROCHDALE BOROUGH COUNCIL,04/06/2020,NEIGHBOURHOODS AND ENVIRONMENT,AEBI SCHMIDT UK LIMITED,04/06/2020,70.47 ,VEHICLE MAINTENANCE,V001568074
ROCHDALE BOROUGH COUNCIL,04/06/2020,NEIGHBOURHOODS AND ENVIRONMENT,F R SHARROCK LIMITED,04/06/2020,139.31 ,TRANSACTIONS-EXPENDITURE,V001568075
ROCHDALE BOROUGH COUNCIL,04/06/2020,NEIGHBOURHOODS AND ENVIRONMENT,QUEENSWAY COMMERCIALS LTD,04/06/2020,10.00 ,VEHICLE MAINTENANCE,V001568076
ROCHDALE BOROUGH COUNCIL,04/06/2020,NEIGHBOURHOODS AND ENVIRONMENT,QUEENSWAY COMMERCIALS LTD,04/06/2020,20.00 ,VEHICLE MAINTENANCE,V001568076
ROCHDALE BOROUGH COUNCIL,04/06/2020,NEIGHBOURHOODS AND ENVIRONMENT,FAUN ZOELLER UK LTD,04/06/2020,620.40 ,VEHICLE MAINTENANCE,V001568077
ROCHDALE BOROUGH COUNCIL,04/06/2020,NEIGHBOURHOODS AND ENVIRONMENT,FAUN ZOELLER UK LTD,04/06/2020,4.00 ,VEHICLE MAINTENANCE,V001568078
ROCHDALE BOROUGH COUNCIL,04/06/2020,NEIGHBOURHOODS AND ENVIRONMENT,PATTERSONS BRISTOL LTD,04/06/2020,421.20 ,TRANSACTIONS-EXPENDITURE,V001568079
ROCHDALE BOROUGH COUNCIL,04/06/2020,NEIGHBOURHOODS AND ENVIRONMENT,CSB SUPPLIES,04/06/2020,300.00 ,TRANSACTIONS-EXPENDITURE,V001568080
ROCHDALE BOROUGH COUNCIL,04/06/2020,NEIGHBOURHOODS AND ENVIRONMENT,CSB SUPPLIES,04/06/2020,179.00 ,TRANSACTIONS-EXPENDITURE,V001568080
ROCHDALE BOROUGH COUNCIL,04/06/2020,NEIGHBOURHOODS AND ENVIRONMENT,CSB SUPPLIES,04/06/2020,270.00 ,TRANSACTIONS-EXPENDITURE,V001568080
ROCHDALE BOROUGH COUNCIL,04/06/2020,NEIGHBOURHOODS AND ENVIRONMENT,PARTSPLUS,04/06/2020,27.30 ,VEHICLE MAINTENANCE,V001568081
ROCHDALE BOROUGH COUNCIL,04/06/2020,NEIGHBOURHOODS AND ENVIRONMENT,PARTSPLUS,04/06/2020,52.80 ,VEHICLE MAINTENANCE,V001568082
ROCHDALE BOROUGH COUNCIL,04/06/2020,NEIGHBOURHOODS AND ENVIRONMENT,PARTSPLUS,04/06/2020,66.29 ,VEHICLE MAINTENANCE,V001568083
ROCHDALE BOROUGH COUNCIL,04/06/2020,NEIGHBOURHOODS AND ENVIRONMENT,PARTSPLUS,04/06/2020,27.30 ,VEHICLE MAINTENANCE,V001568083
ROCHDALE BOROUGH COUNCIL,04/06/2020,NEIGHBOURHOODS AND ENVIRONMENT,PARTSPLUS,04/06/2020,98.69 ,VEHICLE MAINTENANCE,V001568084
ROCHDALE BOROUGH COUNCIL,04/06/2020,NEIGHBOURHOODS AND ENVIRONMENT,PARTSPLUS,04/06/2020,97.20 ,VEHICLE MAINTENANCE,V001568084
ROCHDALE BOROUGH COUNCIL,04/06/2020,NEIGHBOURHOODS AND ENVIRONMENT,PARTSPLUS,04/06/2020,39.18 ,VEHICLE MAINTENANCE,V001568084
ROCHDALE BOROUGH COUNCIL,04/06/2020,NEIGHBOURHOODS AND ENVIRONMENT,PARTSPLUS,04/06/2020,97.20 ,VEHICLE MAINTENANCE,V001568085
ROCHDALE BOROUGH COUNCIL,04/06/2020,NEIGHBOURHOODS AND ENVIRONMENT,PENNINE PUMP & TANK CO,04/06/2020,122.50 ,EQUIPMENT - GENERAL,V001568086
ROCHDALE BOROUGH COUNCIL,04/06/2020,NEIGHBOURHOODS AND ENVIRONMENT,AUTO BATTERY SERVICE LTD,04/06/2020,6.62 ,VEHICLE MAINTENANCE,V001568087
ROCHDALE BOROUGH COUNCIL,04/06/2020,NEIGHBOURHOODS AND ENVIRONMENT,MARLO PRODUCTS LIMITED,04/06/2020,420.00 ,TRANSACTIONS-EXPENDITURE,V001568088
ROCHDALE BOROUGH COUNCIL,04/06/2020,NEIGHBOURHOODS AND ENVIRONMENT,MARLO PRODUCTS LIMITED,04/06/2020,420.00 ,TRANSACTIONS-EXPENDITURE,V001568088
ROCHDALE BOROUGH COUNCIL,04/06/2020,NEIGHBOURHOODS AND ENVIRONMENT,F R SHARROCK LIMITED,04/06/2020,44.71 ,TRANSACTIONS-EXPENDITURE,V001568089
ROCHDALE BOROUGH COUNCIL,04/06/2020,NEIGHBOURHOODS AND ENVIRONMENT,CSB SUPPLIES,04/06/2020,315.00 ,TRANSACTIONS-EXPENDITURE,V001568090
ROCHDALE BOROUGH COUNCIL,04/06/2020,NEIGHBOURHOODS AND ENVIRONMENT,CSB SUPPLIES,04/06/2020,24.03 ,TRANSACTIONS-EXPENDITURE,V001568091
ROCHDALE BOROUGH COUNCIL,04/06/2020,NEIGHBOURHOODS AND ENVIRONMENT,CSB SUPPLIES,04/06/2020,24.03 ,TRANSACTIONS-EXPENDITURE,V001568091
ROCHDALE BOROUGH COUNCIL,04/06/2020,NEIGHBOURHOODS AND ENVIRONMENT,CSB SUPPLIES,04/06/2020,18.60 ,TRANSACTIONS-EXPENDITURE,V001568091
ROCHDALE BOROUGH COUNCIL,04/06/2020,NEIGHBOURHOODS AND ENVIRONMENT,CSB SUPPLIES,04/06/2020,135.00 ,TRANSACTIONS-EXPENDITURE,V001568092
ROCHDALE BOROUGH COUNCIL,04/06/2020,NEIGHBOURHOODS AND ENVIRONMENT,CSB SUPPLIES,04/06/2020,225.00 ,TRANSACTIONS-EXPENDITURE,V001568093
ROCHDALE BOROUGH COUNCIL,04/06/2020,NEIGHBOURHOODS AND ENVIRONMENT,CSB SUPPLIES,04/06/2020,40.00 ,TRANSACTIONS-EXPENDITURE,V001568093
ROCHDALE BOROUGH COUNCIL,04/06/2020,NEIGHBOURHOODS AND ENVIRONMENT,DENNIS EAGLE LTD,04/06/2020,142.52 ,VEHICLE MAINTENANCE,V001568094
ROCHDALE BOROUGH COUNCIL,04/06/2020,NEIGHBOURHOODS AND ENVIRONMENT,ARCO GROUP LIMITED,04/06/2020,23.69 ,TRANSACTIONS-EXPENDITURE,V001568095
ROCHDALE BOROUGH COUNCIL,04/06/2020,NEIGHBOURHOODS AND ENVIRONMENT,ARCO GROUP LIMITED,04/06/2020,23.69 ,TRANSACTIONS-EXPENDITURE,V001568095
ROCHDALE BOROUGH COUNCIL,04/06/2020,NEIGHBOURHOODS AND ENVIRONMENT,ARCO GROUP LIMITED,04/06/2020,23.69 ,TRANSACTIONS-EXPENDITURE,V001568095
ROCHDALE BOROUGH COUNCIL,04/06/2020,NEIGHBOURHOODS AND ENVIRONMENT,EURO CAR PARTS LTD,04/06/2020,87.00 ,VEHICLE MAINTENANCE,V001568096
ROCHDALE BOROUGH COUNCIL,04/06/2020,NEIGHBOURHOODS AND ENVIRONMENT,ROLAND BARNES MAINTENANCE,04/06/2020,50.00 ,VEHICLE MAINTENANCE,V001568097
ROCHDALE BOROUGH COUNCIL,04/06/2020,NEIGHBOURHOODS AND ENVIRONMENT,ROLAND BARNES MAINTENANCE,04/06/2020,207.00 ,VEHICLE MAINTENANCE,V001568097
ROCHDALE BOROUGH COUNCIL,04/06/2020,NEIGHBOURHOODS AND ENVIRONMENT,ROLAND BARNES MAINTENANCE,04/06/2020,12.70 ,VEHICLE MAINTENANCE,V001568097
ROCHDALE BOROUGH COUNCIL,04/06/2020,NEIGHBOURHOODS AND ENVIRONMENT,ROLAND BARNES MAINTENANCE,04/06/2020,5.60 ,VEHICLE MAINTENANCE,V001568097
ROCHDALE BOROUGH COUNCIL,04/06/2020,NEIGHBOURHOODS AND ENVIRONMENT,ROLAND BARNES MAINTENANCE,04/06/2020,7.70 ,VEHICLE MAINTENANCE,V001568097
ROCHDALE BOROUGH COUNCIL,04/06/2020,NEIGHBOURHOODS AND ENVIRONMENT,ROLAND BARNES MAINTENANCE,04/06/2020,5.60 ,VEHICLE MAINTENANCE,V001568097
ROCHDALE BOROUGH COUNCIL,04/06/2020,NEIGHBOURHOODS AND ENVIRONMENT,ROLAND BARNES MAINTENANCE,04/06/2020,8.20 ,VEHICLE MAINTENANCE,V001568097
ROCHDALE BOROUGH COUNCIL,04/06/2020,NEIGHBOURHOODS AND ENVIRONMENT,ROLAND BARNES MAINTENANCE,04/06/2020,4.76 ,VEHICLE MAINTENANCE,V001568097
ROCHDALE BOROUGH COUNCIL,04/06/2020,NEIGHBOURHOODS AND ENVIRONMENT,ROLAND BARNES MAINTENANCE,04/06/2020,14.50 ,VEHICLE MAINTENANCE,V001568097
ROCHDALE BOROUGH COUNCIL,04/06/2020,NEIGHBOURHOODS AND ENVIRONMENT,ROLAND BARNES MAINTENANCE,04/06/2020,12.40 ,VEHICLE MAINTENANCE,V001568097
ROCHDALE BOROUGH COUNCIL,04/06/2020,NEIGHBOURHOODS AND ENVIRONMENT,ROLAND BARNES MAINTENANCE,04/06/2020,13.91 ,VEHICLE MAINTENANCE,V001568097
ROCHDALE BOROUGH COUNCIL,04/06/2020,NEIGHBOURHOODS AND ENVIRONMENT,ROLAND BARNES MAINTENANCE,04/06/2020,13.98 ,VEHICLE MAINTENANCE,V001568097
ROCHDALE BOROUGH COUNCIL,04/06/2020,NEIGHBOURHOODS AND ENVIRONMENT,ROLAND BARNES MAINTENANCE,04/06/2020,16.94 ,VEHICLE MAINTENANCE,V001568097
ROCHDALE BOROUGH COUNCIL,04/06/2020,NEIGHBOURHOODS AND ENVIRONMENT,ROLAND BARNES MAINTENANCE,04/06/2020,28.75 ,VEHICLE MAINTENANCE,V001568097
ROCHDALE BOROUGH COUNCIL,04/06/2020,NEIGHBOURHOODS AND ENVIRONMENT,ROLAND BARNES MAINTENANCE,04/06/2020,46.85 ,VEHICLE MAINTENANCE,V001568097
ROCHDALE BOROUGH COUNCIL,04/06/2020,NEIGHBOURHOODS AND ENVIRONMENT,ROLAND BARNES MAINTENANCE,04/06/2020,11.80 ,VEHICLE MAINTENANCE,V001568097
ROCHDALE BOROUGH COUNCIL,04/06/2020,NEIGHBOURHOODS AND ENVIRONMENT,ROLAND BARNES MAINTENANCE,04/06/2020,43.50 ,VEHICLE MAINTENANCE,V001568097
ROCHDALE BOROUGH COUNCIL,04/06/2020,NEIGHBOURHOODS AND ENVIRONMENT,ROLAND BARNES MAINTENANCE,04/06/2020,5.42 ,VEHICLE MAINTENANCE,V001568097
ROCHDALE BOROUGH COUNCIL,04/06/2020,NEIGHBOURHOODS AND ENVIRONMENT,ROLAND BARNES MAINTENANCE,04/06/2020,22.60 ,TRANSACTIONS-EXPENDITURE,V001568098
ROCHDALE BOROUGH COUNCIL,04/06/2020,NEIGHBOURHOODS AND ENVIRONMENT,ROLAND BARNES MAINTENANCE,04/06/2020,10.80 ,TRANSACTIONS-EXPENDITURE,V001568098
ROCHDALE BOROUGH COUNCIL,04/06/2020,NEIGHBOURHOODS AND ENVIRONMENT,ROLAND BARNES MAINTENANCE,04/06/2020,63.84 ,TRANSACTIONS-EXPENDITURE,V001568098
ROCHDALE BOROUGH COUNCIL,04/06/2020,NEIGHBOURHOODS AND ENVIRONMENT,ROLAND BARNES MAINTENANCE,04/06/2020,15.96 ,TRANSACTIONS-EXPENDITURE,V001568098
ROCHDALE BOROUGH COUNCIL,04/06/2020,NEIGHBOURHOODS AND ENVIRONMENT,ROLAND BARNES MAINTENANCE,04/06/2020,14.60 ,TRANSACTIONS-EXPENDITURE,V001568098
ROCHDALE BOROUGH COUNCIL,04/06/2020,NEIGHBOURHOODS AND ENVIRONMENT,ROLAND BARNES MAINTENANCE,04/06/2020,39.50 ,TRANSACTIONS-EXPENDITURE,V001568099
ROCHDALE BOROUGH COUNCIL,04/06/2020,NEIGHBOURHOODS AND ENVIRONMENT,ROLAND BARNES MAINTENANCE,04/06/2020,30.72 ,TRANSACTIONS-EXPENDITURE,V001568099
ROCHDALE BOROUGH COUNCIL,04/06/2020,NEIGHBOURHOODS AND ENVIRONMENT,ROLAND BARNES MAINTENANCE,04/06/2020,112.00 ,TRANSACTIONS-EXPENDITURE,V001568099
ROCHDALE BOROUGH COUNCIL,04/06/2020,NEIGHBOURHOODS AND ENVIRONMENT,QUEENSWAY COMMERCIALS LTD,04/06/2020,30.00 ,VEHICLE MAINTENANCE,V001568100
ROCHDALE BOROUGH COUNCIL,04/06/2020,NEIGHBOURHOODS AND ENVIRONMENT,QUEENSWAY COMMERCIALS LTD,04/06/2020,10.00 ,VEHICLE MAINTENANCE,V001568100
ROCHDALE BOROUGH COUNCIL,04/06/2020,NEIGHBOURHOODS AND ENVIRONMENT,COMMERCIAL FILTERS LIMITED,04/06/2020,274.56 ,VEHICLE MAINTENANCE,V001568101
ROCHDALE BOROUGH COUNCIL,04/06/2020,NEIGHBOURHOODS AND ENVIRONMENT,AEBI SCHMIDT UK LIMITED,04/06/2020,425.29 ,VEHICLE MAINTENANCE,V001568102
ROCHDALE BOROUGH COUNCIL,04/06/2020,NEIGHBOURHOODS AND ENVIRONMENT,THE WINDSCREEN PEOPLE LTD,04/06/2020,140.00 ,VEHICLE MAINTENANCE,V001568103
ROCHDALE BOROUGH COUNCIL,04/06/2020,NEIGHBOURHOODS AND ENVIRONMENT,AUTO BATTERY SERVICE LTD,04/06/2020,224.90 ,VEHICLE MAINTENANCE,V001568104
ROCHDALE BOROUGH COUNCIL,04/06/2020,NEIGHBOURHOODS AND ENVIRONMENT,F R SHARROCK LIMITED,04/06/2020,125.72 ,TRANSACTIONS-EXPENDITURE,V001568105
ROCHDALE BOROUGH COUNCIL,04/06/2020,NEIGHBOURHOODS AND ENVIRONMENT,QUEENSWAY COMMERCIALS LTD,04/06/2020,-10.00 ,VEHICLE MAINTENANCE,V001568107
ROCHDALE BOROUGH COUNCIL,04/06/2020,NEIGHBOURHOODS AND ENVIRONMENT,QUEENSWAY COMMERCIALS LTD,04/06/2020,-20.00 ,VEHICLE MAINTENANCE,V001568107
ROCHDALE BOROUGH COUNCIL,04/06/2020,EARLY HELP AND SCHOOLS,MONARCH EDUCATION LTD,04/06/2020,1360.00 ,OTHER LA`S - SEN PROVISION,V001568109
ROCHDALE BOROUGH COUNCIL,04/06/2020,EARLY HELP AND SCHOOLS,ROSS CARE,04/06/2020,1002.75 ,EQUIPMENT - GENERAL,V001568110
ROCHDALE BOROUGH COUNCIL,16/06/2020,ADULT CARE LCO FUNCTIONS,ABBEY ARCHITECTURAL IRONMONGERY CO LTD,16/06/2020,10.26 ,EQUIPMENT - GENERAL,V001568111
ROCHDALE BOROUGH COUNCIL,04/06/2020,NEIGHBOURHOODS AND ENVIRONMENT,ORCHARD RECYCLING SERVICE LTD,04/06/2020,2531.00 ,CONTRACTS,V001568112
ROCHDALE BOROUGH COUNCIL,04/06/2020,NEIGHBOURHOODS AND ENVIRONMENT,SHRED STATION,04/06/2020,203.00 ,CONTRACTS,V001568113
ROCHDALE BOROUGH COUNCIL,04/06/2020,NEIGHBOURHOODS AND ENVIRONMENT,DICK WHITTINGTON GUEST HOUSE,04/06/2020,1520.00 ,ACCOMMODATION,V001568114
ROCHDALE BOROUGH COUNCIL,04/06/2020,ECONOMY DIRECTORATE,AECOM LIMITED,04/06/2020,25300.00 ,CONSULTANTS FEES,V001568115
ROCHDALE BOROUGH COUNCIL,04/06/2020,EARLY HELP AND SCHOOLS,ACTIVE AID LTD,04/06/2020,100.00 ,SUBSCRIPTIONS,V001568116
ROCHDALE BOROUGH COUNCIL,05/06/2020,COMMISSIONING AND STATUTORY,REDACTED - PERSONAL DATA,05/06/2020,173.37 ,EXPENSES - GENERAL,V001568117
ROCHDALE BOROUGH COUNCIL,05/06/2020,COMMISSIONING AND STATUTORY,REDACTED - PERSONAL DATA,05/06/2020,173.37 ,EXPENSES - GENERAL,V001568118
ROCHDALE BOROUGH COUNCIL,05/06/2020,COMMISSIONING AND STATUTORY,SARA MEDICS LTD,05/06/2020,173.37 ,EXPENSES - GENERAL,V001568119
ROCHDALE BOROUGH COUNCIL,05/06/2020,COMMISSIONING AND STATUTORY,REDACTED - PERSONAL DATA,05/06/2020,173.37 ,EXPENSES - GENERAL,V001568120
ROCHDALE BOROUGH COUNCIL,05/06/2020,NEIGHBOURHOODS AND ENVIRONMENT,GROUNDWORK LANDSCAPES LIMITED,05/06/2020,850.00 ,MAINTENANCE,V001568121
ROCHDALE BOROUGH COUNCIL,05/06/2020,NEIGHBOURHOODS AND ENVIRONMENT,GROUNDWORK LANDSCAPES LIMITED,05/06/2020,680.00 ,EQUIPMENT - GENERAL,V001568122
ROCHDALE BOROUGH COUNCIL,04/06/2020,ECONOMY DIRECTORATE,REDACTED - PERSONAL DATA,04/06/2020,206.00 ,PLANNING APPLICATION FEES,V001568123
ROCHDALE BOROUGH COUNCIL,05/06/2020,NEIGHBOURHOODS AND ENVIRONMENT,GROUNDWORK LANDSCAPES LIMITED,05/06/2020,2700.00 ,EQUIPMENT - GENERAL,V001568124
ROCHDALE BOROUGH COUNCIL,05/06/2020,NEIGHBOURHOODS AND ENVIRONMENT,GROUNDWORK LANDSCAPES LIMITED,05/06/2020,2080.00 ,EQUIPMENT - GENERAL,V001568125
ROCHDALE BOROUGH COUNCIL,05/06/2020,NEIGHBOURHOODS AND ENVIRONMENT,GRAFFIC  DETAIL,05/06/2020,475.00 ,EQUIPMENT - GENERAL,V001568126
ROCHDALE BOROUGH COUNCIL,03/06/2020,RESOURCES,REDACTED - PERSONAL DATA,03/06/2020,461.52 ,RENT ALLOWS-PRIVATE TENANTS ST,V001568127
ROCHDALE BOROUGH COUNCIL,03/06/2020,RESOURCES,REDACTED - PERSONAL DATA,03/06/2020,170.76 ,RENT ALLOWS-PRIVATE TENANTS ST,V001568128
ROCHDALE BOROUGH COUNCIL,03/06/2020,RESOURCES,REDACTED - PERSONAL DATA,03/06/2020,280.00 ,RENT ALLOWS-PRIVATE TENANTS ST,V001568129
ROCHDALE BOROUGH COUNCIL,03/06/2020,RESOURCES,REDACTED - PERSONAL DATA,03/06/2020,825.28 ,RENT ALLOWS-PRIVATE TENANTS ST,V001568130
ROCHDALE BOROUGH COUNCIL,03/06/2020,RESOURCES,REDACTED - PERSONAL DATA,03/06/2020,116.80 ,RENT ALLOWS-PRIVATE TENANTS ST,V001568131
ROCHDALE BOROUGH COUNCIL,04/06/2020,CHILDREN�S SOCIAL CARE,REDACTED - PERSONAL DATA,04/06/2020,350.00 ,TRAINING,V001568133
ROCHDALE BOROUGH COUNCIL,11/06/2020,ECONOMY DIRECTORATE,REDMAN PARTNERSHIPS LLP,11/06/2020,4805.42 ,CONSULTANTS FEES,V001568135
ROCHDALE BOROUGH COUNCIL,04/06/2020,PROPERTY AND HIGHWAYS,GROUNDWORK LANDSCAPES LIMITED,04/06/2020,4884.00 ,MINOR BUILDING WORKS,V001568136
ROCHDALE BOROUGH COUNCIL,11/06/2020,EARLY HELP AND SCHOOLS,YORKSHIRE PURCHASING ORGANISATION,11/06/2020,40.50 ,EQUIPMENT - GENERAL,V001568137
ROCHDALE BOROUGH COUNCIL,08/06/2020,PROPERTY AND HIGHWAYS,TRANSPORT FOR GREATER MANCHESTER,08/06/2020,285.00 ,MINOR BUILDING WORKS,V001568139
ROCHDALE BOROUGH COUNCIL,05/06/2020,CHILDREN�S SOCIAL CARE,BALTIMORE CONSULTING LTD,05/06/2020,3281.25 ,AGENCY STAFF,V001568140
ROCHDALE BOROUGH COUNCIL,08/06/2020,CHILDREN�S SOCIAL CARE,CARE 4 CHILDREN RESIDENTIAL SERVICES,08/06/2020,3321.34 ,FOSTER PARENTS BASIC ALLOWANCE,V001568143
ROCHDALE BOROUGH COUNCIL,08/06/2020,CHILDREN�S SOCIAL CARE,CARE 4 CHILDREN RESIDENTIAL SERVICES,08/06/2020,3288.17 ,FOSTER PARENTS BASIC ALLOWANCE,V001568144
ROCHDALE BOROUGH COUNCIL,08/06/2020,CHILDREN�S SOCIAL CARE,CARE 4 CHILDREN RESIDENTIAL SERVICES,08/06/2020,3463.63 ,FOSTER PARENTS BASIC ALLOWANCE,V001568145
ROCHDALE BOROUGH COUNCIL,15/06/2020,NEIGHBOURHOODS AND ENVIRONMENT,AVK SEG UK LTD,15/06/2020,1818.92 ,SPECIFIED MAINTENANCE,V001568146
ROCHDALE BOROUGH COUNCIL,09/06/2020,NEIGHBOURHOODS AND ENVIRONMENT,ZEN INTERNET LIMITED,09/06/2020,67.16 ,MAINTENANCE,V001568147
ROCHDALE BOROUGH COUNCIL,10/06/2020,NEIGHBOURHOODS AND ENVIRONMENT,KILLGERM CHEMICALS LIMITED,10/06/2020,31.10 ,EQUIPMENT - GENERAL,V001568148
ROCHDALE BOROUGH COUNCIL,10/06/2020,NEIGHBOURHOODS AND ENVIRONMENT,KILLGERM CHEMICALS LIMITED,10/06/2020,70.00 ,EQUIPMENT - GENERAL,V001568148
ROCHDALE BOROUGH COUNCIL,10/06/2020,NEIGHBOURHOODS AND ENVIRONMENT,KILLGERM CHEMICALS LIMITED,10/06/2020,26.24 ,EQUIPMENT - GENERAL,V001568148
ROCHDALE BOROUGH COUNCIL,11/06/2020,PROPERTY AND HIGHWAYS,WOLSELEY UK LIMITED,11/06/2020,69.28 ,PROPERTY - WORKS ELEMENT,V001568149
ROCHDALE BOROUGH COUNCIL,11/06/2020,PROPERTY AND HIGHWAYS,WOLSELEY UK LIMITED,11/06/2020,18.51 ,PROPERTY - WORKS ELEMENT,V001568150
ROCHDALE BOROUGH COUNCIL,04/06/2020,NEIGHBOURHOODS AND ENVIRONMENT,REDACTED - PERSONAL DATA,04/06/2020,276.90 ,OTHER POST MORTEMS,V001568151
ROCHDALE BOROUGH COUNCIL,04/06/2020,CHILDREN�S SOCIAL CARE,BALTIMORE CONSULTING LTD,04/06/2020,2625.00 ,AGENCY STAFF,V001568152
ROCHDALE BOROUGH COUNCIL,10/06/2020,ECONOMY DIRECTORATE,LANCASHIRE LOCK AND SAFE COMPANY LIMITED,10/06/2020,288.00 ,VANDALISM,V001568156
ROCHDALE BOROUGH COUNCIL,10/06/2020,ECONOMY DIRECTORATE,LANCASHIRE LOCK AND SAFE COMPANY LIMITED,10/06/2020,150.00 ,VANDALISM,V001568157
ROCHDALE BOROUGH COUNCIL,10/06/2020,ECONOMY DIRECTORATE,ENTWISTLE GROUP,10/06/2020,195.00 ,PRINTING & STATIONERY,V001568158
ROCHDALE BOROUGH COUNCIL,04/06/2020,EARLY HELP AND SCHOOLS,ROUTES HEALTHCARE NORTH LTD,04/06/2020,230.64 ,HOME CARE - CHILDRENS SERVICES,V001568159
ROCHDALE BOROUGH COUNCIL,04/06/2020,EARLY HELP AND SCHOOLS,PRESTIGE NURSING AND CARE,04/06/2020,81.60 ,HOME CARE - CHILDRENS SERVICES,V001568160
ROCHDALE BOROUGH COUNCIL,04/06/2020,EARLY HELP AND SCHOOLS,PRESTIGE NURSING AND CARE,04/06/2020,163.20 ,HOME CARE - CHILDRENS SERVICES,V001568161
ROCHDALE BOROUGH COUNCIL,04/06/2020,EARLY HELP AND SCHOOLS,PRESTIGE NURSING AND CARE,04/06/2020,218.20 ,HOME CARE - CHILDRENS SERVICES,V001568162
ROCHDALE BOROUGH COUNCIL,04/06/2020,EARLY HELP AND SCHOOLS,PRESTIGE NURSING AND CARE,04/06/2020,96.25 ,HOME CARE - CHILDRENS SERVICES,V001568163
ROCHDALE BOROUGH COUNCIL,15/06/2020,NEIGHBOURHOODS AND ENVIRONMENT,AVK SEG UK LTD,15/06/2020,780.00 ,SPECIFIED MAINTENANCE,V001568164
ROCHDALE BOROUGH COUNCIL,04/06/2020,EARLY HELP AND SCHOOLS,GWYNEDD COUNCIL,04/06/2020,4402.00 ,OTHER EST - SEN PROVISION,V001568168
ROCHDALE BOROUGH COUNCIL,08/06/2020,CHILDREN�S SOCIAL CARE,FOSTERING SOLUTIONS LTD,08/06/2020,2544.00 ,FOSTER PARENTS BASIC ALLOWANCE,V001568183
ROCHDALE BOROUGH COUNCIL,08/06/2020,CHILDREN�S SOCIAL CARE,FOSTERING SOLUTIONS LTD,08/06/2020,3379.24 ,FOSTER PARENTS BASIC ALLOWANCE,V001568184
ROCHDALE BOROUGH COUNCIL,24/06/2020,CHILDREN�S SOCIAL CARE,FOSTERING SOLUTIONS LTD,24/06/2020,2467.74 ,FOSTER PARENTS BASIC ALLOWANCE,V001568185
ROCHDALE BOROUGH COUNCIL,04/06/2020,CHILDREN�S SOCIAL CARE,FOSTERING SOLUTIONS LTD,04/06/2020,3125.02 ,FOSTER PARENTS BASIC ALLOWANCE,V001568186
ROCHDALE BOROUGH COUNCIL,04/06/2020,CHILDREN�S SOCIAL CARE,FOSTERING SOLUTIONS LTD,04/06/2020,2218.67 ,FOSTER PARENTS BASIC ALLOWANCE,V001568187
ROCHDALE BOROUGH COUNCIL,04/06/2020,CHILDREN�S SOCIAL CARE,FOSTERING SOLUTIONS LTD,04/06/2020,3360.24 ,FOSTER PARENTS BASIC ALLOWANCE,V001568188
ROCHDALE BOROUGH COUNCIL,04/06/2020,CHILDREN�S SOCIAL CARE,FOSTERING SOLUTIONS LTD,04/06/2020,3491.89 ,FOSTER PARENTS BASIC ALLOWANCE,V001568189
ROCHDALE BOROUGH COUNCIL,15/06/2020,NEIGHBOURHOODS AND ENVIRONMENT,CARRICK SIGNS LTD,15/06/2020,1295.00 ,PRINTING,V001568190
ROCHDALE BOROUGH COUNCIL,15/06/2020,NEIGHBOURHOODS AND ENVIRONMENT,WHISTL UK LTD,15/06/2020,385.48 ,TRANSACTIONS-EXPENDITURE,V001568191
ROCHDALE BOROUGH COUNCIL,08/06/2020,COMMISSIONING AND STATUTORY,ADVOCACY FOCUS,08/06/2020,116.90 ,ACTIVITIES,V001568192
ROCHDALE BOROUGH COUNCIL,15/06/2020,CHILDREN�S SOCIAL CARE,PATHWAYS,15/06/2020,4650.00 ,YOUNG PEOPLES RENTS,V001568193
ROCHDALE BOROUGH COUNCIL,04/06/2020,PROPERTY AND HIGHWAYS,DDH FABRICATIONS LTD,04/06/2020,320.00 ,PROPERTY - WORKS ELEMENT,V001568194
ROCHDALE BOROUGH COUNCIL,04/06/2020,PROPERTY AND HIGHWAYS,DDH FABRICATIONS LTD,04/06/2020,620.00 ,PROPERTY - WORKS ELEMENT,V001568195
ROCHDALE BOROUGH COUNCIL,04/06/2020,PROPERTY AND HIGHWAYS,REACH PUBLISHING SERVICES LTD,04/06/2020,70.56 ,ADVERTISING,V001568196
ROCHDALE BOROUGH COUNCIL,04/06/2020,CHILDREN�S SOCIAL CARE,RITE DIRECTIONS LTD,04/06/2020,600.00 ,EBD (EMOT & BEHAV DIFF) PLACEMENTS,V001568197
ROCHDALE BOROUGH COUNCIL,04/06/2020,CHILDREN�S SOCIAL CARE,RITE DIRECTIONS LTD,04/06/2020,4800.00 ,YOUNG PEOPLES RENTS,V001568197
ROCHDALE BOROUGH COUNCIL,04/06/2020,CHILDREN�S SOCIAL CARE,RITE DIRECTIONS LTD,04/06/2020,289.50 ,YOUNGE PERSONS ALLOWANCE,V001568197
ROCHDALE BOROUGH COUNCIL,04/06/2020,CHILDREN�S SOCIAL CARE,CARE 4 CHILDREN RESIDENTIAL SERVICES,04/06/2020,3498.66 ,FOSTER PARENTS BASIC ALLOWANCE,V001568200
ROCHDALE BOROUGH COUNCIL,04/06/2020,NEIGHBOURHOODS AND ENVIRONMENT,ROCHDALE TOWN TAXIS LTD,04/06/2020,350.00 ,TAXI HIRE,V001568201
ROCHDALE BOROUGH COUNCIL,04/06/2020,NEIGHBOURHOODS AND ENVIRONMENT,ROCHDALE TOWN TAXIS LTD,04/06/2020,350.00 ,TAXI HIRE,V001568201
ROCHDALE BOROUGH COUNCIL,04/06/2020,NEIGHBOURHOODS AND ENVIRONMENT,ROCHDALE TOWN TAXIS LTD,04/06/2020,350.00 ,TAXI HIRE,V001568201
ROCHDALE BOROUGH COUNCIL,08/06/2020,NEIGHBOURHOODS AND ENVIRONMENT,ROCHDALE TOWN TAXIS LTD,08/06/2020,160.00 ,TAXI HIRE,V001568202
ROCHDALE BOROUGH COUNCIL,08/06/2020,NEIGHBOURHOODS AND ENVIRONMENT,ROCHDALE TOWN TAXIS LTD,08/06/2020,160.00 ,TAXI HIRE,V001568202
ROCHDALE BOROUGH COUNCIL,08/06/2020,NEIGHBOURHOODS AND ENVIRONMENT,ROCHDALE TOWN TAXIS LTD,08/06/2020,160.00 ,TAXI HIRE,V001568202
ROCHDALE BOROUGH COUNCIL,04/06/2020,NEIGHBOURHOODS AND ENVIRONMENT,PHOENIX SOFTWARE LIMITED,04/06/2020,59591.04 ,SOFTWARE LICENSES,V001568203
ROCHDALE BOROUGH COUNCIL,04/06/2020,NEIGHBOURHOODS AND ENVIRONMENT,PHOENIX SOFTWARE LIMITED,04/06/2020,59591.04 ,SOFTWARE LICENSES,V001568203
ROCHDALE BOROUGH COUNCIL,04/06/2020,NEIGHBOURHOODS AND ENVIRONMENT,PHOENIX SOFTWARE LIMITED,04/06/2020,21446.70 ,SOFTWARE LICENSES,V001568203
ROCHDALE BOROUGH COUNCIL,04/06/2020,NEIGHBOURHOODS AND ENVIRONMENT,PHOENIX SOFTWARE LIMITED,04/06/2020,21446.70 ,SOFTWARE LICENSES,V001568203
ROCHDALE BOROUGH COUNCIL,04/06/2020,NEIGHBOURHOODS AND ENVIRONMENT,PHOENIX SOFTWARE LIMITED,04/06/2020,794.40 ,SOFTWARE LICENSES,V001568203
ROCHDALE BOROUGH COUNCIL,04/06/2020,NEIGHBOURHOODS AND ENVIRONMENT,PHOENIX SOFTWARE LIMITED,04/06/2020,794.40 ,SOFTWARE LICENSES,V001568203
ROCHDALE BOROUGH COUNCIL,04/06/2020,NEIGHBOURHOODS AND ENVIRONMENT,PHOENIX SOFTWARE LIMITED,04/06/2020,50243.20 ,SOFTWARE LICENSES,V001568203
ROCHDALE BOROUGH COUNCIL,04/06/2020,NEIGHBOURHOODS AND ENVIRONMENT,PHOENIX SOFTWARE LIMITED,04/06/2020,50243.20 ,SOFTWARE LICENSES,V001568203
ROCHDALE BOROUGH COUNCIL,08/06/2020,NEIGHBOURHOODS AND ENVIRONMENT,XMA LIMITED,08/06/2020,162.85 ,TRANSACTIONS-EXPENDITURE,V001568204
ROCHDALE BOROUGH COUNCIL,04/06/2020,CHILDREN�S SOCIAL CARE,XMA LIMITED,04/06/2020,162.85 ,IT EQUIPMENT,V001568205
ROCHDALE BOROUGH COUNCIL,04/06/2020,NEIGHBOURHOODS AND ENVIRONMENT,CDW LTD,04/06/2020,5880.22 ,ACTIVITIES,V001568206
ROCHDALE BOROUGH COUNCIL,04/06/2020,NEIGHBOURHOODS AND ENVIRONMENT,PATTERSONS BRISTOL LTD,04/06/2020,17.96 ,CLEANING MATERIALS,V001568207
ROCHDALE BOROUGH COUNCIL,04/06/2020,NEIGHBOURHOODS AND ENVIRONMENT,PATTERSONS BRISTOL LTD,04/06/2020,8.84 ,CONSUMABLES,V001568207
ROCHDALE BOROUGH COUNCIL,04/06/2020,NEIGHBOURHOODS AND ENVIRONMENT,PATTERSONS BRISTOL LTD,04/06/2020,23.00 ,CONSUMABLES,V001568207
ROCHDALE BOROUGH COUNCIL,04/06/2020,NEIGHBOURHOODS AND ENVIRONMENT,PATTERSONS BRISTOL LTD,04/06/2020,27.72 ,CONSUMABLES,V001568208
ROCHDALE BOROUGH COUNCIL,04/06/2020,CHILDREN�S SOCIAL CARE,THE TOGETHER TRUST,04/06/2020,17670.00 ,EBD (EMOT & BEHAV DIFF) PLACEMENTS,V001568209
ROCHDALE BOROUGH COUNCIL,08/06/2020,COMMISSIONING AND STATUTORY,ROCHDALE HEALTH ALLIANCE,08/06/2020,15721.67 ,OTHER LA`S - SEN PROVISION,V001568210
ROCHDALE BOROUGH COUNCIL,08/06/2020,PROPERTY AND HIGHWAYS,REACH PUBLISHING SERVICES LTD,08/06/2020,60.80 ,ADVERTISING,V001568211
ROCHDALE BOROUGH COUNCIL,08/06/2020,ECONOMY DIRECTORATE,LAMBERT SMITH HAMPTON GROUP LTD,08/06/2020,1750.00 ,CONDITION SURVEYS,V001568212
ROCHDALE BOROUGH COUNCIL,04/06/2020,NEIGHBOURHOODS AND ENVIRONMENT,VIP-SYSTEM LIMITED,04/06/2020,2184.00 ,MATERIAL - GENERAL,V001568213
ROCHDALE BOROUGH COUNCIL,04/06/2020,PUBLIC HEALTH,SALFORD CITY COUNCIL,04/06/2020,25000.00 ,PH BUSINESS CASES,V001568215
ROCHDALE BOROUGH COUNCIL,05/06/2020,ADULT CARE LCO FUNCTIONS,CALTON SYSTEMS LIMITED,05/06/2020,982.00 ,NURSING LONG TERM,V001568216
ROCHDALE BOROUGH COUNCIL,05/06/2020,ADULT CARE LCO FUNCTIONS,CALTON SYSTEMS LIMITED,05/06/2020,982.00 ,NURSING LONG TERM,V001568216
ROCHDALE BOROUGH COUNCIL,05/06/2020,ADULT CARE LCO FUNCTIONS,BELGRAVIA CARE,05/06/2020,1169.10 ,RESIDENTIAL LONG TERM,V001568217
ROCHDALE BOROUGH COUNCIL,05/06/2020,ADULT CARE LCO FUNCTIONS,WELLINGTON HEALTHCARE ARDEN LTD,05/06/2020,1032.00 ,RESIDENTIAL LONG TERM,V001568218
ROCHDALE BOROUGH COUNCIL,05/06/2020,ADULT CARE LCO FUNCTIONS,WELLINGTON HEALTHCARE ARDEN LTD,05/06/2020,1032.00 ,RESIDENTIAL LONG TERM,V001568218
ROCHDALE BOROUGH COUNCIL,05/06/2020,ADULT CARE LCO FUNCTIONS,LIVING AMBITIONS LTD,05/06/2020,2075.00 ,RESIDENTIAL LONG TERM,V001568219
ROCHDALE BOROUGH COUNCIL,05/06/2020,ADULT CARE LCO FUNCTIONS,THE ELMS,05/06/2020,900.00 ,NURSING LONG TERM,V001568220
ROCHDALE BOROUGH COUNCIL,05/06/2020,ADULT CARE LCO FUNCTIONS,THE ELMS,05/06/2020,900.00 ,NURSING LONG TERM,V001568220
ROCHDALE BOROUGH COUNCIL,05/06/2020,ADULT CARE LCO FUNCTIONS,PENDLE RESIDENTIAL CARE,05/06/2020,2899.00 ,RESIDENTIAL LONG TERM,V001568221
ROCHDALE BOROUGH COUNCIL,05/06/2020,ADULT CARE LCO FUNCTIONS,EAST AND WEST HEALTHCARE LIMITED,05/06/2020,1054.00 ,RESIDENTIAL LONG TERM,V001568222
ROCHDALE BOROUGH COUNCIL,05/06/2020,ADULT CARE LCO FUNCTIONS,FINBROOK LIMITED,05/06/2020,1630.00 ,RESIDENTIAL LONG TERM,V001568223
ROCHDALE BOROUGH COUNCIL,05/06/2020,ADULT CARE LCO FUNCTIONS,VALORUM CARE LTD,05/06/2020,1361.76 ,NURSING LONG TERM,V001568224
ROCHDALE BOROUGH COUNCIL,05/06/2020,ADULT CARE LCO FUNCTIONS,MCAULEY MOUNT RESIDENTIAL CARE HOME,05/06/2020,898.42 ,RESIDENTIAL LONG TERM,V001568225
ROCHDALE BOROUGH COUNCIL,05/06/2020,ADULT CARE LCO FUNCTIONS,LITTLEBOROUGH CARE HOME LIMITED,05/06/2020,1032.00 ,RESIDENTIAL LONG TERM,V001568226
ROCHDALE BOROUGH COUNCIL,05/06/2020,ADULT CARE LCO FUNCTIONS,THE JOSEPH COX CHARITY,05/06/2020,1362.30 ,RESIDENTIAL LONG TERM,V001568227
ROCHDALE BOROUGH COUNCIL,05/06/2020,ADULT CARE LCO FUNCTIONS,THE JOSEPH COX CHARITY,05/06/2020,1362.30 ,RESIDENTIAL LONG TERM,V001568227
ROCHDALE BOROUGH COUNCIL,05/06/2020,ADULT CARE LCO FUNCTIONS,THE REGARD PARTNERSHIP LIMITED,05/06/2020,8308.00 ,RESIDENTIAL LONG TERM,V001568228
ROCHDALE BOROUGH COUNCIL,05/06/2020,ADULT CARE LCO FUNCTIONS,WELLINGTON HEALTHCARE LTD,05/06/2020,542.86 ,RESIDENTIAL LONG TERM,V001568229
ROCHDALE BOROUGH COUNCIL,05/06/2020,ADULT CARE LCO FUNCTIONS,WELLINGTON HEALTHCARE LTD,05/06/2020,1900.00 ,RESIDENTIAL LONG TERM,V001568230
ROCHDALE BOROUGH COUNCIL,05/06/2020,ADULT CARE LCO FUNCTIONS,WELLINGTON HEALTHCARE LTD,05/06/2020,1900.00 ,RESIDENTIAL LONG TERM,V001568231
ROCHDALE BOROUGH COUNCIL,05/06/2020,ADULT CARE LCO FUNCTIONS,WELLINGTON HEALTHCARE LTD,05/06/2020,1900.00 ,RESIDENTIAL LONG TERM,V001568232
ROCHDALE BOROUGH COUNCIL,05/06/2020,ADULT CARE LCO FUNCTIONS,WELLINGTON HEALTHCARE LTD,05/06/2020,1900.00 ,RESIDENTIAL LONG TERM,V001568233
ROCHDALE BOROUGH COUNCIL,05/06/2020,ADULT CARE LCO FUNCTIONS,WELLINGTON HEALTHCARE LTD,05/06/2020,1900.00 ,RESIDENTIAL LONG TERM,V001568234
ROCHDALE BOROUGH COUNCIL,05/06/2020,ADULT CARE LCO FUNCTIONS,WELLINGTON HEALTHCARE LTD,05/06/2020,1900.00 ,RESIDENTIAL LONG TERM,V001568235
ROCHDALE BOROUGH COUNCIL,05/06/2020,ADULT CARE LCO FUNCTIONS,WELLINGTON HEALTHCARE LTD,05/06/2020,1900.00 ,RESIDENTIAL LONG TERM,V001568236
ROCHDALE BOROUGH COUNCIL,05/06/2020,ADULT CARE LCO FUNCTIONS,WELLINGTON HEALTHCARE LTD,05/06/2020,1900.00 ,RESIDENTIAL LONG TERM,V001568237
ROCHDALE BOROUGH COUNCIL,05/06/2020,ADULT CARE LCO FUNCTIONS,WELLINGTON HEALTHCARE LTD,05/06/2020,1900.00 ,RESIDENTIAL LONG TERM,V001568238
ROCHDALE BOROUGH COUNCIL,05/06/2020,ADULT CARE LCO FUNCTIONS,WELLINGTON HEALTHCARE LTD,05/06/2020,1900.00 ,RESIDENTIAL LONG TERM,V001568239
ROCHDALE BOROUGH COUNCIL,05/06/2020,ADULT CARE LCO FUNCTIONS,WELLINGTON HEALTHCARE LTD,05/06/2020,1900.00 ,RESIDENTIAL LONG TERM,V001568240
ROCHDALE BOROUGH COUNCIL,05/06/2020,ADULT CARE LCO FUNCTIONS,THE ELMS,05/06/2020,900.00 ,RESIDENTIAL LONG TERM,V001568241
ROCHDALE BOROUGH COUNCIL,05/06/2020,ADULT CARE LCO FUNCTIONS,THE ELMS,05/06/2020,900.00 ,RESIDENTIAL LONG TERM,V001568241
ROCHDALE BOROUGH COUNCIL,05/06/2020,ADULT CARE LCO FUNCTIONS,HEALEY CARE LTD,05/06/2020,2537.08 ,RESIDENTIAL LONG TERM,V001568242
ROCHDALE BOROUGH COUNCIL,05/06/2020,ADULT CARE LCO FUNCTIONS,HEALEY CARE LTD,05/06/2020,2537.08 ,RESIDENTIAL LONG TERM,V001568242
ROCHDALE BOROUGH COUNCIL,05/06/2020,ADULT CARE LCO FUNCTIONS,HC ONE LTD,05/06/2020,1032.00 ,RESIDENTIAL LONG TERM,V001568243
ROCHDALE BOROUGH COUNCIL,05/06/2020,ADULT CARE LCO FUNCTIONS,HEALYCARE LTD,05/06/2020,1738.08 ,RESIDENTIAL LONG TERM,V001568244
ROCHDALE BOROUGH COUNCIL,05/06/2020,ADULT CARE LCO FUNCTIONS,FREEHOLD COTTAGE,05/06/2020,1200.00 ,RESIDENTIAL LONG TERM,V001568245
ROCHDALE BOROUGH COUNCIL,05/06/2020,ADULT CARE LCO FUNCTIONS,MARANTOMARK LTD,05/06/2020,2998.00 ,NURSING LONG TERM,V001568246
ROCHDALE BOROUGH COUNCIL,05/06/2020,ADULT CARE LCO FUNCTIONS,CHADDERTON TOTAL CARE UNIT LTD,05/06/2020,1391.08 ,NURSING LONG TERM,V001568247
ROCHDALE BOROUGH COUNCIL,05/06/2020,ADULT CARE LCO FUNCTIONS,CHADDERTON TOTAL CARE UNIT LTD,05/06/2020,1391.08 ,NURSING LONG TERM,V001568247
ROCHDALE BOROUGH COUNCIL,05/06/2020,ADULT CARE LCO FUNCTIONS,CALTON SYSTEMS LIMITED,05/06/2020,982.00 ,RESIDENTIAL LONG TERM,V001568248
ROCHDALE BOROUGH COUNCIL,05/06/2020,ADULT CARE LCO FUNCTIONS,MONA CLIFFE RESIDENTIAL HOME,05/06/2020,1032.00 ,RESIDENTIAL LONG TERM,V001568249
ROCHDALE BOROUGH COUNCIL,05/06/2020,ADULT CARE LCO FUNCTIONS,MONA CLIFFE RESIDENTIAL HOME,05/06/2020,1032.00 ,RESIDENTIAL LONG TERM,V001568249
ROCHDALE BOROUGH COUNCIL,05/06/2020,ADULT CARE LCO FUNCTIONS,HC ONE LTD,05/06/2020,1054.00 ,RESIDENTIAL LONG TERM,V001568250
ROCHDALE BOROUGH COUNCIL,05/06/2020,ADULT CARE LCO FUNCTIONS,HC ONE LTD,05/06/2020,1054.00 ,RESIDENTIAL LONG TERM,V001568250
